{"text_format":"1","workbook":"xlsx","n_sheets":6,"sheets":["Převod účastnické smlouvy","Pokyny k vyplňování Nových FS","Nové Fakturační Skupiny","Pokyny k vyplňování Přev.služeb","Převáděné služby","helpsheet"],"not_rendered":{"charts":0,"images":2,"macros":1,"external_links":0,"defined_names":720,"comments":2,"pivot_tables":0},"unopened":[],"bounds":{"document_bytes":16777216,"sheet_cells":100000,"rows_first":2000,"rows_last":500,"rows_between":2000,"halvings":0,"cell_chars":16384,"cell_head_chars":4096},"cells_cut":0,"cells_raw":0,"read":"whole","date_system":"1900"}

{"sheet":"Převod účastnické smlouvy","index":0,"n_rows":135,"n_cols":9,"rows_kept":135,"cut":false,"hidden":false,"merged":[[9,5,9,6],[6,5,6,6],[5,5,5,6],[8,5,8,6],[133,1,134,4],[38,2,39,4],[62,5,62,8],[62,1,62,4],[21,2,22,4]]}
[]
[null,null,"DOHODA O UKONČENÍ SMLOUVY"]
[null,null,null,"     A ÚČASTNICKÁ SMLOUVA"]
[null,null,"   (PŘEVOD TELEFONNÍHO ČÍSLA)"]
[null,"Zákaznické centrum"]
[null,"800 73 73 73",null,null,null,"RÁMCOVÁ SMLOUVA"]
[null,"www.t-mobile.cz/kontakt",null,null,null,"ZÁJEMCE:"]
[]
[null,"Zákaznické centrum - Business",null,null,null,"ZÁKAZNICKÁ SMLOUVA"]
[null,"800 73 73 33, business@t-mobile.cz ",null,null,null,"ZÁJEMCE:"]
[null,"www.t-mobile.cz "]
[]
[]
["OPERÁTOR","T-Mobile Czech Republic a.s.",null,null,null,"Obch.zástupce, kód"]
[null,"Tomíčkova 2144/1, 148 00 Praha 4",null,null,null,"Obch.zástupce, jméno"]
[null,"IČ 649 49 681, DIČ CZ64949681",null,null,null,"Obch.zástupce, příjmení"]
[null,"Zapsaný do OR u Městského soudu"]
[null,"v Praze, oddíl B, vložka 3787"]
[null,null,1]
[]
["ÚČASTNÍK","Právní subjektivita *",null,null,"Fyzicka osoba",{"$f":"IF(ucastnik_subjektivita=\"\",\"\",IF(OR(ucastnik_subjektivita=\"Fyzicka osoba podnikatel\",ucastnik_subjektivita=\"Pravnicka osoba\"),IF(AND(ucastnik_firma=\"\",ucastnik_IC=\"\",OR(ucastnikZAS_RC=\"\",ucastnikZAS_RC=\"DD.MM.RRRR\"),ucastnikZAS_jmeno=\"\",ucastnikZAS_prijmeni=\"\"),\"Vyplňte, prosím, zejména podbarvená povinná pole.\",IF(ucastnik_subjektivita=\"\",\"Právní subjektivita!! \",\"\")&IF(ucastnik_firma=\"\",\"Obchodní firma!! \",\"\")&IF(ucastnik_IC=\"\",\"IČO!! \",\"\")&IF(ucastnik_autorizace=\"\",\"Autorizace!! \",\"\")&IF(OR(ucastnikZAS_jmeno=\"\",ucastnikZAS_prijmeni=\"\",OR(ucastnikZAS_RC=\"\",ucastnikZAS_RC=\"DD.MM.RRRR\")),\"Zastoupená:( \"&IF(ucastnikZAS_jmeno=\"\",\"Jméno!! \",\"\")&IF(ucastnikZAS_prijmeni=\"\",\"Příjmení!! \",\"\")&IF(OR(ucastnikZAS_RC=\"\",ucastnikZAS_RC=\"DD.MM.RRRR\"),\"Datum narození!! \",\"\")&\")\",\"\")),IF(ucastnik_subjektivita=\"Fyzicka osoba\",IF(AND(ucastnik_jmeno=\"\",ucastnik_prijmeni=\"\",OR(ucastnik_RC=\"\",ucastnik_RC=\"DD.MM.RRRR\")),\"Vyplňte, prosím, zejména podbarvená povinná pole.\",IF(ucastnik_subjektivita=\"\",\"Právní subjektivita!! \",\"\")&IF(ucastnik_jmeno=\"\",\"Jméno!! \",\"\")&IF(ucastnik_prijmeni=\"\",\"Příjmení!! \",\"\")&IF(ucastnik_autorizace=\"\",\"Autorizace!! \",\"\")&IF(OR(ucastnik_RC=\"\",ucastnik_RC=\"DD.MM.RRRR\"),\"Datum narození!! \",\"\")))))","v":"Vyplňte, prosím, zejména podbarvená povinná pole."}]
[null,"Obchodní"," "]
[null,"firma*",null,null,null,"Zastoupená:"]
[null,"Jméno *",null,null,null,"Jméno *","",null," "]
[null,"Příjmení *",null,null,null,"Příjmení *",null,null," "]
[null,"IČO*"]
[null,"Státní příslušnost ",null,"",null,"Státní příslušnost",null,""," "]
[null,"Autorizace účastníka *",null,null,"Podpisem formulare","Datum narozeni *",null,null," "]
[null,"Datum narozeni *",null,null,null,"Doklad 1 - typ",null,null," "]
[null,"Doklad 1 - typ",null,null,null,"Doklad 1 - číslo",null,null," "]
[null,"Doklad 1 - číslo",null,null,null,"Doklad 1 - exspirace",null,null," "]
[null,"Doklad 1 - exspirace",null,null,null,"Doklad 2 - typ",null,null," "]
[null,"Doklad 2 - typ",null,null,null,"Doklad 2 - číslo",null,null," "]
[null,"Doklad 2 - číslo",null,null,null,"Doklad 2 - exspirace",null,null," "]
[null,"Doklad 2 - exspirace"]
[]
[]
["ZÁJEMCE","Právní subjektivita *",null,null,"Fyzicka osoba",{"$f":"IF(zajemce_subjektivita=\"\",\"\",IF(OR(zajemce_subjektivita=\"Fyzicka osoba podnikatel\",zajemce_subjektivita=\"Pravnicka osoba\"),IF(AND(zajemce_ulice=\"\",zajemce_cp=\"\",zajemce_mesto=\"\",zajemce_PSC=\"\",zajemce_firma=\"\",zajemce_IC=\"\",zajemceZAS_jmeno=\"\",zajemceZAS_prijmeni=\"\"),\"Vyplňte, prosím, zejména podbarvená povinná pole.\",IF(zajemce_subjektivita=\"\",\"Právní subjektivita!! \",\"\")&IF(zajemce_firma=\"\",\"Obchodní firma!! \",\"\")&IF(zajemce_IC=\"\",\"IČO!! \",\"\")&IF(zajemce_ulice=\"\",\"Ulice!! \",\"\")&IF(zajemce_cp=\"\",\"Číslo popisné!! \",\"\")&IF(zajemce_mesto=\"\",\"Město!! \",\"\")&IF(zajemce_PSC=\"\",\"PSČ!! \",\"\")&IF(Registr_AnoNe=\"\",\"Registr smluv!! \",\"\")&IF(OR(zajemceZAS_jmeno=\"\",zajemceZAS_prijmeni=\"\"),\"Zastoupená:( \"&IF(zajemceZAS_jmeno=\"\",\"Jméno!! \",\"\")&IF(zajemceZAS_prijmeni=\"\",\"Příjmení!! \",\"\")&\")\",\"\")),IF(zajemce_subjektivita=\"Fyzicka osoba\",IF(AND(zajemce_ulice=\"\",zajemce_cp=\"\",zajemce_mesto=\"\",zajemce_PSC=\"\",zajemce_jmeno=\"\",zajemce_prijmeni=\"\",zajemce_nation=\"\",OR(zajemce_RC=\"\",zajemce_RC=\"DD.MM.RRRR\",zajemce_RC=\"vyplňte RČ bez lomítka\"),zajemce_typ_doklad1=\"\",zajemce_doklad1=\"\",OR(zajemce_platnost1=\"\",zajemce_platnost1=\"DD.MM.RRRR\")),\"Vyplňte, prosím, zejména podbarvená povinná pole.\",IF(zajemce_subjektivita=\"\",\"Právní subjektivita!! \",\"\")&IF(zajemce_jmeno=\"\",\"Jméno!! \",\"\")&IF(zajemce_prijmeni=\"\",\"Příjmení!! \",\"\")&IF(zajemce_ulice=\"\",\"Ulice!! \",\"\")&IF(zajemce_cp=\"\",\"Číslo popisné!! \",\"\")&IF(zajemce_mesto=\"\",\"Město!! \",\"\")&IF(zajemce_PSC=\"\",\"PSČ!! \",\"\")&IF(zajemce_nation=\"\",\"Stát. příslušnost!! \",\"\")&IF(OR(zajemce_RC=\"\",zajemce_RC=\"DD.MM.RRRR\",zajemce_RC=\"vyplňte RČ bez lomítka\"),\"RČ/Datum narození!! \",\"\")&IF(zajemce_typ_doklad1=\"\",\"Typ dokladu1!! \",\"\")&IF(zajemce_doklad1=\"\",\"Číslo dokladu1!! \",\"\")&IF(OR(zajemce_platnost1=\"\",zajemce_platnost1=\"DD.MM.RRRR\"),\"Exspirace dokladu1!! \",\"\")&IF(Registr_AnoNe=\"\",\"Registr smluv!! \",\"\")))))","v":"Vyplňte, prosím, zejména podbarvená povinná pole."}]
[null,"Obchodní"]
[null,"firma*",null,null,null,"Zastoupená:"]
[null,"Jméno 1)",null,null,null,"Jméno *","",null," "]
[null,"Příjmení 1)",null,null,null,"Příjmení *","",null," "]
[null,"IČO* / DIČ"," ","/"," "]
[null,"Ulice *",null,"",null,"Ulice",null,""," "]
[null,"č.p . / č.o. ",null,"/",null,"č.p . / č.o. "," ","/"," "]
[null,"Město *",null,null,null,"Město",null,null," "]
[null,"PSČ *",null,null,null,"PSČ",null,null," "]
[null,"Státní příslušnost *",null,{"$f":"IF(zajemce_nation=\"Česká republika\",1,2)","v":2},null,"Státní příslušnost",null,null," "]
[null,"Rodné číslo *",null,"",null,"Datum narození *",null,""," "]
[null,"Doklad 1 - typ *",null,null,null,"Doklad 1 - typ",null,null," "]
[null,"Doklad 1 - číslo *",null,null,null,"Doklad 1 - číslo",null,null," "]
[null,"Doklad 1 - exspirace *",null,null,null,"Doklad 1 - exspirace",null,null," "]
[null,"Doklad 2 - typ",null,null,null,"Doklad 2 - typ",null,null," "]
[null,"Doklad 2 - číslo",null,null,null,"Doklad 2 - číslo",null,null," "]
[null,"Doklad 2 - exspirace",null,null,null,"Doklad 2 - exspirace",null,null," "]
[]
[null,"Povinný subjekt pro registr  smluv 2) * :",null,null,null,"NE"]
[null,{"$f":"IF(AND(F38=\"\",F21=\"\"),\"Vsechna povinna pole formulare jsou vyplnena\",\"Nejsou vyplnena vsechna povinna pole formulare\")","v":"Nejsou vyplnena vsechna povinna pole formulare"}]
[]
[]
["DOHODA O UKONČENÍ ÚČASTNICKÉ SMLOUVY"]
["ÚČASTNICKÁ SMLOUVA – SMLUVNÍ UJEDNÁNÍ"]
[]
[]
[]
[]
[]
[]
[]
[]
[]
[]
[]
[]
[]
[]
[]
[]
["SOUHLAS  SE"]
["ZPRACOVÁNÍM"]
["OSOBNÍCH"]
["ÚDAJŮ,"]
[" PŘÍMÝ"]
["MARKETING,"]
["ZASÍLÁNÍ"]
["OBCHODNÍCH"]
["SDĚLENÍ"]
[]
[]
[]
[]
[]
[false]
[false]
[false]
[false]
[false]
[false]
[false]
[]
[]
[]
[]
[]
[]
[]
[]
["TMCZ_TAKEOVER_RPA_VBA_03"]
[]
[]
[]
[]
["ZÁVĚREČNÁ"]
["UJEDNÁNÍ"]
[]
[]
[]
[]
[]
[]
[]
[]
[]
[]
[]
[]
[]
[]
[]
[]
[]
[]
[]
["PODPISY    ",null,null,null,null,null,"formulář verze 1.1, platný od 20.12.2021"]
["  Dne:    ",null,null,null,null,null,{"$f":"\"KÓD: \"&IF(OR(zajemce_subjektivita=\"Fyzická osoba podnikatel\",zajemce_subjektivita=\"Právnická osoba\"),LEFT(zajemce_firma,1)&LEFT(zajemce_IC,1)&LEFT(zajemceZAS_jmeno,1)&LEFT(zajemceZAS_prijmeni,1)&LEFT(zajemceZAS_ulice,1)&LEFT(zajemce_cp,1)&LEFT(zajemceZAS_cp,1)&LEFT(zajemceZAS_mesto,1)&LEFT(zajemceZAS_PSC,1)&LEFT(zajemceZAS_nation,1)&LEFT(zajemceZAS_RC,1)&LEFT(zajemceZAS_typ_doklad1,1)&LEFT(zajemceZAS_doklad1,1)&LEFT(zajemceZAS_platnost1,1)&\"-\"&MID(TelCislo1_1,9,1)&MID('Převáděné služby'!C2,8,1)&MID('Převáděné služby'!C2,7,1)&MID('Převáděné služby'!C2,6,1)&MID('Převáděné služby'!C2,5,1)&MID('Převáděné služby'!C2,4,1)&MID('Převáděné služby'!C2,3,1)&MID('Převáděné služby'!C2,2,1)&MID('Převáděné služby'!C2,1,1),RIGHT(zajemce_jmeno,1)&RIGHT(zajemce_prijmeni,1)&RIGHT(zajemce_nation,1)&RIGHT(zajemce_RC,1)&RIGHT(zajemce_typ_doklad1,1)&RIGHT(zajemce_doklad1,1)&RIGHT(zajemce_platnost1,1)&\"-\"&MID('Převáděné služby'!C2,9,1)&MID('Převáděné služby'!C2,8,1)&MID('Převáděné služby'!C2,7,1)&MID('Převáděné služby'!C2,6,1)&MID('Převáděné služby'!C2,5,1)&MID('Převáděné služby'!C2,4,1)&MID('Převáděné služby'!C2,3,1)&MID('Převáděné služby'!C2,2,1)&MID('Převáděné služby'!C2,1,1))","v":"KÓD: -"}]

{"sheet":"Pokyny k vyplňování Nových FS","index":1,"n_rows":0,"n_cols":0,"rows_kept":0,"cut":false,"hidden":false,"merged":[]}

{"sheet":"Nové Fakturační Skupiny","index":2,"n_rows":25,"n_cols":22,"rows_kept":25,"cut":false,"hidden":false,"merged":[[0,10,0,11]]}
["kontrola duplicitního názvu","Název fakturační skupiny 1) *","Jméno/kontakt 2) *","Příjmení/Firma 3)*","Ulice 4)*","číslo popisné 5) *","číslo orientační 6)","Město 7) *","PSČ 8) *","Způsob úhrady 9) *","Číslo účtu (předčíslí / číslo) 10) *",null,"Kód banky 11) *","Limit 12) *","Typ Vyúčtování služeb 13) *","Notifikační e-mail 14) *","Notifikační telefonní číslo 14) *","Zasílat notifikaci o vyúčtování 15)","Typ podrobného výpisu služeb  16)","Kontrola správnosti (povinná pole a duplicity",null,"Vyplňte pouze v případě potřeby vytvořit NOVOU fakturační skupinu pro převáděné  účastnické smlouvy"]
[{"$f":"IF(COUNTIF($B$2:$B$21,B2)>1,\"!\",\"\")","v":""},null,null,null,null,null,null,null,null,null,null,null,null,null,null,null,null,null,null,{"$f":"IF(B2<>\"\",IF(U2<>\"\",\"!\",\"OK\"),\"!\")","v":"!"},{"$f":"IF(AND(B2=\"\",C2=\"\",D2=\"\",E2=\"\",F2=\"\",H2=\"\",I2=\"\",J2=\"\",O2=\"\"),\"\",IF(B2=\"\",\"Název FS! \",\"\")&IF(C2=\"\",\"Jméno/kontakt! \",\"\")&IF(D2=\"\",\"Příjmení/Firma! \",\"\")&IF(E2=\"\",\"Ulice! \",\"\")&IF(F2=\"\",\"Číslo popisné! \",\"\")&IF(H2=\"\",\"Město! \",\"\")&IF(I2=\"\",\"PSČ! \",\"\")&IF(J2=\"\",\"Způsob úhrady! \",\"\")&IF(O2=\"\",\"Typ vyúčtování! \",\"\")&IF(AND(J2=\"I\",L2=\"\",M2=\"\",N2=\"\"),\"Číslo účtu! Kód banky! Limit!\",IF(AND(J2=\"I\",L2=\"\"),\"číslo účtu! \",\"\")&IF(AND(J2=\"I\",M2=\"\"),\"Kód banky! \",\"\")&IF(AND(J2=\"I\",N2=\"\"),\"Limit! \",\"\"))&IF(AND(OR(R2=\"ANO-včetně vyúčt.\",R2=\"ANO-bez vyúčt.\"),P2=\"\"),\"Notifikační e-mail !\",\"\")&IF(AND(J2=\"PP\",O2=\"E\"),\"Nelze kombinovat úhradu poštovní poukázkou s elektronickým vyúčtováním\",\"\")&IF(AND(OR(R2=\"ANO-včetně vyúčt.\",R2=\"ANO-bez vyúčt.\"),O2=\"P\"),\"Papírové vyúčtování nelze notifikovat\",\"\")&IF(AND(O2=\"E\",S2=\"T\"),\"Nelze kombinovat tištěný podrobný výpis s elektronickým vyúčtováním\",\"\")&IF(COUNTIF($B$2:$B$21,B2)>1,\"Název FS musí být jedinečný! \",\"\")&IF(R2=\"ANO\",IF(AND(P2=\"\",Q2=\"\"),\"Vyplňte notifikační e-mail či telefonní číslo! \",\"\"),\"\"))","v":""}]
[{"$f":"IF(COUNTIF($B$2:$B$21,B3)>1,\"!\",\"\")","v":""},null,null,null,null,null,null,null,null,null,null,null,null,null,null,null,null,null,null,{"$f":"IF(B3<>\"\",IF(U3<>\"\",\"!\",\"OK\"),\"!\")","v":"!"},{"$f":"IF(AND(B3=\"\",C3=\"\",D3=\"\",E3=\"\",F3=\"\",H3=\"\",I3=\"\",J3=\"\",O3=\"\"),\"\",IF(B3=\"\",\"Název FS! \",\"\")&IF(C3=\"\",\"Jméno/kontakt! \",\"\")&IF(D3=\"\",\"Příjmení/Firma! \",\"\")&IF(E3=\"\",\"Ulice! \",\"\")&IF(F3=\"\",\"Číslo popisné! \",\"\")&IF(H3=\"\",\"Město! \",\"\")&IF(I3=\"\",\"PSČ! \",\"\")&IF(J3=\"\",\"Způsob úhrady! \",\"\")&IF(O3=\"\",\"Typ vyúčtování! \",\"\")&IF(AND(J3=\"I\",L3=\"\",M3=\"\",N3=\"\"),\"Číslo účtu! Kód banky! Limit!\",IF(AND(J3=\"I\",L3=\"\"),\"číslo účtu! \",\"\")&IF(AND(J3=\"I\",M3=\"\"),\"Kód banky! \",\"\")&IF(AND(J3=\"I\",N3=\"\"),\"Limit! \",\"\"))&IF(AND(OR(R3=\"ANO-včetně vyúčt.\",R3=\"ANO-bez vyúčt.\"),P3=\"\"),\"Notifikační e-mail !\",\"\")&IF(AND(J3=\"PP\",O3=\"E\"),\"Nelze kombinovat úhradu poštovní poukázkou s elektronickým vyúčtováním\",\"\")&IF(AND(OR(R3=\"ANO-včetně vyúčt.\",R3=\"ANO-bez vyúčt.\"),O3=\"P\"),\"Papírové vyúčtování nelze notifikovat\",\"\")&IF(AND(O3=\"E\",S3=\"T\"),\"Nelze kombinovat tištěný podrobný výpis s elektronickým vyúčtováním\",\"\")&IF(COUNTIF($B$2:$B$21,B3)>1,\"Název FS musí být jedinečný! \",\"\")&IF(R3=\"ANO\",IF(AND(P3=\"\",Q3=\"\"),\"Vyplňte notifikační e-mail či telefonní číslo! \",\"\"),\"\"))","v":""}]
["",null,null,null,null,null,null,null,null,null,null,null,null,null,null,null,null,null,null,"!",""]
["",null,null,null,null,null,null,null,null,null,null,null,null,null,null,null,null,null,null,"!",""]
["",null,null,null,null,null,null,null,null,null,null,null,null,null,null,null,null,null,null,"!",""]
["",null,null,null,null,null,null,null,null,null,null,null,null,null,null,null,null,null,null,"!",""]
["",null,null,null,null,null,null,null,null,null,null,null,null,null,null,null,null,null,null,"!",""]
["",null,null,null,null,null,null,null,null,null,null,null,null,null,null,null,null,null,null,"!",""]
["",null,null,null,null,null,null,null,null,null,null,null,null,null,null,null,null,null,null,"!",""]
["",null,null,null,null,null,null,null,null,null,null,null,null,null,null,null,null,null,null,"!",""]
["",null,null,null,null,null,null,null,null,null,null,null,null,null,null,null,null,null,null,"!",""]
["",null,null,null,null,null,null,null,null,null,null,null,null,null,null,null,null,null,null,"!",""]
["",null,null,null,null,null,null,null,null,null,null,null,null,null,null,null,null,null,null,"!",""]
["",null,null,null,null,null,null,null,null,null,null,null,null,null,null,null,null,null,null,"!",""]
["",null,null,null,null,null,null,null,null,null,null,null,null,null,null,null,null,null,null,"!",""]
["",null,null,null,null,null,null,null,null,null,null,null,null,null,null,null,null,null,null,"!",""]
["",null,null,null,null,null,null,null,null,null,null,null,null,null,null,null,null,null,null,"!",""]
["",null,null,null,null,null,null,null,null,null,null,null,null,null,null,null,null,null,null,"!",""]
["",null,null,null,null,null,null,null,null,null,null,null,null,null,null,null,null,null,null,"!",""]
["",null,null,null,null,null,null,null,null,null,null,null,null,null,null,null,null,null,null,"!",""]
[]
[]
[]
[null,null,"TMCZ_TAKEOVER_RPA_VBA_03"]

{"sheet":"Pokyny k vyplňování Přev.služeb","index":3,"n_rows":2,"n_cols":2,"rows_kept":2,"cut":false,"hidden":false,"merged":[[1,1,1,8]]}
["       "]
[" ","Pokyny pro vyplňování záložky Převáděné služby"]

{"sheet":"Převáděné služby","index":4,"n_rows":102,"n_cols":34,"rows_kept":102,"cut":false,"hidden":false,"merged":[[0,16,0,19],[0,12,0,13]]}
[{"$f":"\"Počet stránek k tisku \n\nCelkem: \"&IF(COUNTIF('Nové Fakturační Skupiny'!T2:T21,\"OK\")=0,(ROUNDUP((COUNTA(C:C)-1)/24,0)*2)+4&\" z toho Služby: \"&(ROUNDUP((COUNTA(C:C)-1)/24,0)*2),(ROUNDUP((COUNTA(C:C)-1)/24,0)*2)+6&\" z toho Služby: \"&(ROUNDUP((COUNTA(C:C)-1)/24,0)*2))","v":"Počet stránek k tisku \n\nCelkem: 4 z toho Služby: 0"},"Pořadové číslo ","Převáděné telefonní číslo1)*","První písmeno názvu tarifu","Tarif 2) *","Rodné číslo pro tarif Student 3) ","Sleva z Programu Magenta 1 4)","Termín převodu účastnické smlouvy 5)","Roamingový tarif 6)","EU regulace 7)","Fakturační skupina 8)",null,"Podrobnosti k Fakturační skupině 9) * ",null,"Pořadové číslo ","Převáděné telefonní číslo  1) *","Datové roam. Zvýhodnění  10)",null,null,null,"Data roaming limit 11)","Povolení datových služeb 12)","Datové tarifní zvýhodnění 13)","Povolení navýšení dat. limitu14)","Podrobný výpis služeb 15)","Blokovat Mez. hovory 16)","Multimediální zprávy (MMS) 17)","Souhlas s audiotex a Premium SMS 18)","Souhlas s DMS a SMS platbou 19)","Souhlas s m-platbou 20)","Downloads 21)","Typ Záznamové služby 22)","Heslo pro blokování  (čtyřmístné číslo) 23) ","Volba oprávnění k administraci změn 24)"]
[{"$f":"IF(C2<>\"\",IF(AND(C2=\"\",E2=\"\",M2=\"\",N2=\"\",AG2=\"\"),\"\",IF(C2=\"\",\"Tel. číslo!! \",\"\")&IF(E2=\"\",\"Tarif! \",\"\")&IF(AND(LEFT(E2,3)=\"Můj\",F2=\"\"),\"Porce dat! \",\"\")&IF(OR(AND(M2=\"\",N2=\"\"),AND(M2=\"\",N2=\"_\"),AND(M2<>\"\",N2<>\"\")),\"Fakturační skupina! \",\"\")&IF(AND(COUNTIF($C$2:$C$101,C2)<2,COUNTIF(tarify_kontrola,E2)>0,C2<>\"\",E2<>\"\",AND(OR(M2<>\"\",N2<>\"\"),N2<>\"_\",OR(AND(M2=\"\",N2<>\"\"),AND(M2<>\"\",N2=\"\"))),AG2<>\"\",IF(V2=2,IF(COUNTA(Q2:T2)=0,TRUE,FALSE),TRUE),IF(V2=1,IF(W2=\"\",TRUE,FALSE),TRUE),AND(IF(IFERROR(FIND(\"Z1\",Q2)>0,FALSE),IF(IFERROR(FIND(\"Z1\",R2)=0,TRUE),TRUE,FALSE),TRUE),IF(IFERROR(FIND(\"Z2\",Q2)>0,FALSE),IF(IFERROR(FIND(\"Z2\",S2)=0,TRUE),TRUE,FALSE),TRUE),IF(IFERROR(FIND(\"Z3\",Q2)>0,FALSE),IF(IFERROR(FIND(\"Z3\",T2)=0,TRUE),TRUE,FALSE),TRUE)),IF(IFERROR(SEARCH(\"student\",E2)>0,FALSE),IF(F2<>\"\",TRUE,FALSE),TRUE),COUNTIF(DATA_Services,F2)<2,IF(IFERROR(SEARCH(\"student\",E2)>0,FALSE),IF(G2=\"\",TRUE,FALSE),TRUE)),\"OK\",\"\")&IF(AND(V2=2,COUNTA(Q2:T2)>0),\"Chyba:Blokování roam. dat X dat.roam.zvýhodnění! \",\"\")&IF(AND(V2=1,W2<>\"\"),\" Chyba:Blok.dat X dat.zvýhodnění! \",\"\")&IF(COUNTIF($C$2:$C$101,C2)>1,\"Duplicitní tel. číslo! \",\"\")&IF(OR(AND(IFERROR(FIND(\"Z1\",Q2)>0,FALSE),IFERROR(FIND(\"Z1\",R2)>0,FALSE)),AND(IFERROR(FIND(\"Z2\",Q2)>0,FALSE),IFERROR(FIND(\"Z2\",S2)>0,FALSE)),AND(IFERROR(FIND(\"Z3\",Q2)>0,FALSE),IFERROR(FIND(\"Z3\",T2)>0,FALSE))),\"Roam. zvýh. stejné zóny nelze kombinovat! \",\"\")&IF(AG2=\"\",\"Heslo!! \",\"\"))&(IF(AND(COUNTIF(tarify_kontrola,E2)=0,E2<>\"\"),\"Vyberte tarif ze seznamu! \",\"\")&IF(AND(F2=\"\",IFERROR(SEARCH(\"student\",E2)>0,0)),\"RČ pro tarif Student! \",\"\")&IF(COUNTIF(DATA_Services,F2)>1,\"Duplicitní RČ u Tarifu Student! \",\"\")&IF(AND(G2<>\"\",IFERROR(SEARCH(\"student\",E2)>0,0)),\"M1 slevu nelze kombinovat s tarifem Student! \",\"\")),IF(E2<>\"\",\"Je zadaný jen tarif, zadejte také převáděné telefonní číslo! \",\"\"))","v":""},1,null,null,null,null,null,null,"TR","ANO",null,{"$f":"helpsheet!AO2","v":"zadejte FS: (M)"},null,null,1,{"$f":"C2","v":0},null,null,null,null,null,null,null,"NE","NE","NE","NE","NE","NE","NE"]
["",2,null,null,null,null,null,null,"TR","ANO",null,{"$f":"helpsheet!AO3","v":"zadejte FS: (M)"},null,null,2,{"$f":"C3","v":0},null,null,null,null,null,null,null,"NE","NE","NE","NE","NE","NE","NE"]
["",3,null,null,null,null,null,null,"TR","ANO",null,{"$f":"helpsheet!AO4","v":"zadejte FS: (M)"},null,null,3,{"$f":"C4","v":0},null,null,null,null,null,null,null,"NE","NE","NE","NE","NE","NE","NE"]
["",4,null,null,null,null,null,null,"TR","ANO",null,{"$f":"helpsheet!AO5","v":"zadejte FS: (M)"},null,null,4,{"$f":"C5","v":0},null,null,null,null,null,null,null,"NE","NE","NE","NE","NE","NE","NE"]
["",5,null,null,null,null,null,null,"TR","ANO",null,{"$f":"helpsheet!AO6","v":"zadejte FS: (M)"},null,null,5,{"$f":"C6","v":0},null,null,null,null,null,null,null,"NE","NE","NE","NE","NE","NE","NE"]
["",6,null,null,null,null,null,null,"TR","ANO",null,{"$f":"helpsheet!AO7","v":"zadejte FS: (M)"},null,null,6,{"$f":"C7","v":0},null,null,null,null,null,null,null,"NE","NE","NE","NE","NE","NE","NE"]
["",7,null,null,null,null,null,null,"TR","ANO",null,{"$f":"helpsheet!AO8","v":"zadejte FS: (M)"},null,null,7,{"$f":"C8","v":0},null,null,null,null,null,null,null,"NE","NE","NE","NE","NE","NE","NE"]
["",8,null,null,null,null,null,null,"TR","ANO",null,{"$f":"helpsheet!AO9","v":"zadejte FS: (M)"},null,null,8,{"$f":"C9","v":0},null,null,null,null,null,null,null,"NE","NE","NE","NE","NE","NE","NE"]
["",9,null,null,null,null,null,null,"TR","ANO",null,{"$f":"helpsheet!AO10","v":"zadejte FS: (M)"},null,null,9,{"$f":"C10","v":0},null,null,null,null,null,null,null,"NE","NE","NE","NE","NE","NE","NE"]
["",10,null,null,null,null,null,null,"TR","ANO",null,{"$f":"helpsheet!AO11","v":"zadejte FS: (M)"},null,null,10,{"$f":"C11","v":0},null,null,null,null,null,null,null,"NE","NE","NE","NE","NE","NE","NE"]
["",11,null,null,null,null,null,null,"TR","ANO",null,{"$f":"helpsheet!AO12","v":"zadejte FS: (M)"},null,null,11,{"$f":"C12","v":0},null,null,null,null,null,null,null,"NE","NE","NE","NE","NE","NE","NE"]
["",12,null,null,null,null,null,null,"TR","ANO",null,{"$f":"helpsheet!AO13","v":"zadejte FS: (M)"},null,null,12,{"$f":"C13","v":0},null,null,null,null,null,null,null,"NE","NE","NE","NE","NE","NE","NE"]
["",13,null,null,null,null,null,null,"TR","ANO",null,{"$f":"helpsheet!AO14","v":"zadejte FS: (M)"},null,null,13,{"$f":"C14","v":0},null,null,null,null,null,null,null,"NE","NE","NE","NE","NE","NE","NE"]
["",14,null,null,null,null,null,null,"TR","ANO",null,{"$f":"helpsheet!AO15","v":"zadejte FS: (M)"},null,null,14,{"$f":"C15","v":0},null,null,null,null,null,null,null,"NE","NE","NE","NE","NE","NE","NE"]
["",15,null,null,null,null,null,null,"TR","ANO",null,{"$f":"helpsheet!AO16","v":"zadejte FS: (M)"},null,null,15,{"$f":"C16","v":0},null,null,null,null,null,null,null,"NE","NE","NE","NE","NE","NE","NE"]
["",16,null,null,null,null,null,null,"TR","ANO",null,{"$f":"helpsheet!AO17","v":"zadejte FS: (M)"},null,null,16,{"$f":"C17","v":0},null,null,null,null,null,null,null,"NE","NE","NE","NE","NE","NE","NE"]
["",17,null,null,null,null,null,null,"TR","ANO",null,{"$f":"helpsheet!AO18","v":"zadejte FS: (M)"},null,null,17,{"$f":"C18","v":0},null,null,null,null,null,null,null,"NE","NE","NE","NE","NE","NE","NE"]
["",18,null,null,null,null,null,null,"TR","ANO",null,{"$f":"helpsheet!AO19","v":"zadejte FS: (M)"},null,null,18,{"$f":"C19","v":0},null,null,null,null,null,null,null,"NE","NE","NE","NE","NE","NE","NE"]
["",19,null,null,null,null,null,null,"TR","ANO",null,{"$f":"helpsheet!AO20","v":"zadejte FS: (M)"},null,null,19,{"$f":"C20","v":0},null,null,null,null,null,null,null,"NE","NE","NE","NE","NE","NE","NE"]
["",20,null,null,null,null,null,null,"TR","ANO",null,{"$f":"helpsheet!AO21","v":"zadejte FS: (M)"},null,null,20,{"$f":"C21","v":0},null,null,null,null,null,null,null,"NE","NE","NE","NE","NE","NE","NE"]
["",21,null,null,null,null,null,null,"TR","ANO",null,{"$f":"helpsheet!AO22","v":"zadejte FS: (M)"},null,null,21,{"$f":"C22","v":0},null,null,null,null,null,null,null,"NE","NE","NE","NE","NE","NE","NE"]
["",22,null,null,null,null,null,null,"TR","ANO",null,{"$f":"helpsheet!AO23","v":"zadejte FS: (M)"},null,null,22,{"$f":"C23","v":0},null,null,null,null,null,null,null,"NE","NE","NE","NE","NE","NE","NE"]
["",23,null,null,null,null,null,null,"TR","ANO",null,{"$f":"helpsheet!AO24","v":"zadejte FS: (M)"},null,null,23,{"$f":"C24","v":0},null,null,null,null,null,null,null,"NE","NE","NE","NE","NE","NE","NE"]
["",24,null,null,null,null,null,null,"TR","ANO",null,{"$f":"helpsheet!AO25","v":"zadejte FS: (M)"},null,null,24,{"$f":"C25","v":0},null,null,null,null,null,null,null,"NE","NE","NE","NE","NE","NE","NE"]
["",25,null,null,null,null,null,null,"TR","ANO",null,{"$f":"helpsheet!AO26","v":"zadejte FS: (M)"},null,null,25,{"$f":"C26","v":0},null,null,null,null,null,null,null,"NE","NE","NE","NE","NE","NE","NE"]
["",26,null,null,null,null,null,null,"TR","ANO",null,{"$f":"helpsheet!AO27","v":"zadejte FS: (M)"},null,null,26,{"$f":"C27","v":0},null,null,null,null,null,null,null,"NE","NE","NE","NE","NE","NE","NE"]
["",27,null,null,null,null,null,null,"TR","ANO",null,{"$f":"helpsheet!AO28","v":"zadejte FS: (M)"},null,null,27,{"$f":"C28","v":0},null,null,null,null,null,null,null,"NE","NE","NE","NE","NE","NE","NE"]
["",28,null,null,null,null,null,null,"TR","ANO",null,{"$f":"helpsheet!AO29","v":"zadejte FS: (M)"},null,null,28,{"$f":"C29","v":0},null,null,null,null,null,null,null,"NE","NE","NE","NE","NE","NE","NE"]
["",29,null,null,null,null,null,null,"TR","ANO",null,{"$f":"helpsheet!AO30","v":"zadejte FS: (M)"},null,null,29,{"$f":"C30","v":0},null,null,null,null,null,null,null,"NE","NE","NE","NE","NE","NE","NE"]
["",30,null,null,null,null,null,null,"TR","ANO",null,{"$f":"helpsheet!AO31","v":"zadejte FS: (M)"},null,null,30,{"$f":"C31","v":0},null,null,null,null,null,null,null,"NE","NE","NE","NE","NE","NE","NE"]
["",31,null,null,null,null,null,null,"TR","ANO",null,{"$f":"helpsheet!AO32","v":"zadejte FS: (M)"},null,null,31,{"$f":"C32","v":0},null,null,null,null,null,null,null,"NE","NE","NE","NE","NE","NE","NE"]
["",32,null,null,null,null,null,null,"TR","ANO",null,{"$f":"helpsheet!AO33","v":"zadejte FS: (M)"},null,null,32,{"$f":"C33","v":0},null,null,null,null,null,null,null,"NE","NE","NE","NE","NE","NE","NE"]
[{"$f":"IF(C34<>\"\",IF(AND(C34=\"\",E34=\"\",M34=\"\",N34=\"\",AG34=\"\"),\"\",IF(C34=\"\",\"Tel. číslo!! \",\"\")&IF(E34=\"\",\"Tarif! \",\"\")&IF(AND(LEFT(E34,3)=\"Můj\",F34=\"\"),\"Porce dat! \",\"\")&IF(OR(AND(M34=\"\",N34=\"\"),AND(M34=\"\",N34=\"_\"),AND(M34<>\"\",N34<>\"\")),\"Fakturační skupina! \",\"\")&IF(AND(COUNTIF($C$2:$C$101,C34)<2,COUNTIF(tarify_kontrola,E34)>0,C34<>\"\",E34<>\"\",AND(OR(M34<>\"\",N34<>\"\"),N34<>\"_\",OR(AND(M34=\"\",N34<>\"\"),AND(M34<>\"\",N34=\"\"))),AG34<>\"\",IF(V34=2,IF(COUNTA(Q34:T34)=0,TRUE,FALSE),TRUE),IF(V34=1,IF(W34=\"\",TRUE,FALSE),TRUE),AND(IF(IFERROR(FIND(\"Z1\",Q34)>0,FALSE),IF(IFERROR(FIND(\"Z1\",R34)=0,TRUE),TRUE,FALSE),TRUE),IF(IFERROR(FIND(\"Z2\",Q34)>0,FALSE),IF(IFERROR(FIND(\"Z2\",S34)=0,TRUE),TRUE,FALSE),TRUE),IF(IFERROR(FIND(\"Z3\",Q34)>0,FALSE),IF(IFERROR(FIND(\"Z3\",T34)=0,TRUE),TRUE,FALSE),TRUE)),IF(IFERROR(SEARCH(\"student\",E34)>0,FALSE),IF(F34<>\"\",TRUE,FALSE),TRUE),COUNTIF(DATA_Services,F34)<2,IF(IFERROR(SEARCH(\"student\",E34)>0,FALSE),IF(G34=\"\",TRUE,FALSE),TRUE)),\"OK\",\"\")&IF(AND(V34=2,COUNTA(Q34:T34)>0),\"Chyba:Blokování roam. dat X dat.roam.zvýhodnění! \",\"\")&IF(AND(V34=1,W34<>\"\"),\" Chyba:Blok.dat X dat.zvýhodnění! \",\"\")&IF(COUNTIF($C$2:$C$101,C34)>1,\"Duplicitní tel. číslo! \",\"\")&IF(OR(AND(IFERROR(FIND(\"Z1\",Q34)>0,FALSE),IFERROR(FIND(\"Z1\",R34)>0,FALSE)),AND(IFERROR(FIND(\"Z2\",Q34)>0,FALSE),IFERROR(FIND(\"Z2\",S34)>0,FALSE)),AND(IFERROR(FIND(\"Z3\",Q34)>0,FALSE),IFERROR(FIND(\"Z3\",T34)>0,FALSE))),\"Roam. zvýh. stejné zóny nelze kombinovat! \",\"\")&IF(AG34=\"\",\"Heslo!! \",\"\"))&(IF(AND(COUNTIF(tarify_kontrola,E34)=0,E34<>\"\"),\"Vyberte tarif ze seznamu! \",\"\")&IF(AND(F34=\"\",IFERROR(SEARCH(\"student\",E34)>0,0)),\"RČ pro tarif Student! \",\"\")&IF(COUNTIF(DATA_Services,F34)>1,\"Duplicitní RČ u Tarifu Student! \",\"\")&IF(AND(G34<>\"\",IFERROR(SEARCH(\"student\",E34)>0,0)),\"M1 slevu nelze kombinovat s tarifem Student! \",\"\")),IF(E34<>\"\",\"Je zadaný jen tarif, zadejte také převáděné telefonní číslo! \",\"\"))","v":""},33,null,null,null,null,null,null,"TR","ANO",null,{"$f":"helpsheet!AO34","v":"zadejte FS: (M)"},null,null,33,{"$f":"C34","v":0},null,null,null,null,null,null,null,"NE","NE","NE","NE","NE","NE","NE"]
["",34,null,null,null,null,null,null,"TR","ANO",null,{"$f":"helpsheet!AO35","v":"zadejte FS: (M)"},null,null,34,{"$f":"C35","v":0},null,null,null,null,null,null,null,"NE","NE","NE","NE","NE","NE","NE"]
["",35,null,null,null,null,null,null,"TR","ANO",null,{"$f":"helpsheet!AO36","v":"zadejte FS: (M)"},null,null,35,{"$f":"C36","v":0},null,null,null,null,null,null,null,"NE","NE","NE","NE","NE","NE","NE"]
["",36,null,null,null,null,null,null,"TR","ANO",null,{"$f":"helpsheet!AO37","v":"zadejte FS: (M)"},null,null,36,{"$f":"C37","v":0},null,null,null,null,null,null,null,"NE","NE","NE","NE","NE","NE","NE"]
["",37,null,null,null,null,null,null,"TR","ANO",null,{"$f":"helpsheet!AO38","v":"zadejte FS: (M)"},null,null,37,{"$f":"C38","v":0},null,null,null,null,null,null,null,"NE","NE","NE","NE","NE","NE","NE"]
["",38,null,null,null,null,null,null,"TR","ANO",null,{"$f":"helpsheet!AO39","v":"zadejte FS: (M)"},null,null,38,{"$f":"C39","v":0},null,null,null,null,null,null,null,"NE","NE","NE","NE","NE","NE","NE"]
["",39,null,null,null,null,null,null,"TR","ANO",null,{"$f":"helpsheet!AO40","v":"zadejte FS: (M)"},null,null,39,{"$f":"C40","v":0},null,null,null,null,null,null,null,"NE","NE","NE","NE","NE","NE","NE"]
["",40,null,null,null,null,null,null,"TR","ANO",null,{"$f":"helpsheet!AO41","v":"zadejte FS: (M)"},null,null,40,{"$f":"C41","v":0},null,null,null,null,null,null,null,"NE","NE","NE","NE","NE","NE","NE"]
["",41,null,null,null,null,null,null,"TR","ANO",null,{"$f":"helpsheet!AO42","v":"zadejte FS: (M)"},null,null,41,{"$f":"C42","v":0},null,null,null,null,null,null,null,"NE","NE","NE","NE","NE","NE","NE"]
["",42,null,null,null,null,null,null,"TR","ANO",null,{"$f":"helpsheet!AO43","v":"zadejte FS: (M)"},null,null,42,{"$f":"C43","v":0},null,null,null,null,null,null,null,"NE","NE","NE","NE","NE","NE","NE"]
["",43,null,null,null,null,null,null,"TR","ANO",null,{"$f":"helpsheet!AO44","v":"zadejte FS: (M)"},null,null,43,{"$f":"C44","v":0},null,null,null,null,null,null,null,"NE","NE","NE","NE","NE","NE","NE"]
["",44,null,null,null,null,null,null,"TR","ANO",null,{"$f":"helpsheet!AO45","v":"zadejte FS: (M)"},null,null,44,{"$f":"C45","v":0},null,null,null,null,null,null,null,"NE","NE","NE","NE","NE","NE","NE"]
["",45,null,null,null,null,null,null,"TR","ANO",null,{"$f":"helpsheet!AO46","v":"zadejte FS: (M)"},null,null,45,{"$f":"C46","v":0},null,null,null,null,null,null,null,"NE","NE","NE","NE","NE","NE","NE"]
["",46,null,null,null,null,null,null,"TR","ANO",null,{"$f":"helpsheet!AO47","v":"zadejte FS: (M)"},null,null,46,{"$f":"C47","v":0},null,null,null,null,null,null,null,"NE","NE","NE","NE","NE","NE","NE"]
["",47,null,null,null,null,null,null,"TR","ANO",null,{"$f":"helpsheet!AO48","v":"zadejte FS: (M)"},null,null,47,{"$f":"C48","v":0},null,null,null,null,null,null,null,"NE","NE","NE","NE","NE","NE","NE"]
["",48,null,null,null,null,null,null,"TR","ANO",null,{"$f":"helpsheet!AO49","v":"zadejte FS: (M)"},null,null,48,{"$f":"C49","v":0},null,null,null,null,null,null,null,"NE","NE","NE","NE","NE","NE","NE"]
["",49,null,null,null,null,null,null,"TR","ANO",null,{"$f":"helpsheet!AO50","v":"zadejte FS: (M)"},null,null,49,{"$f":"C50","v":0},null,null,null,null,null,null,null,"NE","NE","NE","NE","NE","NE","NE"]
["",50,null,null,null,null,null,null,"TR","ANO",null,{"$f":"helpsheet!AO51","v":"zadejte FS: (M)"},null,null,50,{"$f":"C51","v":0},null,null,null,null,null,null,null,"NE","NE","NE","NE","NE","NE","NE"]
["",51,null,null,null,null,null,null,"TR","ANO",null,{"$f":"helpsheet!AO52","v":"zadejte FS: (M)"},null,null,51,{"$f":"C52","v":0},null,null,null,null,null,null,null,"NE","NE","NE","NE","NE","NE","NE"]
["",52,null,null,null,null,null,null,"TR","ANO",null,{"$f":"helpsheet!AO53","v":"zadejte FS: (M)"},null,null,52,{"$f":"C53","v":0},null,null,null,null,null,null,null,"NE","NE","NE","NE","NE","NE","NE"]
["",53,null,null,null,null,null,null,"TR","ANO",null,{"$f":"helpsheet!AO54","v":"zadejte FS: (M)"},null,null,53,{"$f":"C54","v":0},null,null,null,null,null,null,null,"NE","NE","NE","NE","NE","NE","NE"]
["",54,null,null,null,null,null,null,null,"ANO",null,{"$f":"helpsheet!AO55","v":"zadejte FS: (M)"},null,null,54,{"$f":"C55","v":0},null,null,null,null,null,null,null,"NE","NE","NE","NE","NE","NE","NE"]
["",55,null,null,null,null,null,null,null,"ANO",null,{"$f":"helpsheet!AO56","v":"zadejte FS: (M)"},null,null,55,{"$f":"C56","v":0},null,null,null,null,null,null,null,"NE","NE","NE","NE","NE","NE","NE"]
["",56,null,null,null,null,null,null,null,"ANO",null,{"$f":"helpsheet!AO57","v":"zadejte FS: (M)"},null,null,56,{"$f":"C57","v":0},null,null,null,null,null,null,null,"NE","NE","NE","NE","NE","NE","NE"]
["",57,null,null,null,null,null,null,null,"ANO",null,{"$f":"helpsheet!AO58","v":"zadejte FS: (M)"},null,null,57,{"$f":"C58","v":0},null,null,null,null,null,null,null,"NE","NE","NE","NE","NE","NE","NE"]
["",58,null,null,null,null,null,null,null,"ANO",null,{"$f":"helpsheet!AO59","v":"zadejte FS: (M)"},null,null,58,{"$f":"C59","v":0},null,null,null,null,null,null,null,"NE","NE","NE","NE","NE","NE","NE"]
["",59,null,null,null,null,null,null,null,"ANO",null,{"$f":"helpsheet!AO60","v":"zadejte FS: (M)"},null,null,59,{"$f":"C60","v":0},null,null,null,null,null,null,null,"NE","NE","NE","NE","NE","NE","NE"]
["",60,null,null,null,null,null,null,null,"ANO",null,{"$f":"helpsheet!AO61","v":"zadejte FS: (M)"},null,null,60,{"$f":"C61","v":0},null,null,null,null,null,null,null,"NE","NE","NE","NE","NE","NE","NE"]
["",61,null,null,null,null,null,null,null,"ANO",null,{"$f":"helpsheet!AO62","v":"zadejte FS: (M)"},null,null,61,{"$f":"C62","v":0},null,null,null,null,null,null,null,"NE","NE","NE","NE","NE","NE","NE"]
["",62,null,null,null,null,null,null,null,"ANO",null,{"$f":"helpsheet!AO63","v":"zadejte FS: (M)"},null,null,62,{"$f":"C63","v":0},null,null,null,null,null,null,null,"NE","NE","NE","NE","NE","NE","NE"]
["",63,null,null,null,null,null,null,null,"ANO",null,{"$f":"helpsheet!AO64","v":"zadejte FS: (M)"},null,null,63,{"$f":"C64","v":0},null,null,null,null,null,null,null,"NE","NE","NE","NE","NE","NE","NE"]
["",64,null,null,null,null,null,null,null,"ANO",null,{"$f":"helpsheet!AO65","v":"zadejte FS: (M)"},null,null,64,{"$f":"C65","v":0},null,null,null,null,null,null,null,"NE","NE","NE","NE","NE","NE","NE"]
[{"$f":"IF(C66<>\"\",IF(AND(C66=\"\",E66=\"\",M66=\"\",N66=\"\",AG66=\"\"),\"\",IF(C66=\"\",\"Tel. číslo!! \",\"\")&IF(E66=\"\",\"Tarif! \",\"\")&IF(AND(LEFT(E66,3)=\"Můj\",F66=\"\"),\"Porce dat! \",\"\")&IF(OR(AND(M66=\"\",N66=\"\"),AND(M66=\"\",N66=\"_\"),AND(M66<>\"\",N66<>\"\")),\"Fakturační skupina! \",\"\")&IF(AND(COUNTIF($C$2:$C$101,C66)<2,COUNTIF(tarify_kontrola,E66)>0,C66<>\"\",E66<>\"\",AND(OR(M66<>\"\",N66<>\"\"),N66<>\"_\",OR(AND(M66=\"\",N66<>\"\"),AND(M66<>\"\",N66=\"\"))),AG66<>\"\",IF(V66=2,IF(COUNTA(Q66:T66)=0,TRUE,FALSE),TRUE),IF(V66=1,IF(W66=\"\",TRUE,FALSE),TRUE),AND(IF(IFERROR(FIND(\"Z1\",Q66)>0,FALSE),IF(IFERROR(FIND(\"Z1\",R66)=0,TRUE),TRUE,FALSE),TRUE),IF(IFERROR(FIND(\"Z2\",Q66)>0,FALSE),IF(IFERROR(FIND(\"Z2\",S66)=0,TRUE),TRUE,FALSE),TRUE),IF(IFERROR(FIND(\"Z3\",Q66)>0,FALSE),IF(IFERROR(FIND(\"Z3\",T66)=0,TRUE),TRUE,FALSE),TRUE)),IF(IFERROR(SEARCH(\"student\",E66)>0,FALSE),IF(F66<>\"\",TRUE,FALSE),TRUE),COUNTIF(DATA_Services,F66)<2,IF(IFERROR(SEARCH(\"student\",E66)>0,FALSE),IF(G66=\"\",TRUE,FALSE),TRUE)),\"OK\",\"\")&IF(AND(V66=2,COUNTA(Q66:T66)>0),\"Chyba:Blokování roam. dat X dat.roam.zvýhodnění! \",\"\")&IF(AND(V66=1,W66<>\"\"),\" Chyba:Blok.dat X dat.zvýhodnění! \",\"\")&IF(COUNTIF($C$2:$C$101,C66)>1,\"Duplicitní tel. číslo! \",\"\")&IF(OR(AND(IFERROR(FIND(\"Z1\",Q66)>0,FALSE),IFERROR(FIND(\"Z1\",R66)>0,FALSE)),AND(IFERROR(FIND(\"Z2\",Q66)>0,FALSE),IFERROR(FIND(\"Z2\",S66)>0,FALSE)),AND(IFERROR(FIND(\"Z3\",Q66)>0,FALSE),IFERROR(FIND(\"Z3\",T66)>0,FALSE))),\"Roam. zvýh. stejné zóny nelze kombinovat! \",\"\")&IF(AG66=\"\",\"Heslo!! \",\"\"))&(IF(AND(COUNTIF(tarify_kontrola,E66)=0,E66<>\"\"),\"Vyberte tarif ze seznamu! \",\"\")&IF(AND(F66=\"\",IFERROR(SEARCH(\"student\",E66)>0,0)),\"RČ pro tarif Student! \",\"\")&IF(COUNTIF(DATA_Services,F66)>1,\"Duplicitní RČ u Tarifu Student! \",\"\")&IF(AND(G66<>\"\",IFERROR(SEARCH(\"student\",E66)>0,0)),\"M1 slevu nelze kombinovat s tarifem Student! \",\"\")),IF(E66<>\"\",\"Je zadaný jen tarif, zadejte také převáděné telefonní číslo! \",\"\"))","v":""},65,null,null,null,null,null,null,null,"ANO",null,{"$f":"helpsheet!AO66","v":"zadejte FS: (M)"},null,null,65,{"$f":"C66","v":0},null,null,null,null,null,null,null,"NE","NE","NE","NE","NE","NE","NE"]
["",66,null,null,null,null,null,null,null,"ANO",null,{"$f":"helpsheet!AO67","v":"zadejte FS: (M)"},null,null,66,{"$f":"C67","v":0},null,null,null,null,null,null,null,"NE","NE","NE","NE","NE","NE","NE"]
["",67,null,null,null,null,null,null,null,"ANO",null,{"$f":"helpsheet!AO68","v":"zadejte FS: (M)"},null,null,67,{"$f":"C68","v":0},null,null,null,null,null,null,null,"NE","NE","NE","NE","NE","NE","NE"]
["",68,null,null,null,null,null,null,null,"ANO",null,{"$f":"helpsheet!AO69","v":"zadejte FS: (M)"},null,null,68,{"$f":"C69","v":0},null,null,null,null,null,null,null,"NE","NE","NE","NE","NE","NE","NE"]
["",69,null,null,null,null,null,null,null,"ANO",null,{"$f":"helpsheet!AO70","v":"zadejte FS: (M)"},null,null,69,{"$f":"C70","v":0},null,null,null,null,null,null,null,"NE","NE","NE","NE","NE","NE","NE"]
["",70,null,null,null,null,null,null,null,"ANO",null,{"$f":"helpsheet!AO71","v":"zadejte FS: (M)"},null,null,70,{"$f":"C71","v":0},null,null,null,null,null,null,null,"NE","NE","NE","NE","NE","NE","NE"]
["",71,null,null,null,null,null,null,null,"ANO",null,{"$f":"helpsheet!AO72","v":"zadejte FS: (M)"},null,null,71,{"$f":"C72","v":0},null,null,null,null,null,null,null,"NE","NE","NE","NE","NE","NE","NE"]
["",72,null,null,null,null,null,null,null,"ANO",null,{"$f":"helpsheet!AO73","v":"zadejte FS: (M)"},null,null,72,{"$f":"C73","v":0},null,null,null,null,null,null,null,"NE","NE","NE","NE","NE","NE","NE"]
["",73,null,null,null,null,null,null,null,"ANO",null,{"$f":"helpsheet!AO74","v":"zadejte FS: (M)"},null,null,73,{"$f":"C74","v":0},null,null,null,null,null,null,null,"NE","NE","NE","NE","NE","NE","NE"]
["",74,null,null,null,null,null,null,null,"ANO",null,{"$f":"helpsheet!AO75","v":"zadejte FS: (M)"},null,null,74,{"$f":"C75","v":0},null,null,null,null,null,null,null,"NE","NE","NE","NE","NE","NE","NE"]
["",75,null,null,null,null,null,null,null,"ANO",null,{"$f":"helpsheet!AO76","v":"zadejte FS: (M)"},null,null,75,{"$f":"C76","v":0},null,null,null,null,null,null,null,"NE","NE","NE","NE","NE","NE","NE"]
["",76,null,null,null,null,null,null,null,"ANO",null,{"$f":"helpsheet!AO77","v":"zadejte FS: (M)"},null,null,76,{"$f":"C77","v":0},null,null,null,null,null,null,null,"NE","NE","NE","NE","NE","NE","NE"]
["",77,null,null,null,null,null,null,null,"ANO",null,{"$f":"helpsheet!AO78","v":"zadejte FS: (M)"},null,null,77,{"$f":"C78","v":0},null,null,null,null,null,null,null,"NE","NE","NE","NE","NE","NE","NE"]
["",78,null,null,null,null,null,null,null,"ANO",null,{"$f":"helpsheet!AO79","v":"zadejte FS: (M)"},null,null,78,{"$f":"C79","v":0},null,null,null,null,null,null,null,"NE","NE","NE","NE","NE","NE","NE"]
["",79,null,null,null,null,null,null,null,"ANO",null,{"$f":"helpsheet!AO80","v":"zadejte FS: (M)"},null,null,79,{"$f":"C80","v":0},null,null,null,null,null,null,null,"NE","NE","NE","NE","NE","NE","NE"]
["",80,null,null,null,null,null,null,null,"ANO",null,{"$f":"helpsheet!AO81","v":"zadejte FS: (M)"},null,null,80,{"$f":"C81","v":0},null,null,null,null,null,null,null,"NE","NE","NE","NE","NE","NE","NE"]
["",81,null,null,null,null,null,null,null,"ANO",null,{"$f":"helpsheet!AO82","v":"zadejte FS: (M)"},null,null,81,{"$f":"C82","v":0},null,null,null,null,null,null,null,"NE","NE","NE","NE","NE","NE","NE"]
["",82,null,null,null,null,null,null,null,"ANO",null,{"$f":"helpsheet!AO83","v":"zadejte FS: (M)"},null,null,82,{"$f":"C83","v":0},null,null,null,null,null,null,null,"NE","NE","NE","NE","NE","NE","NE"]
["",83,null,null,null,null,null,null,null,"ANO",null,{"$f":"helpsheet!AO84","v":"zadejte FS: (M)"},null,null,83,{"$f":"C84","v":0},null,null,null,null,null,null,null,"NE","NE","NE","NE","NE","NE","NE"]
["",84,null,null,null,null,null,null,null,"ANO",null,{"$f":"helpsheet!AO85","v":"zadejte FS: (M)"},null,null,84,{"$f":"C85","v":0},null,null,null,null,null,null,null,"NE","NE","NE","NE","NE","NE","NE"]
["",85,null,null,null,null,null,null,null,"ANO",null,{"$f":"helpsheet!AO86","v":"zadejte FS: (M)"},null,null,85,{"$f":"C86","v":0},null,null,null,null,null,null,null,"NE","NE","NE","NE","NE","NE","NE"]
["",86,null,null,null,null,null,null,null,"ANO",null,{"$f":"helpsheet!AO87","v":"zadejte FS: (M)"},null,null,86,{"$f":"C87","v":0},null,null,null,null,null,null,null,"NE","NE","NE","NE","NE","NE","NE"]
["",87,null,null,null,null,null,null,null,"ANO",null,{"$f":"helpsheet!AO88","v":"zadejte FS: (M)"},null,null,87,{"$f":"C88","v":0},null,null,null,null,null,null,null,"NE","NE","NE","NE","NE","NE","NE"]
["",88,null,null,null,null,null,null,null,"ANO",null,{"$f":"helpsheet!AO89","v":"zadejte FS: (M)"},null,null,88,{"$f":"C89","v":0},null,null,null,null,null,null,null,"NE","NE","NE","NE","NE","NE","NE"]
["",89,null,null,null,null,null,null,null,"ANO",null,{"$f":"helpsheet!AO90","v":"zadejte FS: (M)"},null,null,89,{"$f":"C90","v":0},null,null,null,null,null,null,null,"NE","NE","NE","NE","NE","NE","NE"]
["",90,null,null,null,null,null,null,null,"ANO",null,{"$f":"helpsheet!AO91","v":"zadejte FS: (M)"},null,null,90,{"$f":"C91","v":0},null,null,null,null,null,null,null,"NE","NE","NE","NE","NE","NE","NE"]
["",91,null,null,null,null,null,null,null,"ANO",null,{"$f":"helpsheet!AO92","v":"zadejte FS: (M)"},null,null,91,{"$f":"C92","v":0},null,null,null,null,null,null,null,"NE","NE","NE","NE","NE","NE","NE"]
["",92,null,null,null,null,null,null,null,"ANO",null,{"$f":"helpsheet!AO93","v":"zadejte FS: (M)"},null,null,92,{"$f":"C93","v":0},null,null,null,null,null,null,null,"NE","NE","NE","NE","NE","NE","NE"]
["",93,null,null,null,null,null,null,null,"ANO",null,{"$f":"helpsheet!AO94","v":"zadejte FS: (M)"},null,null,93,{"$f":"C94","v":0},null,null,null,null,null,null,null,"NE","NE","NE","NE","NE","NE","NE"]
["",94,null,null,null,null,null,null,null,"ANO",null,{"$f":"helpsheet!AO95","v":"zadejte FS: (M)"},null,null,94,{"$f":"C95","v":0},null,null,null,null,null,null,null,"NE","NE","NE","NE","NE","NE","NE"]
["",95,null,null,null,null,null,null,null,"ANO",null,{"$f":"helpsheet!AO96","v":"zadejte FS: (M)"},null,null,95,{"$f":"C96","v":0},null,null,null,null,null,null,null,"NE","NE","NE","NE","NE","NE","NE"]
["",96,null,null,null,null,null,null,null,"ANO",null,{"$f":"helpsheet!AO97","v":"zadejte FS: (M)"},null,null,96,{"$f":"C97","v":0},null,null,null,null,null,null,null,"NE","NE","NE","NE","NE","NE","NE"]
["",97,null,null,null,null,null,null,null,"ANO",null,{"$f":"helpsheet!AO98","v":"zadejte FS: (M)"},null,null,97,{"$f":"C98","v":0},null,null,null,null,null,null,null,"NE","NE","NE","NE","NE","NE","NE"]
["",98,null,null,null,null,null,null,null,"ANO",null,{"$f":"helpsheet!AO99","v":"zadejte FS: (M)"},null,null,98,{"$f":"C99","v":0},null,null,null,null,null,null,null,"NE","NE","NE","NE","NE","NE","NE"]
["",99,null,null,null,null,null,null,null,"ANO",null,{"$f":"helpsheet!AO100","v":"zadejte FS: (M)"},null,null,99,{"$f":"C100","v":0},null,null,null,null,null,null,null,"NE","NE","NE","NE","NE","NE","NE"]
["",100,null,null,null,null,null,null,null,"ANO",null,{"$f":"helpsheet!AO101","v":"zadejte FS: (M)"},null,null,100,{"$f":"C101","v":0},null,null,null,null,null,null,null,"NE","NE","NE","NE","NE","NE","NE"]
[null,"TMCZ_TAKEOVER_RPA_VBA_03"]

{"sheet":"helpsheet","index":5,"n_rows":1155,"n_cols":48,"rows_kept":1155,"cut":false,"hidden":true,"merged":[[0,9,0,12],[0,35,0,39]]}
["OPTIONS BAR tab 1:","Příloha 1 ","Kategorie tarifu ) *",null,null,"Tarif 6 ) *","Seznam tarifů datová část","množství dat datová část","Roamingový tarif 8)","Datové roam. Zvýhodnění  10)",null,null,null,"Fakturační skupina 25) *","Tarif validace","Data roaming limit 11)","Povolení datových služeb 12)","Datové tarifní zvýhodnění 13)","Podrobný výpis služeb 15)","Downloads 21)","Typ Záznamové služby 22)","OPTIONS BAR tab 2:","Způsob úhrady 9) *","Kód banky 11)","Typ Vyúčtování služeb 13) *","Zasílat notifikaci o vyúčtování 15)","VALIDATION - ZAJEMCE:","EPP slevy","VALIDATION - PRILOHA 2 :\nPP","BÚ","I","PVH","Result","final with duplicity check",null,null,null,null,null,null,"validace FS NEPŘESOUVAT, MUSÍ BÝT V AO !!!","validace FS z OK skupin ","právní subjektivita","Autorizace účastníka","Státní příslušnost","Typ dokladu 1","Typ dokladu 2","Volba oprávnění k administraci změn 26)"]
[null,"ANO","Fyzicka osoba podnikatel","B","BFyzicka osoba podnikatel","1 GB Plus","Happy Partner","Není k dispozici","TR","DRE 10","TSR Z1 5 MB","TSR Z2 5 MB","TSR Z3 5 MB","S",{"$f":"AND(FC_zajemce<>\"\",OR(zajemce_subjektivita=\"Fyzická osoba podnikatel\",zajemce_subjektivita=\"Právnická osoba\",))","v":false},"D1",1,"MI 150 MB","E",1,"H",null,"PP","0100","P","NE",null,0.05,{"$f":"OR('Nové Fakturační Skupiny'!D2=\"\",'Nové Fakturační Skupiny'!E2=\"\",'Nové Fakturační Skupiny'!F2=\"\",'Nové Fakturační Skupiny'!H2=\"\",'Nové Fakturační Skupiny'!I2=\"\",'Nové Fakturační Skupiny'!J2=\"\",'Nové Fakturační Skupiny'!O2=\"\",TypVyuctSluzeb_1=\"E\")","v":true},{"$f":"OR('Nové Fakturační Skupiny'!D2=\"\",'Nové Fakturační Skupiny'!E2=\"\",'Nové Fakturační Skupiny'!F2=\"\",'Nové Fakturační Skupiny'!H2=\"\",'Nové Fakturační Skupiny'!I2=\"\",'Nové Fakturační Skupiny'!J2=\"\",'Nové Fakturační Skupiny'!O2=\"\")","v":true},{"$f":"OR('Nové Fakturační Skupiny'!D2=\"\",'Nové Fakturační Skupiny'!E2=\"\",'Nové Fakturační Skupiny'!F2=\"\",'Nové Fakturační Skupiny'!H2=\"\",'Nové Fakturační Skupiny'!I2=\"\",'Nové Fakturační Skupiny'!J2=\"\",'Nové Fakturační Skupiny'!L2=\"\",'Nové Fakturační Skupiny'!M2=\"\",'Nové Fakturační Skupiny'!N2=\"\",'Nové Fakturační Skupiny'!O2=\"\")","v":true},{"$f":"OR(AND(TypVyuctSluzeb_1=\"E\",BA_PVH_1=\"T\"),AND(IFERROR(SEARCH(\"ANO\",ZasilatEmail_1),\"\") = 1,TypVyuctSluzeb_1 = \"P\"),AND(IFERROR(SEARCH(\"ANO\",ZasilatEmail_1),\"\") = 1,TypVyuctSluzeb_1 = \"E\",Email_1 = \"\"))","v":false},{"$f":"IF(IF(ZpusobUhrady_1=\"PP\",IF(AC2=FALSE,\"OK\",\"!\"),IF(ZpusobUhrady_1=\"BÚ\",IF(AD2=FALSE,\"OK\",\"!\"),IF(ZpusobUhrady_1=\"I\",IF(AE2=FALSE,\"OK\",\"!\"))))=\"OK\",\"OK\",\"!\")","v":"!"},{"$f":"IF(AND(COUNTIF('Nové Fakturační Skupiny'!$B$2:$B$21,'Nové Fakturační Skupiny'!B2)=1),AG2,\"!\")","v":"!"},null,{"$f":"VLOOKUP(HesloProBLok_1,AL2:AM12,2,0)","v":{"$error":"#NAME?"}},{"$f":"IF(ISERROR(AJ2)=TRUE,\"OK\",\"NOK\")","v":"OK"},"1234","!",{"$f":"IF(AK2=\"OK\",\"\",\"volte jinou kombinaci\")","v":""},{"$f":"IF('Převáděné služby'!K2 = \"N\",\"vyberte FS (N)\", \"zadejte FS: (M)\")","v":"zadejte FS: (M)"},{"$f":"IF(AH2=\"OK\",NazevFS_1,\"_\")","v":"_"},"Fyzická osoba","Podpisem formuláře","Česká republika","Občanský průkaz","Cestovní pas ČR (zelený)","Standardní"]
[null,"NE","Fyzicka osoba podnikatel","C","BFyzicka osoba podnikatel","1 GB Plus s výhodou","Happy Partner bez závazku","Není k dispozici","TRS","DRE 15","TSR Z1 10 MB","TSR Z2 10 MB","TSR Z3 10 MB","N",null,"D2",2,"MI 400 MB","T",2,"R",null,"BÚ","0300","E","ANO",null,0.1,{"$f":"OR('Nové Fakturační Skupiny'!D3=\"\",'Nové Fakturační Skupiny'!E3=\"\",'Nové Fakturační Skupiny'!F3=\"\",'Nové Fakturační Skupiny'!H3=\"\",'Nové Fakturační Skupiny'!I3=\"\",'Nové Fakturační Skupiny'!J3=\"\",'Nové Fakturační Skupiny'!O3=\"\",TypVyuctSluzeb_2=\"E\")","v":true},{"$f":"OR('Nové Fakturační Skupiny'!D3=\"\",'Nové Fakturační Skupiny'!E3=\"\",'Nové Fakturační Skupiny'!F3=\"\",'Nové Fakturační Skupiny'!H3=\"\",'Nové Fakturační Skupiny'!I3=\"\",'Nové Fakturační Skupiny'!J3=\"\",'Nové Fakturační Skupiny'!O3=\"\")","v":true},{"$f":"OR('Nové Fakturační Skupiny'!D3=\"\",'Nové Fakturační Skupiny'!E3=\"\",'Nové Fakturační Skupiny'!F3=\"\",'Nové Fakturační Skupiny'!H3=\"\",'Nové Fakturační Skupiny'!I3=\"\",'Nové Fakturační Skupiny'!J3=\"\",'Nové Fakturační Skupiny'!L3=\"\",'Nové Fakturační Skupiny'!M3=\"\",'Nové Fakturační Skupiny'!N3=\"\",'Nové Fakturační Skupiny'!O3=\"\")","v":true},{"$f":"OR(AND(TypVyuctSluzeb_2=\"E\",BA_PVH_2=\"T\"),AND(IFERROR(SEARCH(\"ANO\",ZasilatEmail_2),\"\") = 1,TypVyuctSluzeb_2 = \"P\"),AND(IFERROR(SEARCH(\"ANO\",ZasilatEmail_2),\"\") = 1,TypVyuctSluzeb_2 = \"E\",Email_2 = \"\"))","v":false},{"$f":"IF(IF(ZpusobUhrady_2=\"PP\",IF(AC3=FALSE,\"OK\",\"!\"),IF(ZpusobUhrady_2=\"BÚ\",IF(AD3=FALSE,\"OK\",\"!\"),IF(ZpusobUhrady_2=\"I\",IF(AE3=FALSE,\"OK\",\"!\"))))=\"OK\",\"OK\",\"!\")","v":"!"},{"$f":"IF(AND(COUNTIF('Nové Fakturační Skupiny'!$B$2:$B$21,'Nové Fakturační Skupiny'!B3)=1),AG3,\"!\")","v":"!"},null,{"$f":"VLOOKUP(HesloProBLok_2,AL2:AM12,2,0)","v":{"$error":"#NAME?"}},{"$f":"IF(ISERROR(AJ3)=TRUE,\"OK\",\"NOK\")","v":"OK"},"4321","!",{"$f":"IF(AK3=\"OK\",\"\",\"volte jinou kombinaci\")","v":""},{"$f":"IF('Převáděné služby'!K3 = \"N\",\"vyberte FS (N)\", \"zadejte FS: (M)\")","v":"zadejte FS: (M)"},{"$f":"IF(AH3=\"OK\",NazevFS_2,\"_\")","v":"_"},"Fyzická osoba podnikatel","Portál Můj T-mobile","Afghánistán","Náhradní doklad","Cestovní pas ČR (fialový)","Omezené"]
[null,null,"Fyzicka osoba podnikatel","D","BFyzicka osoba podnikatel","12 GB Plus","Tarif Data & SMS","Není k dispozici",null,"DRE 20","TSR Z1 25 MB","TSR Z2 25 MB","TSR Z3 25 MB",null,null,"D3",3,"MI 1,5 GB",null,3,"N",null,"I","0600",null,null,null,0.15,{"$f":"OR('Nové Fakturační Skupiny'!D4=\"\",'Nové Fakturační Skupiny'!E4=\"\",'Nové Fakturační Skupiny'!F4=\"\",'Nové Fakturační Skupiny'!H4=\"\",'Nové Fakturační Skupiny'!I4=\"\",'Nové Fakturační Skupiny'!J4=\"\",'Nové Fakturační Skupiny'!O4=\"\",TypVyuctSluzeb_3=\"E\")","v":true},{"$f":"OR('Nové Fakturační Skupiny'!D4=\"\",'Nové Fakturační Skupiny'!E4=\"\",'Nové Fakturační Skupiny'!F4=\"\",'Nové Fakturační Skupiny'!H4=\"\",'Nové Fakturační Skupiny'!I4=\"\",'Nové Fakturační Skupiny'!J4=\"\",'Nové Fakturační Skupiny'!O4=\"\")","v":true},{"$f":"OR('Nové Fakturační Skupiny'!D4=\"\",'Nové Fakturační Skupiny'!E4=\"\",'Nové Fakturační Skupiny'!F4=\"\",'Nové Fakturační Skupiny'!H4=\"\",'Nové Fakturační Skupiny'!I4=\"\",'Nové Fakturační Skupiny'!J4=\"\",'Nové Fakturační Skupiny'!L4=\"\",'Nové Fakturační Skupiny'!M4=\"\",'Nové Fakturační Skupiny'!N4=\"\",'Nové Fakturační Skupiny'!O4=\"\")","v":true},{"$f":"OR(AND(TypVyuctSluzeb_3=\"E\",BA_PVH_3=\"T\"),AND(IFERROR(SEARCH(\"ANO\",ZasilatEmail_3),\"\") = 1,TypVyuctSluzeb_3 = \"P\"),AND(IFERROR(SEARCH(\"ANO\",ZasilatEmail_3),\"\") = 1,TypVyuctSluzeb_3 = \"E\",Email_3 = \"\"))","v":false},{"$f":"IF(IF(ZpusobUhrady_3=\"PP\",IF(AC4=FALSE,\"OK\",\"!\"),IF(ZpusobUhrady_3=\"BÚ\",IF(AD4=FALSE,\"OK\",\"!\"),IF(ZpusobUhrady_3=\"I\",IF(AE4=FALSE,\"OK\",\"!\"))))=\"OK\",\"OK\",\"!\")","v":"!"},{"$f":"IF(AND(COUNTIF('Nové Fakturační Skupiny'!$B$2:$B$21,'Nové Fakturační Skupiny'!B4)=1),AG4,\"!\")","v":"!"},null,{"$f":"VLOOKUP(HesloProBLok_3,AL2:AM12,2,0)","v":{"$error":"#NAME?"}},"OK","1111","!","",{"$f":"IF('Převáděné služby'!K4 = \"N\",\"vyberte FS (N)\", \"zadejte FS: (M)\")","v":"zadejte FS: (M)"},{"$f":"IF(AH4=\"OK\",NazevFS_3,\"_\")","v":"_"},"Právnická osoba",null,"Albánie","Pas - cizinec/ID (občan EU)","Diplomatický průkaz"]
[null,null,"Fyzicka osoba podnikatel","H","BFyzicka osoba podnikatel","12 GB Plus s výhodou","Tarif Data & SMS bez závazku","Není k dispozici",null,"DRE 30","TSR Z1 50 MB","TSR Z2 50 MB","TSR Z3 50 MB",null,null,"D4",null,"MI 3 GB",null,4,null,null,null,"0800",null,null,null,0.2,{"$f":"OR('Nové Fakturační Skupiny'!D5=\"\",'Nové Fakturační Skupiny'!E5=\"\",'Nové Fakturační Skupiny'!F5=\"\",'Nové Fakturační Skupiny'!H5=\"\",'Nové Fakturační Skupiny'!I5=\"\",'Nové Fakturační Skupiny'!J5=\"\",'Nové Fakturační Skupiny'!O5=\"\",TypVyuctSluzeb_4=\"E\")","v":true},{"$f":"OR('Nové Fakturační Skupiny'!D5=\"\",'Nové Fakturační Skupiny'!E5=\"\",'Nové Fakturační Skupiny'!F5=\"\",'Nové Fakturační Skupiny'!H5=\"\",'Nové Fakturační Skupiny'!I5=\"\",'Nové Fakturační Skupiny'!J5=\"\",'Nové Fakturační Skupiny'!O5=\"\")","v":true},{"$f":"OR('Nové Fakturační Skupiny'!D5=\"\",'Nové Fakturační Skupiny'!E5=\"\",'Nové Fakturační Skupiny'!F5=\"\",'Nové Fakturační Skupiny'!H5=\"\",'Nové Fakturační Skupiny'!I5=\"\",'Nové Fakturační Skupiny'!J5=\"\",'Nové Fakturační Skupiny'!L5=\"\",'Nové Fakturační Skupiny'!M5=\"\",'Nové Fakturační Skupiny'!N5=\"\",'Nové Fakturační Skupiny'!O5=\"\")","v":true},{"$f":"OR(AND(TypVyuctSluzeb_4=\"E\",BA_PVH_4=\"T\"),AND(IFERROR(SEARCH(\"ANO\",ZasilatEmail_4),\"\") = 1,TypVyuctSluzeb_4 = \"P\"),AND(IFERROR(SEARCH(\"ANO\",ZasilatEmail_4),\"\") = 1,TypVyuctSluzeb_4 = \"E\",Email_4 = \"\"))","v":false},{"$f":"IF(IF(ZpusobUhrady_4=\"PP\",IF(AC5=FALSE,\"OK\",\"!\"),IF(ZpusobUhrady_4=\"BÚ\",IF(AD5=FALSE,\"OK\",\"!\"),IF(ZpusobUhrady_4=\"I\",IF(AE5=FALSE,\"OK\",\"!\"))))=\"OK\",\"OK\",\"!\")","v":"!"},{"$f":"IF(AND(COUNTIF('Nové Fakturační Skupiny'!$B$2:$B$21,'Nové Fakturační Skupiny'!B5)=1),AG5,\"!\")","v":"!"},null,{"$f":"VLOOKUP(HesloProBLok_4,AL2:AM12,2,0)","v":{"$error":"#NAME?"}},"OK","2222","!","",{"$f":"IF('Převáděné služby'!K5 = \"N\",\"vyberte FS (N)\", \"zadejte FS: (M)\")","v":"zadejte FS: (M)"},{"$f":"IF(AH5=\"OK\",NazevFS_4,\"_\")","v":"_"},null,null,"Alžírsko","Cestovní pas ČR (fialový)","Dlouhodobé vízum"]
[null,null,"Fyzicka osoba podnikatel","I","BFyzicka osoba podnikatel","3 GB Plus","Internet bez drátu Premium","Není k dispozici",null,"DRE 50","TSR Z1 100 MB","TSR Z2 100 MB","TSR Z3 100 MB",null,null,"D5",null,"MI 10 GB",null,null,null,null,null,2050,null,null,null,0.25,{"$f":"OR('Nové Fakturační Skupiny'!D6=\"\",'Nové Fakturační Skupiny'!E6=\"\",'Nové Fakturační Skupiny'!F6=\"\",'Nové Fakturační Skupiny'!H6=\"\",'Nové Fakturační Skupiny'!I6=\"\",'Nové Fakturační Skupiny'!J6=\"\",'Nové Fakturační Skupiny'!O6=\"\",TypVyuctSluzeb_5=\"E\")","v":true},{"$f":"OR('Nové Fakturační Skupiny'!D6=\"\",'Nové Fakturační Skupiny'!E6=\"\",'Nové Fakturační Skupiny'!F6=\"\",'Nové Fakturační Skupiny'!H6=\"\",'Nové Fakturační Skupiny'!I6=\"\",'Nové Fakturační Skupiny'!J6=\"\",'Nové Fakturační Skupiny'!O6=\"\")","v":true},{"$f":"OR('Nové Fakturační Skupiny'!D6=\"\",'Nové Fakturační Skupiny'!E6=\"\",'Nové Fakturační Skupiny'!F6=\"\",'Nové Fakturační Skupiny'!H6=\"\",'Nové Fakturační Skupiny'!I6=\"\",'Nové Fakturační Skupiny'!J6=\"\",'Nové Fakturační Skupiny'!L6=\"\",'Nové Fakturační Skupiny'!M6=\"\",'Nové Fakturační Skupiny'!N6=\"\",'Nové Fakturační Skupiny'!O6=\"\")","v":true},{"$f":"OR(AND(TypVyuctSluzeb_5=\"E\",BA_PVH_5=\"T\"),AND(IFERROR(SEARCH(\"ANO\",ZasilatEmail_5),\"\") = 1,TypVyuctSluzeb_5 = \"P\"),AND(IFERROR(SEARCH(\"ANO\",ZasilatEmail_5),\"\") = 1,TypVyuctSluzeb_5 = \"E\",Email_5 = \"\"))","v":false},{"$f":"IF(IF(ZpusobUhrady_5=\"PP\",IF(AC6=FALSE,\"OK\",\"!\"),IF(ZpusobUhrady_5=\"BÚ\",IF(AD6=FALSE,\"OK\",\"!\"),IF(ZpusobUhrady_5=\"I\",IF(AE6=FALSE,\"OK\",\"!\"))))=\"OK\",\"OK\",\"!\")","v":"!"},{"$f":"IF(AND(COUNTIF('Nové Fakturační Skupiny'!$B$2:$B$21,'Nové Fakturační Skupiny'!B6)=1),AG6,\"!\")","v":"!"},null,{"$f":"VLOOKUP(HesloProBLok_5,AL2:AM12,2,0)","v":{"$error":"#NAME?"}},"OK","3333","!","",{"$f":"IF('Převáděné služby'!K6 = \"N\",\"vyberte FS (N)\", \"zadejte FS: (M)\")","v":"zadejte FS: (M)"},{"$f":"IF(AH6=\"OK\",NazevFS_5,\"_\")","v":"_"},null,null,"Americká Samoa","Cestovní pas ČR (zelený)","Pas - cizinec/ID (občan EU)"]
[null,null,"Fyzicka osoba podnikatel","M","BFyzicka osoba podnikatel","3 GB Plus s výhodou","Internet bez drátu Premium bez závazku","Není k dispozici",null,"DRE 150","TSR Z1 200 MB","TSR Z2 200 MB","TSR Z3 200 MB",null,null,"D6",null,"MI 30 GB",null,null,null,null,null,"2010",null,null,null,0.3,{"$f":"OR('Nové Fakturační Skupiny'!D7=\"\",'Nové Fakturační Skupiny'!E7=\"\",'Nové Fakturační Skupiny'!F7=\"\",'Nové Fakturační Skupiny'!H7=\"\",'Nové Fakturační Skupiny'!I7=\"\",'Nové Fakturační Skupiny'!J7=\"\",'Nové Fakturační Skupiny'!O7=\"\",TypVyuctSluzeb_6=\"E\")","v":true},{"$f":"OR('Nové Fakturační Skupiny'!D7=\"\",'Nové Fakturační Skupiny'!E7=\"\",'Nové Fakturační Skupiny'!F7=\"\",'Nové Fakturační Skupiny'!H7=\"\",'Nové Fakturační Skupiny'!I7=\"\",'Nové Fakturační Skupiny'!J7=\"\",'Nové Fakturační Skupiny'!O7=\"\")","v":true},{"$f":"OR('Nové Fakturační Skupiny'!D7=\"\",'Nové Fakturační Skupiny'!E7=\"\",'Nové Fakturační Skupiny'!F7=\"\",'Nové Fakturační Skupiny'!H7=\"\",'Nové Fakturační Skupiny'!I7=\"\",'Nové Fakturační Skupiny'!J7=\"\",'Nové Fakturační Skupiny'!L7=\"\",'Nové Fakturační Skupiny'!M7=\"\",'Nové Fakturační Skupiny'!N7=\"\",'Nové Fakturační Skupiny'!O7=\"\")","v":true},{"$f":"OR(AND(TypVyuctSluzeb_6=\"E\",BA_PVH_6=\"T\"),AND(IFERROR(SEARCH(\"ANO\",ZasilatEmail_6),\"\") = 1,TypVyuctSluzeb_6 = \"P\"),AND(IFERROR(SEARCH(\"ANO\",ZasilatEmail_6),\"\") = 1,TypVyuctSluzeb_6 = \"E\",Email_6 = \"\"))","v":false},{"$f":"IF(IF(ZpusobUhrady_6=\"PP\",IF(AC7=FALSE,\"OK\",\"!\"),IF(ZpusobUhrady_6=\"BÚ\",IF(AD7=FALSE,\"OK\",\"!\"),IF(ZpusobUhrady_6=\"I\",IF(AE7=FALSE,\"OK\",\"!\"))))=\"OK\",\"OK\",\"!\")","v":"!"},{"$f":"IF(AND(COUNTIF('Nové Fakturační Skupiny'!$B$2:$B$21,'Nové Fakturační Skupiny'!B7)=1),AG7,\"!\")","v":"!"},null,{"$f":"VLOOKUP(HesloProBLok_6,AL2:AM12,2,0)","v":{"$error":"#NAME?"}},"OK","4444","!","",{"$f":"IF('Převáděné služby'!K7 = \"N\",\"vyberte FS (N)\", \"zadejte FS: (M)\")","v":"zadejte FS: (M)"},{"$f":"IF(AH7=\"OK\",NazevFS_6,\"_\")","v":"_"},null,null,"Andora",null,"Potvrzení o přechodném pobytu"]
[null,null,"Fyzicka osoba podnikatel","N","BFyzicka osoba podnikatel","4 GB Plus","Internet bez drátu Premium Plus","Není k dispozici",null,"TSD Z1","TSR Z1 500 MB","TSR Z2 500 MB","TSR Z3 500 MB",null,null,"X",null,"Neomezený mobilní internet",null,null,null,null,null,"2310",null,null,null,null,{"$f":"OR('Nové Fakturační Skupiny'!D8=\"\",'Nové Fakturační Skupiny'!E8=\"\",'Nové Fakturační Skupiny'!F8=\"\",'Nové Fakturační Skupiny'!H8=\"\",'Nové Fakturační Skupiny'!I8=\"\",'Nové Fakturační Skupiny'!J8=\"\",'Nové Fakturační Skupiny'!O8=\"\",TypVyuctSluzeb_7=\"E\")","v":true},{"$f":"OR('Nové Fakturační Skupiny'!D8=\"\",'Nové Fakturační Skupiny'!E8=\"\",'Nové Fakturační Skupiny'!F8=\"\",'Nové Fakturační Skupiny'!H8=\"\",'Nové Fakturační Skupiny'!I8=\"\",'Nové Fakturační Skupiny'!J8=\"\",'Nové Fakturační Skupiny'!O8=\"\")","v":true},{"$f":"OR('Nové Fakturační Skupiny'!D8=\"\",'Nové Fakturační Skupiny'!E8=\"\",'Nové Fakturační Skupiny'!F8=\"\",'Nové Fakturační Skupiny'!H8=\"\",'Nové Fakturační Skupiny'!I8=\"\",'Nové Fakturační Skupiny'!J8=\"\",'Nové Fakturační Skupiny'!L8=\"\",'Nové Fakturační Skupiny'!M8=\"\",'Nové Fakturační Skupiny'!N8=\"\",'Nové Fakturační Skupiny'!O8=\"\")","v":true},{"$f":"OR(AND(TypVyuctSluzeb_7=\"E\",BA_PVH_7=\"T\"),AND(IFERROR(SEARCH(\"ANO\",ZasilatEmail_7),\"\") = 1,TypVyuctSluzeb_7 = \"P\"),AND(IFERROR(SEARCH(\"ANO\",ZasilatEmail_7),\"\") = 1,TypVyuctSluzeb_7 = \"E\",Email_7 = \"\"))","v":false},{"$f":"IF(IF(ZpusobUhrady_7=\"PP\",IF(AC8=FALSE,\"OK\",\"!\"),IF(ZpusobUhrady_7=\"BÚ\",IF(AD8=FALSE,\"OK\",\"!\"),IF(ZpusobUhrady_7=\"I\",IF(AE8=FALSE,\"OK\",\"!\"))))=\"OK\",\"OK\",\"!\")","v":"!"},{"$f":"IF(AND(COUNTIF('Nové Fakturační Skupiny'!$B$2:$B$21,'Nové Fakturační Skupiny'!B8)=1),AG8,\"!\")","v":"!"},null,{"$f":"VLOOKUP(HesloProBLok_7,AL2:AM12,2,0)","v":{"$error":"#NAME?"}},"OK","5555","!","",{"$f":"IF('Převáděné služby'!K8 = \"N\",\"vyberte FS (N)\", \"zadejte FS: (M)\")","v":"zadejte FS: (M)"},{"$f":"IF(AH8=\"OK\",NazevFS_7,\"_\")","v":"_"},null,null,"Angola",null,"Povolení k trvalému pobytu"]
[null,null,"Fyzicka osoba podnikatel","P","BFyzicka osoba podnikatel","4 GB Plus s výhodou","Internet bez drátu Premium Plus bez závazku","Není k dispozici",null,"TSD Z2","TSR Z1 1000 MB","TSR Z2 1000 MB","TSR Z3 1000 MB",null,null,null,null,null,null,null,null,null,null,2070,null,null,null,null,{"$f":"OR('Nové Fakturační Skupiny'!D9=\"\",'Nové Fakturační Skupiny'!E9=\"\",'Nové Fakturační Skupiny'!F9=\"\",'Nové Fakturační Skupiny'!H9=\"\",'Nové Fakturační Skupiny'!I9=\"\",'Nové Fakturační Skupiny'!J9=\"\",'Nové Fakturační Skupiny'!O9=\"\",TypVyuctSluzeb_8=\"E\")","v":true},{"$f":"OR('Nové Fakturační Skupiny'!D9=\"\",'Nové Fakturační Skupiny'!E9=\"\",'Nové Fakturační Skupiny'!F9=\"\",'Nové Fakturační Skupiny'!H9=\"\",'Nové Fakturační Skupiny'!I9=\"\",'Nové Fakturační Skupiny'!J9=\"\",'Nové Fakturační Skupiny'!O9=\"\")","v":true},{"$f":"OR('Nové Fakturační Skupiny'!D9=\"\",'Nové Fakturační Skupiny'!E9=\"\",'Nové Fakturační Skupiny'!F9=\"\",'Nové Fakturační Skupiny'!H9=\"\",'Nové Fakturační Skupiny'!I9=\"\",'Nové Fakturační Skupiny'!J9=\"\",'Nové Fakturační Skupiny'!L9=\"\",'Nové Fakturační Skupiny'!M9=\"\",'Nové Fakturační Skupiny'!N9=\"\",'Nové Fakturační Skupiny'!O9=\"\")","v":true},{"$f":"OR(AND(TypVyuctSluzeb_8=\"E\",BA_PVH_8=\"T\"),AND(IFERROR(SEARCH(\"ANO\",ZasilatEmail_8),\"\") = 1,TypVyuctSluzeb_8 = \"P\"),AND(IFERROR(SEARCH(\"ANO\",ZasilatEmail_8),\"\") = 1,TypVyuctSluzeb_8 = \"E\",Email_8 = \"\"))","v":false},{"$f":"IF(IF(ZpusobUhrady_8=\"PP\",IF(AC9=FALSE,\"OK\",\"!\"),IF(ZpusobUhrady_8=\"BÚ\",IF(AD9=FALSE,\"OK\",\"!\"),IF(ZpusobUhrady_8=\"I\",IF(AE9=FALSE,\"OK\",\"!\"))))=\"OK\",\"OK\",\"!\")","v":"!"},{"$f":"IF(AND(COUNTIF('Nové Fakturační Skupiny'!$B$2:$B$21,'Nové Fakturační Skupiny'!B9)=1),AG9,\"!\")","v":"!"},null,{"$f":"VLOOKUP(HesloProBLok_8,AL2:AM12,2,0)","v":{"$error":"#NAME?"}},"OK","6666","!","",{"$f":"IF('Převáděné služby'!K9 = \"N\",\"vyberte FS (N)\", \"zadejte FS: (M)\")","v":"zadejte FS: (M)"},{"$f":"IF(AH9=\"OK\",NazevFS_8,\"_\")","v":"_"},null,null,"Anquilla",null,"Průkaz pojištěnce"]
[null,null,"Fyzicka osoba podnikatel","S","BFyzicka osoba podnikatel","5 GB Plus","Internet bez drátu Standard","Není k dispozici",null,"TSD Z3",null,"ISN1 100 MB","ISN2 50 MB",null,null,null,null,null,null,null,null,null,null,2700,null,null,null,null,{"$f":"OR('Nové Fakturační Skupiny'!D10=\"\",'Nové Fakturační Skupiny'!E10=\"\",'Nové Fakturační Skupiny'!F10=\"\",'Nové Fakturační Skupiny'!H10=\"\",'Nové Fakturační Skupiny'!I10=\"\",'Nové Fakturační Skupiny'!J10=\"\",'Nové Fakturační Skupiny'!O10=\"\",TypVyuctSluzeb_9=\"E\")","v":true},{"$f":"OR('Nové Fakturační Skupiny'!D10=\"\",'Nové Fakturační Skupiny'!E10=\"\",'Nové Fakturační Skupiny'!F10=\"\",'Nové Fakturační Skupiny'!H10=\"\",'Nové Fakturační Skupiny'!I10=\"\",'Nové Fakturační Skupiny'!J10=\"\",'Nové Fakturační Skupiny'!O10=\"\")","v":true},{"$f":"OR('Nové Fakturační Skupiny'!D10=\"\",'Nové Fakturační Skupiny'!E10=\"\",'Nové Fakturační Skupiny'!F10=\"\",'Nové Fakturační Skupiny'!H10=\"\",'Nové Fakturační Skupiny'!I10=\"\",'Nové Fakturační Skupiny'!J10=\"\",'Nové Fakturační Skupiny'!L10=\"\",'Nové Fakturační Skupiny'!M10=\"\",'Nové Fakturační Skupiny'!N10=\"\",'Nové Fakturační Skupiny'!O10=\"\")","v":true},{"$f":"OR(AND(TypVyuctSluzeb_9=\"E\",BA_PVH_9=\"T\"),AND(IFERROR(SEARCH(\"ANO\",ZasilatEmail_9),\"\") = 1,TypVyuctSluzeb_9 = \"P\"),AND(IFERROR(SEARCH(\"ANO\",ZasilatEmail_9),\"\") = 1,TypVyuctSluzeb_9 = \"E\",Email_9 = \"\"))","v":false},{"$f":"IF(IF(ZpusobUhrady_9=\"PP\",IF(AC10=FALSE,\"OK\",\"!\"),IF(ZpusobUhrady_9=\"BÚ\",IF(AD10=FALSE,\"OK\",\"!\"),IF(ZpusobUhrady_9=\"I\",IF(AE10=FALSE,\"OK\",\"!\"))))=\"OK\",\"OK\",\"!\")","v":"!"},{"$f":"IF(AND(COUNTIF('Nové Fakturační Skupiny'!$B$2:$B$21,'Nové Fakturační Skupiny'!B10)=1),AG10,\"!\")","v":"!"},null,{"$f":"VLOOKUP(HesloProBLok_9,AL2:AM12,2,0)","v":{"$error":"#NAME?"}},"OK","7777","!","",{"$f":"IF('Převáděné služby'!K10 = \"N\",\"vyberte FS (N)\", \"zadejte FS: (M)\")","v":"zadejte FS: (M)"},{"$f":"IF(AH10=\"OK\",NazevFS_9,\"_\")","v":"_"},null,null,"Antarktika",null,"Rodný list"]
[null,null,"Fyzicka osoba podnikatel","T","BFyzicka osoba podnikatel","5 GB Plus s výhodou","Internet bez drátu Standard bez závazku","Není k dispozici",null,"DS 20",null,"ISN1 250 MB","ISN2 100 MB",null,null,null,null,null,null,null,null,null,null,"3030",null,null,null,null,{"$f":"OR('Nové Fakturační Skupiny'!D11=\"\",'Nové Fakturační Skupiny'!E11=\"\",'Nové Fakturační Skupiny'!F11=\"\",'Nové Fakturační Skupiny'!H11=\"\",'Nové Fakturační Skupiny'!I11=\"\",'Nové Fakturační Skupiny'!J11=\"\",'Nové Fakturační Skupiny'!O11=\"\",TypVyuctSluzeb_10=\"E\")","v":true},{"$f":"OR('Nové Fakturační Skupiny'!D11=\"\",'Nové Fakturační Skupiny'!E11=\"\",'Nové Fakturační Skupiny'!F11=\"\",'Nové Fakturační Skupiny'!H11=\"\",'Nové Fakturační Skupiny'!I11=\"\",'Nové Fakturační Skupiny'!J11=\"\",'Nové Fakturační Skupiny'!O11=\"\")","v":true},{"$f":"OR('Nové Fakturační Skupiny'!D11=\"\",'Nové Fakturační Skupiny'!E11=\"\",'Nové Fakturační Skupiny'!F11=\"\",'Nové Fakturační Skupiny'!H11=\"\",'Nové Fakturační Skupiny'!I11=\"\",'Nové Fakturační Skupiny'!J11=\"\",'Nové Fakturační Skupiny'!L11=\"\",'Nové Fakturační Skupiny'!M11=\"\",'Nové Fakturační Skupiny'!N11=\"\",'Nové Fakturační Skupiny'!O11=\"\")","v":true},{"$f":"OR(AND(TypVyuctSluzeb_10=\"E\",BA_PVH_10=\"T\"),AND(IFERROR(SEARCH(\"ANO\",ZasilatEmail_10),\"\") = 1,TypVyuctSluzeb_10 = \"P\"),AND(IFERROR(SEARCH(\"ANO\",ZasilatEmail_10),\"\") = 1,TypVyuctSluzeb_10 = \"E\",Email_10 = \"\"))","v":false},{"$f":"IF(IF(ZpusobUhrady_10=\"PP\",IF(AC11=FALSE,\"OK\",\"!\"),IF(ZpusobUhrady_10=\"BÚ\",IF(AD11=FALSE,\"OK\",\"!\"),IF(ZpusobUhrady_10=\"I\",IF(AE11=FALSE,\"OK\",\"!\"))))=\"OK\",\"OK\",\"!\")","v":"!"},{"$f":"IF(AND(COUNTIF('Nové Fakturační Skupiny'!$B$2:$B$21,'Nové Fakturační Skupiny'!B11)=1),AG11,\"!\")","v":"!"},null,{"$f":"VLOOKUP(HesloProBLok_10,AL2:AM12,2,0)","v":{"$error":"#NAME?"}},"OK","8888","!","",{"$f":"IF('Převáděné služby'!K11 = \"N\",\"vyberte FS (N)\", \"zadejte FS: (M)\")","v":"zadejte FS: (M)"},{"$f":"IF(AH11=\"OK\",NazevFS_10,\"_\")","v":"_"},null,null,"Antigua a Barbuda",null,"Služební průkaz"]
[null,null,"Pravnicka osoba","B","BFyzicka osoba podnikatel","6 GB Plus","Internet Komplet","Není k dispozici",null,"DS 200",null,"ISN1 500 MB","ISN2 200 MB",null,null,null,null,null,null,null,null,null,null,3040,null,null,null,null,{"$f":"OR('Nové Fakturační Skupiny'!D12=\"\",'Nové Fakturační Skupiny'!E12=\"\",'Nové Fakturační Skupiny'!F12=\"\",'Nové Fakturační Skupiny'!H12=\"\",'Nové Fakturační Skupiny'!I12=\"\",'Nové Fakturační Skupiny'!J12=\"\",'Nové Fakturační Skupiny'!O12=\"\",TypVyuctSluzeb_11=\"E\")","v":true},{"$f":"OR('Nové Fakturační Skupiny'!D12=\"\",'Nové Fakturační Skupiny'!E12=\"\",'Nové Fakturační Skupiny'!F12=\"\",'Nové Fakturační Skupiny'!H12=\"\",'Nové Fakturační Skupiny'!I12=\"\",'Nové Fakturační Skupiny'!J12=\"\",'Nové Fakturační Skupiny'!O12=\"\")","v":true},{"$f":"OR('Nové Fakturační Skupiny'!D12=\"\",'Nové Fakturační Skupiny'!E12=\"\",'Nové Fakturační Skupiny'!F12=\"\",'Nové Fakturační Skupiny'!H12=\"\",'Nové Fakturační Skupiny'!I12=\"\",'Nové Fakturační Skupiny'!J12=\"\",'Nové Fakturační Skupiny'!L12=\"\",'Nové Fakturační Skupiny'!M12=\"\",'Nové Fakturační Skupiny'!N12=\"\",'Nové Fakturační Skupiny'!O12=\"\")","v":true},{"$f":"OR(AND(TypVyuctSluzeb_11=\"E\",BA_PVH_11=\"T\"),AND(IFERROR(SEARCH(\"ANO\",ZasilatEmail_11),\"\") = 1,TypVyuctSluzeb_11 = \"P\"),AND(IFERROR(SEARCH(\"ANO\",ZasilatEmail_11),\"\") = 1,TypVyuctSluzeb_11 = \"E\",Email_11 = \"\"))","v":false},{"$f":"IF(IF(ZpusobUhrady_11=\"PP\",IF(AC12=FALSE,\"OK\",\"!\"),IF(ZpusobUhrady_11=\"BÚ\",IF(AD12=FALSE,\"OK\",\"!\"),IF(ZpusobUhrady_11=\"I\",IF(AE12=FALSE,\"OK\",\"!\"))))=\"OK\",\"OK\",\"!\")","v":"!"},{"$f":"IF(AND(COUNTIF('Nové Fakturační Skupiny'!$B$2:$B$21,'Nové Fakturační Skupiny'!B12)=1),AG12,\"!\")","v":"!"},null,{"$f":"VLOOKUP(HesloProBLok_11,AL2:AM12,2,0)","v":{"$error":"#NAME?"}},"OK","9999","!","",{"$f":"IF('Převáděné služby'!K12 = \"N\",\"vyberte FS (N)\", \"zadejte FS: (M)\")","v":"zadejte FS: (M)"},{"$f":"IF(AH12=\"OK\",NazevFS_11,\"_\")","v":"_"},{"$f":"TODAY()","v":"2022-05-17"},null,"Argentina",null,"Vojenská knížka"]
[null,null,"Pravnicka osoba","C","BFyzicka osoba podnikatel","6 GB Plus s výhodou","Internet Komplet bez závazku","Není k dispozici",null,"DS 100",null,"ISN1 1000 MB","ISN2 500 MB",null,null,null,null,null,null,null,null,null,null,"5500",null,null,null,null,{"$f":"OR('Nové Fakturační Skupiny'!D13=\"\",'Nové Fakturační Skupiny'!E13=\"\",'Nové Fakturační Skupiny'!F13=\"\",'Nové Fakturační Skupiny'!H13=\"\",'Nové Fakturační Skupiny'!I13=\"\",'Nové Fakturační Skupiny'!J13=\"\",'Nové Fakturační Skupiny'!O13=\"\",TypVyuctSluzeb_12=\"E\")","v":true},{"$f":"OR('Nové Fakturační Skupiny'!D13=\"\",'Nové Fakturační Skupiny'!E13=\"\",'Nové Fakturační Skupiny'!F13=\"\",'Nové Fakturační Skupiny'!H13=\"\",'Nové Fakturační Skupiny'!I13=\"\",'Nové Fakturační Skupiny'!J13=\"\",'Nové Fakturační Skupiny'!O13=\"\")","v":true},{"$f":"OR('Nové Fakturační Skupiny'!D13=\"\",'Nové Fakturační Skupiny'!E13=\"\",'Nové Fakturační Skupiny'!F13=\"\",'Nové Fakturační Skupiny'!H13=\"\",'Nové Fakturační Skupiny'!I13=\"\",'Nové Fakturační Skupiny'!J13=\"\",'Nové Fakturační Skupiny'!L13=\"\",'Nové Fakturační Skupiny'!M13=\"\",'Nové Fakturační Skupiny'!N13=\"\",'Nové Fakturační Skupiny'!O13=\"\")","v":true},{"$f":"OR(AND(TypVyuctSluzeb_12=\"E\",BA_PVH_12=\"T\"),AND(IFERROR(SEARCH(\"ANO\",ZasilatEmail_12),\"\") = 1,TypVyuctSluzeb_12 = \"P\"),AND(IFERROR(SEARCH(\"ANO\",ZasilatEmail_12),\"\") = 1,TypVyuctSluzeb_12 = \"E\",Email_12 = \"\"))","v":false},{"$f":"IF(IF(ZpusobUhrady_12=\"PP\",IF(AC13=FALSE,\"OK\",\"!\"),IF(ZpusobUhrady_12=\"BÚ\",IF(AD13=FALSE,\"OK\",\"!\"),IF(ZpusobUhrady_12=\"I\",IF(AE13=FALSE,\"OK\",\"!\"))))=\"OK\",\"OK\",\"!\")","v":"!"},{"$f":"IF(AND(COUNTIF('Nové Fakturační Skupiny'!$B$2:$B$21,'Nové Fakturační Skupiny'!B13)=1),AG13,\"!\")","v":"!"},null,{"$f":"VLOOKUP(HesloProBLok_12,AL2:AM12,2,0)","v":{"$error":"#NAME?"}},"OK","2345",null,"",{"$f":"IF('Převáděné služby'!K13 = \"N\",\"vyberte FS (N)\", \"zadejte FS: (M)\")","v":"zadejte FS: (M)"},{"$f":"IF(AH13=\"OK\",NazevFS_12,\"_\")","v":"_"},null,null,"Arménie",null,"ZTP/P"]
[null,null,"Pravnicka osoba","D","BFyzicka osoba podnikatel","8 GB Plus","M2M 1 Pro Firmu","Není k dispozici",null,"DS 500",null,"ISN1 2000 MB","ISN2 1000 MB",null,null,null,null,null,null,null,null,null,null,5800,null,null,null,null,{"$f":"OR('Nové Fakturační Skupiny'!D14=\"\",'Nové Fakturační Skupiny'!E14=\"\",'Nové Fakturační Skupiny'!F14=\"\",'Nové Fakturační Skupiny'!H14=\"\",'Nové Fakturační Skupiny'!I14=\"\",'Nové Fakturační Skupiny'!J14=\"\",'Nové Fakturační Skupiny'!O14=\"\",TypVyuctSluzeb_13=\"E\")","v":true},{"$f":"OR('Nové Fakturační Skupiny'!D14=\"\",'Nové Fakturační Skupiny'!E14=\"\",'Nové Fakturační Skupiny'!F14=\"\",'Nové Fakturační Skupiny'!H14=\"\",'Nové Fakturační Skupiny'!I14=\"\",'Nové Fakturační Skupiny'!J14=\"\",'Nové Fakturační Skupiny'!O14=\"\")","v":true},{"$f":"OR('Nové Fakturační Skupiny'!D14=\"\",'Nové Fakturační Skupiny'!E14=\"\",'Nové Fakturační Skupiny'!F14=\"\",'Nové Fakturační Skupiny'!H14=\"\",'Nové Fakturační Skupiny'!I14=\"\",'Nové Fakturační Skupiny'!J14=\"\",'Nové Fakturační Skupiny'!L14=\"\",'Nové Fakturační Skupiny'!M14=\"\",'Nové Fakturační Skupiny'!N14=\"\",'Nové Fakturační Skupiny'!O14=\"\")","v":true},{"$f":"OR(AND(TypVyuctSluzeb_13=\"E\",BA_PVH_13=\"T\"),AND(IFERROR(SEARCH(\"ANO\",ZasilatEmail_13),\"\") = 1,TypVyuctSluzeb_13 = \"P\"),AND(IFERROR(SEARCH(\"ANO\",ZasilatEmail_13),\"\") = 1,TypVyuctSluzeb_13 = \"E\",Email_13 = \"\"))","v":false},{"$f":"IF(IF(ZpusobUhrady_13=\"PP\",IF(AC14=FALSE,\"OK\",\"!\"),IF(ZpusobUhrady_13=\"BÚ\",IF(AD14=FALSE,\"OK\",\"!\"),IF(ZpusobUhrady_13=\"I\",IF(AE14=FALSE,\"OK\",\"!\"))))=\"OK\",\"OK\",\"!\")","v":"!"},{"$f":"IF(AND(COUNTIF('Nové Fakturační Skupiny'!$B$2:$B$21,'Nové Fakturační Skupiny'!B14)=1),AG14,\"!\")","v":"!"},null,{"$f":"VLOOKUP(HesloProBLok_13,AL2:AM12,2,0)","v":{"$error":"#NAME?"}},"OK","3456",null,"",{"$f":"IF('Převáděné služby'!K14 = \"N\",\"vyberte FS (N)\", \"zadejte FS: (M)\")","v":"zadejte FS: (M)"},{"$f":"IF(AH14=\"OK\",NazevFS_13,\"_\")","v":"_"},null,null,"Aruba",null,"Zbrojní pas"]
[null,null,"Pravnicka osoba","H","BFyzicka osoba podnikatel","8 GB Plus s výhodou","M2M 1 Pro Firmu bez roamingu","Není k dispozici",null,"DS 1000",null,"ISN1 5000 MB",null,null,null,null,null,null,null,null,null,null,null,6000,null,null,null,null,{"$f":"OR('Nové Fakturační Skupiny'!D15=\"\",'Nové Fakturační Skupiny'!E15=\"\",'Nové Fakturační Skupiny'!F15=\"\",'Nové Fakturační Skupiny'!H15=\"\",'Nové Fakturační Skupiny'!I15=\"\",'Nové Fakturační Skupiny'!J15=\"\",'Nové Fakturační Skupiny'!O15=\"\",TypVyuctSluzeb_14=\"E\")","v":true},{"$f":"OR('Nové Fakturační Skupiny'!D15=\"\",'Nové Fakturační Skupiny'!E15=\"\",'Nové Fakturační Skupiny'!F15=\"\",'Nové Fakturační Skupiny'!H15=\"\",'Nové Fakturační Skupiny'!I15=\"\",'Nové Fakturační Skupiny'!J15=\"\",'Nové Fakturační Skupiny'!O15=\"\")","v":true},{"$f":"OR('Nové Fakturační Skupiny'!D15=\"\",'Nové Fakturační Skupiny'!E15=\"\",'Nové Fakturační Skupiny'!F15=\"\",'Nové Fakturační Skupiny'!H15=\"\",'Nové Fakturační Skupiny'!I15=\"\",'Nové Fakturační Skupiny'!J15=\"\",'Nové Fakturační Skupiny'!L15=\"\",'Nové Fakturační Skupiny'!M15=\"\",'Nové Fakturační Skupiny'!N15=\"\",'Nové Fakturační Skupiny'!O15=\"\")","v":true},{"$f":"OR(AND(TypVyuctSluzeb_14=\"E\",BA_PVH_14=\"T\"),AND(IFERROR(SEARCH(\"ANO\",ZasilatEmail_14),\"\") = 1,TypVyuctSluzeb_14 = \"P\"),AND(IFERROR(SEARCH(\"ANO\",ZasilatEmail_14),\"\") = 1,TypVyuctSluzeb_14 = \"E\",Email_14 = \"\"))","v":false},{"$f":"IF(IF(ZpusobUhrady_14=\"PP\",IF(AC15=FALSE,\"OK\",\"!\"),IF(ZpusobUhrady_14=\"BÚ\",IF(AD15=FALSE,\"OK\",\"!\"),IF(ZpusobUhrady_14=\"I\",IF(AE15=FALSE,\"OK\",\"!\"))))=\"OK\",\"OK\",\"!\")","v":"!"},{"$f":"IF(AND(COUNTIF('Nové Fakturační Skupiny'!$B$2:$B$21,'Nové Fakturační Skupiny'!B15)=1),AG15,\"!\")","v":"!"},null,{"$f":"VLOOKUP(HesloProBLok_14,AL2:AM12,2,0)","v":{"$error":"#NAME?"}},"OK","4567",null,"",{"$f":"IF('Převáděné služby'!K15 = \"N\",\"vyberte FS (N)\", \"zadejte FS: (M)\")","v":"zadejte FS: (M)"},{"$f":"IF(AH15=\"OK\",NazevFS_14,\"_\")","v":"_"},null,null,"Austrálie",null,"Zelená karta"]
[null,null,"Pravnicka osoba","I","CFyzicka osoba podnikatel","Chytré auto","M2M 1 Pro Firmu bez závazku","Není k dispozici",null,"TSD Z1+Z2",null,null,null,null,null,null,null,null,null,null,null,null,null,"6100",null,null,null,null,{"$f":"OR('Nové Fakturační Skupiny'!D16=\"\",'Nové Fakturační Skupiny'!E16=\"\",'Nové Fakturační Skupiny'!F16=\"\",'Nové Fakturační Skupiny'!H16=\"\",'Nové Fakturační Skupiny'!I16=\"\",'Nové Fakturační Skupiny'!J16=\"\",'Nové Fakturační Skupiny'!O16=\"\",TypVyuctSluzeb_15=\"E\")","v":true},{"$f":"OR('Nové Fakturační Skupiny'!D16=\"\",'Nové Fakturační Skupiny'!E16=\"\",'Nové Fakturační Skupiny'!F16=\"\",'Nové Fakturační Skupiny'!H16=\"\",'Nové Fakturační Skupiny'!I16=\"\",'Nové Fakturační Skupiny'!J16=\"\",'Nové Fakturační Skupiny'!O16=\"\")","v":true},{"$f":"OR('Nové Fakturační Skupiny'!D16=\"\",'Nové Fakturační Skupiny'!E16=\"\",'Nové Fakturační Skupiny'!F16=\"\",'Nové Fakturační Skupiny'!H16=\"\",'Nové Fakturační Skupiny'!I16=\"\",'Nové Fakturační Skupiny'!J16=\"\",'Nové Fakturační Skupiny'!L16=\"\",'Nové Fakturační Skupiny'!M16=\"\",'Nové Fakturační Skupiny'!N16=\"\",'Nové Fakturační Skupiny'!O16=\"\")","v":true},{"$f":"OR(AND(TypVyuctSluzeb_15=\"E\",BA_PVH_15=\"T\"),AND(IFERROR(SEARCH(\"ANO\",ZasilatEmail_15),\"\") = 1,TypVyuctSluzeb_15 = \"P\"),AND(IFERROR(SEARCH(\"ANO\",ZasilatEmail_15),\"\") = 1,TypVyuctSluzeb_15 = \"E\",Email_15 = \"\"))","v":false},{"$f":"IF(IF(ZpusobUhrady_15=\"PP\",IF(AC16=FALSE,\"OK\",\"!\"),IF(ZpusobUhrady_15=\"BÚ\",IF(AD16=FALSE,\"OK\",\"!\"),IF(ZpusobUhrady_15=\"I\",IF(AE16=FALSE,\"OK\",\"!\"))))=\"OK\",\"OK\",\"!\")","v":"!"},{"$f":"IF(AND(COUNTIF('Nové Fakturační Skupiny'!$B$2:$B$21,'Nové Fakturační Skupiny'!B16)=1),AG16,\"!\")","v":"!"},null,{"$f":"VLOOKUP(HesloProBLok_15,AL2:AM12,2,0)","v":{"$error":"#NAME?"}},"OK","5678",null,"",{"$f":"IF('Převáděné služby'!K16 = \"N\",\"vyberte FS (N)\", \"zadejte FS: (M)\")","v":"zadejte FS: (M)"},{"$f":"IF(AH16=\"OK\",NazevFS_15,\"_\")","v":"_"},null,null,"Azerbajdžán",null,"Řidičský průkaz"]
[null,null,"Pravnicka osoba","M","CFyzicka osoba podnikatel","Chytré auto bez závazku","M2M 1 Pro Firmu bez roamingu bez závazku","Není k dispozici",null,"TSD Z1+Z3",null,null,null,null,null,null,null,null,null,null,null,null,null,6200,null,null,null,null,{"$f":"OR('Nové Fakturační Skupiny'!D17=\"\",'Nové Fakturační Skupiny'!E17=\"\",'Nové Fakturační Skupiny'!F17=\"\",'Nové Fakturační Skupiny'!H17=\"\",'Nové Fakturační Skupiny'!I17=\"\",'Nové Fakturační Skupiny'!J17=\"\",'Nové Fakturační Skupiny'!O17=\"\",TypVyuctSluzeb_16=\"E\")","v":true},{"$f":"OR('Nové Fakturační Skupiny'!D17=\"\",'Nové Fakturační Skupiny'!E17=\"\",'Nové Fakturační Skupiny'!F17=\"\",'Nové Fakturační Skupiny'!H17=\"\",'Nové Fakturační Skupiny'!I17=\"\",'Nové Fakturační Skupiny'!J17=\"\",'Nové Fakturační Skupiny'!O17=\"\")","v":true},{"$f":"OR('Nové Fakturační Skupiny'!D17=\"\",'Nové Fakturační Skupiny'!E17=\"\",'Nové Fakturační Skupiny'!F17=\"\",'Nové Fakturační Skupiny'!H17=\"\",'Nové Fakturační Skupiny'!I17=\"\",'Nové Fakturační Skupiny'!J17=\"\",'Nové Fakturační Skupiny'!L17=\"\",'Nové Fakturační Skupiny'!M17=\"\",'Nové Fakturační Skupiny'!N17=\"\",'Nové Fakturační Skupiny'!O17=\"\")","v":true},{"$f":"OR(AND(TypVyuctSluzeb_16=\"E\",BA_PVH_16=\"T\"),AND(IFERROR(SEARCH(\"ANO\",ZasilatEmail_16),\"\") = 1,TypVyuctSluzeb_16 = \"P\"),AND(IFERROR(SEARCH(\"ANO\",ZasilatEmail_16),\"\") = 1,TypVyuctSluzeb_16 = \"E\",Email_16 = \"\"))","v":false},{"$f":"IF(IF(ZpusobUhrady_16=\"PP\",IF(AC17=FALSE,\"OK\",\"!\"),IF(ZpusobUhrady_16=\"BÚ\",IF(AD17=FALSE,\"OK\",\"!\"),IF(ZpusobUhrady_16=\"I\",IF(AE17=FALSE,\"OK\",\"!\"))))=\"OK\",\"OK\",\"!\")","v":"!"},{"$f":"IF(AND(COUNTIF('Nové Fakturační Skupiny'!$B$2:$B$21,'Nové Fakturační Skupiny'!B17)=1),AG17,\"!\")","v":"!"},null,{"$f":"VLOOKUP(HesloProBLok_16,AL2:AM12,2,0)","v":{"$error":"#NAME?"}},"OK","6789",null,"",{"$f":"IF('Převáděné služby'!K17 = \"N\",\"vyberte FS (N)\", \"zadejte FS: (M)\")","v":"zadejte FS: (M)"},{"$f":"IF(AH17=\"OK\",NazevFS_16,\"_\")","v":"_"},null,null,"Bahamy",null,"Ostatní"]
[null,null,"Pravnicka osoba","N","CFyzicka osoba podnikatel","Chytré auto WiFi premium","M2M 2 Pro Firmu","Není k dispozici",null,"TSD Z2+Z3",null,null,null,null,null,null,null,null,null,null,null,null,null,"6210",null,null,null,null,{"$f":"OR('Nové Fakturační Skupiny'!D18=\"\",'Nové Fakturační Skupiny'!E18=\"\",'Nové Fakturační Skupiny'!F18=\"\",'Nové Fakturační Skupiny'!H18=\"\",'Nové Fakturační Skupiny'!I18=\"\",'Nové Fakturační Skupiny'!J18=\"\",'Nové Fakturační Skupiny'!O18=\"\",TypVyuctSluzeb_17=\"E\")","v":true},{"$f":"OR('Nové Fakturační Skupiny'!D18=\"\",'Nové Fakturační Skupiny'!E18=\"\",'Nové Fakturační Skupiny'!F18=\"\",'Nové Fakturační Skupiny'!H18=\"\",'Nové Fakturační Skupiny'!I18=\"\",'Nové Fakturační Skupiny'!J18=\"\",'Nové Fakturační Skupiny'!O18=\"\")","v":true},{"$f":"OR('Nové Fakturační Skupiny'!D18=\"\",'Nové Fakturační Skupiny'!E18=\"\",'Nové Fakturační Skupiny'!F18=\"\",'Nové Fakturační Skupiny'!H18=\"\",'Nové Fakturační Skupiny'!I18=\"\",'Nové Fakturační Skupiny'!J18=\"\",'Nové Fakturační Skupiny'!L18=\"\",'Nové Fakturační Skupiny'!M18=\"\",'Nové Fakturační Skupiny'!N18=\"\",'Nové Fakturační Skupiny'!O18=\"\")","v":true},{"$f":"OR(AND(TypVyuctSluzeb_17=\"E\",BA_PVH_17=\"T\"),AND(IFERROR(SEARCH(\"ANO\",ZasilatEmail_17),\"\") = 1,TypVyuctSluzeb_17 = \"P\"),AND(IFERROR(SEARCH(\"ANO\",ZasilatEmail_17),\"\") = 1,TypVyuctSluzeb_17 = \"E\",Email_17 = \"\"))","v":false},{"$f":"IF(IF(ZpusobUhrady_17=\"PP\",IF(AC18=FALSE,\"OK\",\"!\"),IF(ZpusobUhrady_17=\"BÚ\",IF(AD18=FALSE,\"OK\",\"!\"),IF(ZpusobUhrady_17=\"I\",IF(AE18=FALSE,\"OK\",\"!\"))))=\"OK\",\"OK\",\"!\")","v":"!"},{"$f":"IF(AND(COUNTIF('Nové Fakturační Skupiny'!$B$2:$B$21,'Nové Fakturační Skupiny'!B18)=1),AG18,\"!\")","v":"!"},null,{"$f":"VLOOKUP(HesloProBLok_17,AL2:AM12,2,0)","v":{"$error":"#NAME?"}},"OK","5432",null,"",{"$f":"IF('Převáděné služby'!K18 = \"N\",\"vyberte FS (N)\", \"zadejte FS: (M)\")","v":"zadejte FS: (M)"},{"$f":"IF(AH18=\"OK\",NazevFS_17,\"_\")","v":"_"},null,null,"Bahrain"]
[null,null,"Pravnicka osoba","P","CFyzicka osoba podnikatel","Chytré auto WiFi premium bez závazku","M2M 2 Pro Firmu bez roamingu","Není k dispozici",null,"TSD Z1+Z2+Z3",null,null,null,null,null,null,null,null,null,null,null,null,null,"6800",null,null,null,null,{"$f":"OR('Nové Fakturační Skupiny'!D19=\"\",'Nové Fakturační Skupiny'!E19=\"\",'Nové Fakturační Skupiny'!F19=\"\",'Nové Fakturační Skupiny'!H19=\"\",'Nové Fakturační Skupiny'!I19=\"\",'Nové Fakturační Skupiny'!J19=\"\",'Nové Fakturační Skupiny'!O19=\"\",TypVyuctSluzeb_18=\"E\")","v":true},{"$f":"OR('Nové Fakturační Skupiny'!D19=\"\",'Nové Fakturační Skupiny'!E19=\"\",'Nové Fakturační Skupiny'!F19=\"\",'Nové Fakturační Skupiny'!H19=\"\",'Nové Fakturační Skupiny'!I19=\"\",'Nové Fakturační Skupiny'!J19=\"\",'Nové Fakturační Skupiny'!O19=\"\")","v":true},{"$f":"OR('Nové Fakturační Skupiny'!D19=\"\",'Nové Fakturační Skupiny'!E19=\"\",'Nové Fakturační Skupiny'!F19=\"\",'Nové Fakturační Skupiny'!H19=\"\",'Nové Fakturační Skupiny'!I19=\"\",'Nové Fakturační Skupiny'!J19=\"\",'Nové Fakturační Skupiny'!L19=\"\",'Nové Fakturační Skupiny'!M19=\"\",'Nové Fakturační Skupiny'!N19=\"\",'Nové Fakturační Skupiny'!O19=\"\")","v":true},{"$f":"OR(AND(TypVyuctSluzeb_18=\"E\",BA_PVH_18=\"T\"),AND(IFERROR(SEARCH(\"ANO\",ZasilatEmail_18),\"\") = 1,TypVyuctSluzeb_18 = \"P\"),AND(IFERROR(SEARCH(\"ANO\",ZasilatEmail_18),\"\") = 1,TypVyuctSluzeb_18 = \"E\",Email_18 = \"\"))","v":false},{"$f":"IF(IF(ZpusobUhrady_18=\"PP\",IF(AC19=FALSE,\"OK\",\"!\"),IF(ZpusobUhrady_18=\"BÚ\",IF(AD19=FALSE,\"OK\",\"!\"),IF(ZpusobUhrady_18=\"I\",IF(AE19=FALSE,\"OK\",\"!\"))))=\"OK\",\"OK\",\"!\")","v":"!"},{"$f":"IF(AND(COUNTIF('Nové Fakturační Skupiny'!$B$2:$B$21,'Nové Fakturační Skupiny'!B19)=1),AG19,\"!\")","v":"!"},null,{"$f":"VLOOKUP(HesloProBLok_18,AL2:AM12,2,0)","v":{"$error":"#NAME?"}},"OK","6543",null,"",{"$f":"IF('Převáděné služby'!K19 = \"N\",\"vyberte FS (N)\", \"zadejte FS: (M)\")","v":"zadejte FS: (M)"},{"$f":"IF(AH19=\"OK\",NazevFS_18,\"_\")","v":"_"},null,null,"Bangladéš"]
[null,null,"Pravnicka osoba","S","CFyzicka osoba podnikatel","Chytré auto WiFi standard","M2M 2 Pro Firmu bez závazku","Není k dispozici",null,null,null,null,null,null,null,null,null,null,null,null,null,null,null,3050,null,null,null,null,{"$f":"OR('Nové Fakturační Skupiny'!D20=\"\",'Nové Fakturační Skupiny'!E20=\"\",'Nové Fakturační Skupiny'!F20=\"\",'Nové Fakturační Skupiny'!H20=\"\",'Nové Fakturační Skupiny'!I20=\"\",'Nové Fakturační Skupiny'!J20=\"\",'Nové Fakturační Skupiny'!O20=\"\",TypVyuctSluzeb_19=\"E\")","v":true},{"$f":"OR('Nové Fakturační Skupiny'!D20=\"\",'Nové Fakturační Skupiny'!E20=\"\",'Nové Fakturační Skupiny'!F20=\"\",'Nové Fakturační Skupiny'!H20=\"\",'Nové Fakturační Skupiny'!I20=\"\",'Nové Fakturační Skupiny'!J20=\"\",'Nové Fakturační Skupiny'!O20=\"\")","v":true},{"$f":"OR('Nové Fakturační Skupiny'!D20=\"\",'Nové Fakturační Skupiny'!E20=\"\",'Nové Fakturační Skupiny'!F20=\"\",'Nové Fakturační Skupiny'!H20=\"\",'Nové Fakturační Skupiny'!I20=\"\",'Nové Fakturační Skupiny'!J20=\"\",'Nové Fakturační Skupiny'!L20=\"\",'Nové Fakturační Skupiny'!M20=\"\",'Nové Fakturační Skupiny'!N20=\"\",'Nové Fakturační Skupiny'!O20=\"\")","v":true},{"$f":"OR(AND(TypVyuctSluzeb_19=\"E\",BA_PVH_19=\"T\"),AND(IFERROR(SEARCH(\"ANO\",ZasilatEmail_19),\"\") = 1,TypVyuctSluzeb_19 = \"P\"),AND(IFERROR(SEARCH(\"ANO\",ZasilatEmail_19),\"\") = 1,TypVyuctSluzeb_19 = \"E\",Email_19 = \"\"))","v":false},{"$f":"IF(IF(ZpusobUhrady_19=\"PP\",IF(AC20=FALSE,\"OK\",\"!\"),IF(ZpusobUhrady_19=\"BÚ\",IF(AD20=FALSE,\"OK\",\"!\"),IF(ZpusobUhrady_19=\"I\",IF(AE20=FALSE,\"OK\",\"!\"))))=\"OK\",\"OK\",\"!\")","v":"!"},{"$f":"IF(AND(COUNTIF('Nové Fakturační Skupiny'!$B$2:$B$21,'Nové Fakturační Skupiny'!B20)=1),AG20,\"!\")","v":"!"},null,{"$f":"VLOOKUP(HesloProBLok_19,AL2:AM12,2,0)","v":{"$error":"#NAME?"}},"OK","7654",null,"",{"$f":"IF('Převáděné služby'!K20 = \"N\",\"vyberte FS (N)\", \"zadejte FS: (M)\")","v":"zadejte FS: (M)"},{"$f":"IF(AH20=\"OK\",NazevFS_19,\"_\")","v":"_"},null,null,"Barbados"]
[null,null,"Pravnicka osoba","T","CFyzicka osoba podnikatel","Chytré auto WiFi standard bez závazku","M2M 2 Pro Firmu bez roamingu bez závazku","Není k dispozici",null,null,null,null,null,null,null,null,null,null,null,null,null,null,null,7910,null,null,null,null,{"$f":"OR('Nové Fakturační Skupiny'!D21=\"\",'Nové Fakturační Skupiny'!E21=\"\",'Nové Fakturační Skupiny'!F21=\"\",'Nové Fakturační Skupiny'!H21=\"\",'Nové Fakturační Skupiny'!I21=\"\",'Nové Fakturační Skupiny'!J21=\"\",'Nové Fakturační Skupiny'!O21=\"\",TypVyuctSluzeb_20=\"E\")","v":true},{"$f":"OR('Nové Fakturační Skupiny'!D21=\"\",'Nové Fakturační Skupiny'!E21=\"\",'Nové Fakturační Skupiny'!F21=\"\",'Nové Fakturační Skupiny'!H21=\"\",'Nové Fakturační Skupiny'!I21=\"\",'Nové Fakturační Skupiny'!J21=\"\",'Nové Fakturační Skupiny'!O21=\"\")","v":true},{"$f":"OR('Nové Fakturační Skupiny'!D21=\"\",'Nové Fakturační Skupiny'!E21=\"\",'Nové Fakturační Skupiny'!F21=\"\",'Nové Fakturační Skupiny'!H21=\"\",'Nové Fakturační Skupiny'!I21=\"\",'Nové Fakturační Skupiny'!J21=\"\",'Nové Fakturační Skupiny'!L21=\"\",'Nové Fakturační Skupiny'!M21=\"\",'Nové Fakturační Skupiny'!N21=\"\",'Nové Fakturační Skupiny'!O21=\"\")","v":true},{"$f":"OR(AND(TypVyuctSluzeb_20=\"E\",BA_PVH_20=\"T\"),AND(IFERROR(SEARCH(\"ANO\",ZasilatEmail_20),\"\") = 1,TypVyuctSluzeb_20 = \"P\"),AND(IFERROR(SEARCH(\"ANO\",ZasilatEmail_20),\"\") = 1,TypVyuctSluzeb_20 = \"E\",Email_20 = \"\"))","v":false},{"$f":"IF(IF(ZpusobUhrady_20=\"PP\",IF(AC21=FALSE,\"OK\",\"!\"),IF(ZpusobUhrady_20=\"BÚ\",IF(AD21=FALSE,\"OK\",\"!\"),IF(ZpusobUhrady_20=\"I\",IF(AE21=FALSE,\"OK\",\"!\"))))=\"OK\",\"OK\",\"!\")","v":"!"},{"$f":"IF(AND(COUNTIF('Nové Fakturační Skupiny'!$B$2:$B$21,'Nové Fakturační Skupiny'!B21)=1),AG21,\"!\")","v":"!"},null,{"$f":"VLOOKUP(HesloProBLok_20,AL2:AM12,2,0)","v":{"$error":"#NAME?"}},"OK","8765",null,"",{"$f":"IF('Převáděné služby'!K21 = \"N\",\"vyberte FS (N)\", \"zadejte FS: (M)\")","v":"zadejte FS: (M)"},{"$f":"IF(AH21=\"OK\",NazevFS_20,\"_\")","v":"_"},null,null,"Barma"]
[null,null,"Fyzicka osoba","B","DFyzicka osoba podnikatel","Data 10 GB Plus","M2M 3 Pro Firmu","Není k dispozici",null,null,null,null,null,null,null,null,null,null,null,null,null,null,null,8040,null,null,null,null,null,null,null,null,null,null,null,null,null,"0000",null,null,{"$f":"IF('Převáděné služby'!K22 = \"N\",\"vyberte FS (N)\", \"zadejte FS: (M)\")","v":"zadejte FS: (M)"},null,null,null,"Belgie"]
[null,null,"Fyzicka osoba","C","DFyzicka osoba podnikatel","Data 10 GB Plus s výhodou","M2M 3 Pro Firmu bez závazku","Není k dispozici",null,null,null,null,null,null,null,null,null,null,null,null,null,null,null,"9002",null,null,null,null,null,null,null,null,null,null,null,null,null,"9876",null,null,{"$f":"IF('Převáděné služby'!K23 = \"N\",\"vyberte FS (N)\", \"zadejte FS: (M)\")","v":"zadejte FS: (M)"},null,null,null,"Belize"]
[null,null,"Fyzicka osoba","D","DFyzicka osoba podnikatel","Data 4 GB Plus","M2M 4 Pro Firmu","Není k dispozici",null,null,null,null,null,null,null,null,null,null,null,null,null,null,null,null,null,null,null,null,null,null,null,null,null,null,null,null,null,{"$f":"IF(LEFT(FC_zajemce,4)=\"\",0,LEFT(FC_zajemce,4))","v":0},null,null,{"$f":"IF('Převáděné služby'!K24 = \"N\",\"vyberte FS (N)\", \"zadejte FS: (M)\")","v":"zadejte FS: (M)"},null,null,null,"Benin"]
[null,null,"Fyzicka osoba","H","DFyzicka osoba podnikatel","Data 4 GB Plus s výhodou","M2M 4 Pro Firmu bez závazku","Není k dispozici",null,null,null,null,null,null,null,null,null,null,null,null,null,null,null,null,null,null,null,null,null,null,null,null,null,null,null,null,null,"0123",null,null,{"$f":"IF('Převáděné služby'!K25 = \"N\",\"vyberte FS (N)\", \"zadejte FS: (M)\")","v":"zadejte FS: (M)"},null,null,null,"Bermudy"]
[null,null,"Fyzicka osoba","I","DFyzicka osoba podnikatel","Data neomezeně","M2M Mini","Není k dispozici",null,null,null,null,null,null,null,null,null,null,null,null,null,null,null,null,null,null,null,null,null,null,null,null,null,null,null,null,null,null,null,null,{"$f":"IF('Převáděné služby'!K26 = \"N\",\"vyberte FS (N)\", \"zadejte FS: (M)\")","v":"zadejte FS: (M)"},null,null,null,"Bhutan"]
[null,null,"Fyzicka osoba","M","DFyzicka osoba podnikatel","Data neomezeně 5G","M2M Mini bez závazku","Není k dispozici",null,null,null,null,null,null,null,null,null,null,null,null,null,null,null,null,null,null,null,null,null,null,null,null,null,null,null,null,null,null,null,null,{"$f":"IF('Převáděné služby'!K27 = \"N\",\"vyberte FS (N)\", \"zadejte FS: (M)\")","v":"zadejte FS: (M)"},null,null,null,"Bolívie"]
[null,null,"Fyzicka osoba","S","DFyzicka osoba podnikatel","Data neomezeně 5G s výhodou","M2M Premium","Není k dispozici",null,null,null,null,null,null,null,null,null,null,null,null,null,null,null,null,null,null,null,null,null,null,null,null,null,null,null,null,null,null,null,null,{"$f":"IF('Převáděné služby'!K28 = \"N\",\"vyberte FS (N)\", \"zadejte FS: (M)\")","v":"zadejte FS: (M)"},null,null,null,"Bosna a Hercegovina"]
[null,null,"Fyzicka osoba","T","DFyzicka osoba podnikatel","Data neomezeně s výhodou","M2M Premium bez závazku","Není k dispozici",null,null,null,null,null,null,null,null,null,null,null,null,null,null,null,null,null,null,null,null,null,null,null,null,null,null,null,null,null,null,null,null,{"$f":"IF('Převáděné služby'!K29 = \"N\",\"vyberte FS (N)\", \"zadejte FS: (M)\")","v":"zadejte FS: (M)"},null,null,null,"Botswana"]
[null,null,null,null,"HFyzicka osoba podnikatel","Happy Partner","M2M Profi","Není k dispozici",null,null,null,null,null,null,null,null,null,null,null,null,null,null,null,null,null,null,null,null,null,null,null,null,null,null,null,null,null,null,null,null,{"$f":"IF('Převáděné služby'!K30 = \"N\",\"vyberte FS (N)\", \"zadejte FS: (M)\")","v":"zadejte FS: (M)"},null,null,null,"Bouvet Island"]
[null,null,null,null,"HFyzicka osoba podnikatel","Happy Partner bez závazku","M2M Profi bez závazku","Není k dispozici",null,null,null,null,null,null,null,null,null,null,null,null,null,null,null,null,null,null,null,null,null,null,null,null,null,null,null,null,null,null,null,null,{"$f":"IF('Převáděné služby'!K31 = \"N\",\"vyberte FS (N)\", \"zadejte FS: (M)\")","v":"zadejte FS: (M)"},null,null,null,"Brazílie"]
[null,null,null,null,"IFyzicka osoba podnikatel","Internet 10 GB","M2M","Není k dispozici",null,null,null,null,null,null,null,null,null,null,null,null,null,null,null,null,null,null,null,null,null,null,null,null,null,null,null,null,null,null,null,null,{"$f":"IF('Převáděné služby'!K32 = \"N\",\"vyberte FS (N)\", \"zadejte FS: (M)\")","v":"zadejte FS: (M)"},null,null,null,"British Indian Ocean Territory"]
[null,null,null,null,"IFyzicka osoba podnikatel","Internet 10 GB s výhodou","M2M bez závazku","Není k dispozici",null,null,null,null,null,null,null,null,null,null,null,null,null,null,null,null,null,null,null,null,null,null,null,null,null,null,null,null,null,null,null,null,{"$f":"IF('Převáděné služby'!K33 = \"N\",\"vyberte FS (N)\", \"zadejte FS: (M)\")","v":"zadejte FS: (M)"},null,null,null,"Britské Panenské ostrovy"]
[null,null,null,null,"IFyzicka osoba podnikatel","Internet 4 GB","Mobilní internet 1,5GB","Není k dispozici",null,null,null,null,null,null,null,null,null,null,null,null,null,null,null,null,null,null,null,null,null,null,null,null,null,null,null,null,null,null,null,null,{"$f":"IF('Převáděné služby'!K34 = \"N\",\"vyberte FS (N)\", \"zadejte FS: (M)\")","v":"zadejte FS: (M)"},null,null,null,"Brunei"]
[null,null,null,null,"IFyzicka osoba podnikatel","Internet 4 GB s výhodou","Mobilní internet 1,5GB bez závazku","Není k dispozici",null,null,null,null,null,null,null,null,null,null,null,null,null,null,null,null,null,null,null,null,null,null,null,null,null,null,null,null,null,null,null,null,{"$f":"IF('Převáděné služby'!K35 = \"N\",\"vyberte FS (N)\", \"zadejte FS: (M)\")","v":"zadejte FS: (M)"},null,null,null,"Bukina Faso"]
[null,null,null,null,"IFyzicka osoba podnikatel","Internet 6 GB ","Mobilní internet 1,5GB se závazkem na 12 měsíců","Není k dispozici",null,null,null,null,null,null,null,null,null,null,null,null,null,null,null,null,null,null,null,null,null,null,null,null,null,null,null,null,null,null,null,null,{"$f":"IF('Převáděné služby'!K36 = \"N\",\"vyberte FS (N)\", \"zadejte FS: (M)\")","v":"zadejte FS: (M)"},null,null,null,"Bulharsko"]
[null,null,null,null,"IFyzicka osoba podnikatel","Internet 6 GB  s výhodou","Mobilní internet 10GB","Není k dispozici",null,null,null,null,null,null,null,null,null,null,null,null,null,null,null,null,null,null,null,null,null,null,null,null,null,null,null,null,null,null,null,null,{"$f":"IF('Převáděné služby'!K37 = \"N\",\"vyberte FS (N)\", \"zadejte FS: (M)\")","v":"zadejte FS: (M)"},null,null,null,"Burundi"]
[null,null,null,null,"IFyzicka osoba podnikatel","Internet neomezeně","Mobilní internet 10GB bez závazku","Není k dispozici",null,null,null,null,null,null,null,null,null,null,null,null,null,null,null,null,null,null,null,null,null,null,null,null,null,null,null,null,null,null,null,null,{"$f":"IF('Převáděné služby'!K38 = \"N\",\"vyberte FS (N)\", \"zadejte FS: (M)\")","v":"zadejte FS: (M)"},null,null,null,"Bělorusko"]
[null,null,null,null,"IFyzicka osoba podnikatel","Internet neomezeně 5G","Mobilní internet 3GB","Není k dispozici",null,null,null,null,null,null,null,null,null,null,null,null,null,null,null,null,null,null,null,null,null,null,null,null,null,null,null,null,null,null,null,null,{"$f":"IF('Převáděné služby'!K39 = \"N\",\"vyberte FS (N)\", \"zadejte FS: (M)\")","v":"zadejte FS: (M)"},null,null,null,"Chile"]
[null,null,null,null,"IFyzicka osoba podnikatel","Internet neomezeně 5G s výhodou","Mobilní internet 3GB bez závazku","Není k dispozici",null,null,null,null,null,null,null,null,null,null,null,null,null,null,null,null,null,null,null,null,null,null,null,null,null,null,null,null,null,null,null,null,{"$f":"IF('Převáděné služby'!K40 = \"N\",\"vyberte FS (N)\", \"zadejte FS: (M)\")","v":"zadejte FS: (M)"},null,null,null,"Chorvatsko"]
[null,null,null,null,"IFyzicka osoba podnikatel","Internet neomezeně s výhodou","Mobilní internet 30GB","Není k dispozici",null,null,null,null,null,null,null,null,null,null,null,null,null,null,null,null,null,null,null,null,null,null,null,null,null,null,null,null,null,null,null,null,{"$f":"IF('Převáděné služby'!K41 = \"N\",\"vyberte FS (N)\", \"zadejte FS: (M)\")","v":"zadejte FS: (M)"},null,null,null,"Christmas Island"]
[null,null,null,null,"IFyzicka osoba podnikatel","Internet bez drátu Premium","Mobilní internet 30GB bez závazku","Není k dispozici",null,null,null,null,null,null,null,null,null,null,null,null,null,null,null,null,null,null,null,null,null,null,null,null,null,null,null,null,null,null,null,null,{"$f":"IF('Převáděné služby'!K42 = \"N\",\"vyberte FS (N)\", \"zadejte FS: (M)\")","v":"zadejte FS: (M)"},null,null,null,"Comoros"]
[null,null,null,null,"IFyzicka osoba podnikatel","Internet bez drátu Premium bez závazku","Mobilní Internet 1 Pro Firmu","Není k dispozici",null,null,null,null,null,null,null,null,null,null,null,null,null,null,null,null,null,null,null,null,null,null,null,null,null,null,null,null,null,null,null,null,{"$f":"IF('Převáděné služby'!K43 = \"N\",\"vyberte FS (N)\", \"zadejte FS: (M)\")","v":"zadejte FS: (M)"},null,null,null,"Cookovy ostrovy"]
[null,null,null,null,"IFyzicka osoba podnikatel","Internet bez drátu Premium Plus","Mobilní Internet 1 Pro Firmu bez závazku","Není k dispozici",null,null,null,null,null,null,null,null,null,null,null,null,null,null,null,null,null,null,null,null,null,null,null,null,null,null,null,null,null,null,null,null,{"$f":"IF('Převáděné služby'!K44 = \"N\",\"vyberte FS (N)\", \"zadejte FS: (M)\")","v":"zadejte FS: (M)"},null,null,null,"Curacao"]
[null,null,null,null,"IFyzicka osoba podnikatel","Internet bez drátu Premium Plus bez závazku","Mobilní Internet 2 Pro Firmu","Není k dispozici",null,null,null,null,null,null,null,null,null,null,null,null,null,null,null,null,null,null,null,null,null,null,null,null,null,null,null,null,null,null,null,null,{"$f":"IF('Převáděné služby'!K45 = \"N\",\"vyberte FS (N)\", \"zadejte FS: (M)\")","v":"zadejte FS: (M)"},null,null,null,"Demokratická republika Kongo"]
[null,null,null,null,"IFyzicka osoba podnikatel","Internet bez drátu Standard","Mobilní Internet 2 Pro Firmu bez závazku","Není k dispozici",null,null,null,null,null,null,null,null,null,null,null,null,null,null,null,null,null,null,null,null,null,null,null,null,null,null,null,null,null,null,null,null,{"$f":"IF('Převáděné služby'!K46 = \"N\",\"vyberte FS (N)\", \"zadejte FS: (M)\")","v":"zadejte FS: (M)"},null,null,null,"Djibouti"]
[null,null,null,null,"IFyzicka osoba podnikatel","Internet bez drátu Standard bez závazku","Mobilní Internet 3 Pro Firmu","Není k dispozici",null,null,null,null,null,null,null,null,null,null,null,null,null,null,null,null,null,null,null,null,null,null,null,null,null,null,null,null,null,null,null,null,{"$f":"IF('Převáděné služby'!K47 = \"N\",\"vyberte FS (N)\", \"zadejte FS: (M)\")","v":"zadejte FS: (M)"},null,null,null,"Dominica"]
[null,null,null,null,"IFyzicka osoba podnikatel","Internet Komplet","Mobilní Internet 3 Pro Firmu bez závazku","Není k dispozici",null,null,null,null,null,null,null,null,null,null,null,null,null,null,null,null,null,null,null,null,null,null,null,null,null,null,null,null,null,null,null,null,{"$f":"IF('Převáděné služby'!K48 = \"N\",\"vyberte FS (N)\", \"zadejte FS: (M)\")","v":"zadejte FS: (M)"},null,null,null,"Dominikánská republika"]
[null,null,null,null,"IFyzicka osoba podnikatel","Internet Komplet bez závazku","Mobilní Internet 4 Pro Firmu","Není k dispozici",null,null,null,null,null,null,null,null,null,null,null,null,null,null,null,null,null,null,null,null,null,null,null,null,null,null,null,null,null,null,null,null,{"$f":"IF('Převáděné služby'!K49 = \"N\",\"vyberte FS (N)\", \"zadejte FS: (M)\")","v":"zadejte FS: (M)"},null,null,null,"Dánsko"]
[null,null,null,null,"MFyzicka osoba podnikatel","M2M","Mobilní Internet 4 Pro Firmu bez závazku","Není k dispozici",null,null,null,null,null,null,null,null,null,null,null,null,null,null,null,null,null,null,null,null,null,null,null,null,null,null,null,null,null,null,null,null,{"$f":"IF('Převáděné služby'!K50 = \"N\",\"vyberte FS (N)\", \"zadejte FS: (M)\")","v":"zadejte FS: (M)"},null,null,null,"East Timor"]
[null,null,null,null,"MFyzicka osoba podnikatel","M2M 1 Pro Firmu","Mobilní Internet 5 Pro Firmu","Není k dispozici",null,null,null,null,null,null,null,null,null,null,null,null,null,null,null,null,null,null,null,null,null,null,null,null,null,null,null,null,null,null,null,null,{"$f":"IF('Převáděné služby'!K51 = \"N\",\"vyberte FS (N)\", \"zadejte FS: (M)\")","v":"zadejte FS: (M)"},null,null,null,"Egypt"]
[null,null,null,null,"MFyzicka osoba podnikatel","M2M 1 Pro Firmu bez roamingu","Mobilní Internet 5 Pro Firmu bez závazku","Není k dispozici",null,null,null,null,null,null,null,null,null,null,null,null,null,null,null,null,null,null,null,null,null,null,null,null,null,null,null,null,null,null,null,null,{"$f":"IF('Převáděné služby'!K52 = \"N\",\"vyberte FS (N)\", \"zadejte FS: (M)\")","v":"zadejte FS: (M)"},null,null,null,"Ekvádor"]
[null,null,null,null,"MFyzicka osoba podnikatel","M2M 1 Pro Firmu bez roamingu bez závazku","Mobilní Internet 6 Pro Firmu","Není k dispozici",null,null,null,null,null,null,null,null,null,null,null,null,null,null,null,null,null,null,null,null,null,null,null,null,null,null,null,null,null,null,null,null,{"$f":"IF('Převáděné služby'!K53 = \"N\",\"vyberte FS (N)\", \"zadejte FS: (M)\")","v":"zadejte FS: (M)"},null,null,null,"El Salvador"]
[null,null,null,null,"MFyzicka osoba podnikatel","M2M 1 Pro Firmu bez závazku","Mobilní Internet 6 Pro Firmu bez závazku","Není k dispozici",null,null,null,null,null,null,null,null,null,null,null,null,null,null,null,null,null,null,null,null,null,null,null,null,null,null,null,null,null,null,null,null,{"$f":"IF('Převáděné služby'!K54 = \"N\",\"vyberte FS (N)\", \"zadejte FS: (M)\")","v":"zadejte FS: (M)"},null,null,null,"Eritrea"]
[null,null,null,null,"MFyzicka osoba podnikatel","M2M 2 Pro Firmu","Neomezený mobilní internet","Není k dispozici",null,null,null,null,null,null,null,null,null,null,null,null,null,null,null,null,null,null,null,null,null,null,null,null,null,null,null,null,null,null,null,null,{"$f":"IF('Převáděné služby'!K55 = \"N\",\"vyberte FS (N)\", \"zadejte FS: (M)\")","v":"zadejte FS: (M)"},null,null,null,"Estonsko"]
[null,null,null,null,"MFyzicka osoba podnikatel","M2M 2 Pro Firmu bez roamingu","Neomezený mobilní internet bez závazku","Není k dispozici",null,null,null,null,null,null,null,null,null,null,null,null,null,null,null,null,null,null,null,null,null,null,null,null,null,null,null,null,null,null,null,null,{"$f":"IF('Převáděné služby'!K56 = \"N\",\"vyberte FS (N)\", \"zadejte FS: (M)\")","v":"zadejte FS: (M)"},null,null,null,"Etiopie"]
[null,null,null,null,"MFyzicka osoba podnikatel","M2M 2 Pro Firmu bez roamingu bez závazku","Profi 120","Není k dispozici",null,null,null,null,null,null,null,null,null,null,null,null,null,null,null,null,null,null,null,null,null,null,null,null,null,null,null,null,null,null,null,null,{"$f":"IF('Převáděné služby'!K57 = \"N\",\"vyberte FS (N)\", \"zadejte FS: (M)\")","v":"zadejte FS: (M)"},null,null,null,"Falkland Islands (Malvinas)"]
[null,null,null,null,"MFyzicka osoba podnikatel","M2M 2 Pro Firmu bez závazku","Profi 120 HIT","Není k dispozici",null,null,null,null,null,null,null,null,null,null,null,null,null,null,null,null,null,null,null,null,null,null,null,null,null,null,null,null,null,null,null,null,{"$f":"IF('Převáděné služby'!K58 = \"N\",\"vyberte FS (N)\", \"zadejte FS: (M)\")","v":"zadejte FS: (M)"},null,null,null,"Faroe, ostrovy"]
[null,null,null,null,"MFyzicka osoba podnikatel","M2M 3 Pro Firmu","Profi na míru 1","Není k dispozici",null,null,null,null,null,null,null,null,null,null,null,null,null,null,null,null,null,null,null,null,null,null,null,null,null,null,null,null,null,null,null,null,{"$f":"IF('Převáděné služby'!K59 = \"N\",\"vyberte FS (N)\", \"zadejte FS: (M)\")","v":"zadejte FS: (M)"},null,null,null,"Fidži"]
[null,null,null,null,"MFyzicka osoba podnikatel","M2M 3 Pro Firmu bez závazku","Profi na míru 1 bez závazku","Není k dispozici",null,null,null,null,null,null,null,null,null,null,null,null,null,null,null,null,null,null,null,null,null,null,null,null,null,null,null,null,null,null,null,null,{"$f":"IF('Převáděné služby'!K60 = \"N\",\"vyberte FS (N)\", \"zadejte FS: (M)\")","v":"zadejte FS: (M)"},null,null,null,"Filipíny"]
[null,null,null,null,"MFyzicka osoba podnikatel","M2M 4 Pro Firmu","Profi na míru 2","Není k dispozici",null,null,null,null,null,null,null,null,null,null,null,null,null,null,null,null,null,null,null,null,null,null,null,null,null,null,null,null,null,null,null,null,{"$f":"IF('Převáděné služby'!K61 = \"N\",\"vyberte FS (N)\", \"zadejte FS: (M)\")","v":"zadejte FS: (M)"},null,null,null,"Finsko"]
[null,null,null,null,"MFyzicka osoba podnikatel","M2M 4 Pro Firmu bez závazku","Profi na míru 2 bez závazku","Není k dispozici",null,null,null,null,null,null,null,null,null,null,null,null,null,null,null,null,null,null,null,null,null,null,null,null,null,null,null,null,null,null,null,null,{"$f":"IF('Převáděné služby'!K62 = \"N\",\"vyberte FS (N)\", \"zadejte FS: (M)\")","v":"zadejte FS: (M)"},null,null,null,"France, Metropolitan"]
[null,null,null,null,"MFyzicka osoba podnikatel","M2M bez závazku","Profi na míru 3","Není k dispozici",null,null,null,null,null,null,null,null,null,null,null,null,null,null,null,null,null,null,null,null,null,null,null,null,null,null,null,null,null,null,null,null,{"$f":"IF('Převáděné služby'!K63 = \"N\",\"vyberte FS (N)\", \"zadejte FS: (M)\")","v":"zadejte FS: (M)"},null,null,null,"Francie"]
[null,null,null,null,"MFyzicka osoba podnikatel","M2M Mini","Profi na míru 3 bez závazku","Není k dispozici",null,null,null,null,null,null,null,null,null,null,null,null,null,null,null,null,null,null,null,null,null,null,null,null,null,null,null,null,null,null,null,null,{"$f":"IF('Převáděné služby'!K64 = \"N\",\"vyberte FS (N)\", \"zadejte FS: (M)\")","v":"zadejte FS: (M)"},null,null,null,"Francouzská Guyana"]
[null,null,null,null,"MFyzicka osoba podnikatel","M2M Mini bez závazku","Profi na míru 4","Není k dispozici",null,null,null,null,null,null,null,null,null,null,null,null,null,null,null,null,null,null,null,null,null,null,null,null,null,null,null,null,null,null,null,null,{"$f":"IF('Převáděné služby'!K65 = \"N\",\"vyberte FS (N)\", \"zadejte FS: (M)\")","v":"zadejte FS: (M)"},null,null,null,"French Polynesia"]
[null,null,null,null,"MFyzicka osoba podnikatel","M2M Premium","Profi na míru 4 bez závazku","Není k dispozici",null,null,null,null,null,null,null,null,null,null,null,null,null,null,null,null,null,null,null,null,null,null,null,null,null,null,null,null,null,null,null,null,{"$f":"IF('Převáděné služby'!K66 = \"N\",\"vyberte FS (N)\", \"zadejte FS: (M)\")","v":"zadejte FS: (M)"},null,null,null,"French Southern Territories"]
[null,null,null,null,"MFyzicka osoba podnikatel","M2M Premium bez závazku","Profi na míru 5","Není k dispozici",null,null,null,null,null,null,null,null,null,null,null,null,null,null,null,null,null,null,null,null,null,null,null,null,null,null,null,null,null,null,null,null,{"$f":"IF('Převáděné služby'!K67 = \"N\",\"vyberte FS (N)\", \"zadejte FS: (M)\")","v":"zadejte FS: (M)"},null,null,null,"Gabon"]
[null,null,null,null,"MFyzicka osoba podnikatel","M2M Profi","Profi na míru 5 bez závazku","Není k dispozici",null,null,null,null,null,null,null,null,null,null,null,null,null,null,null,null,null,null,null,null,null,null,null,null,null,null,null,null,null,null,null,null,{"$f":"IF('Převáděné služby'!K68 = \"N\",\"vyberte FS (N)\", \"zadejte FS: (M)\")","v":"zadejte FS: (M)"},null,null,null,"Gambie"]
[null,null,null,null,"MFyzicka osoba podnikatel","M2M Profi bez závazku","T 1500","Není k dispozici",null,null,null,null,null,null,null,null,null,null,null,null,null,null,null,null,null,null,null,null,null,null,null,null,null,null,null,null,null,null,null,null,{"$f":"IF('Převáděné služby'!K69 = \"N\",\"vyberte FS (N)\", \"zadejte FS: (M)\")","v":"zadejte FS: (M)"},null,null,null,"Ghana"]
[null,null,null,null,"MFyzicka osoba podnikatel","Mobil DATA bez závazku se 100 min a 100 SMS navíc","T 1500 HIT","Není k dispozici",null,null,null,null,null,null,null,null,null,null,null,null,null,null,null,null,null,null,null,null,null,null,null,null,null,null,null,null,null,null,null,null,{"$f":"IF('Převáděné služby'!K70 = \"N\",\"vyberte FS (N)\", \"zadejte FS: (M)\")","v":"zadejte FS: (M)"},null,null,null,"Gibraltar"]
[null,null,null,null,"MFyzicka osoba podnikatel","Mobilní internet 1,5GB","T 160","Není k dispozici",null,null,null,null,null,null,null,null,null,null,null,null,null,null,null,null,null,null,null,null,null,null,null,null,null,null,null,null,null,null,null,null,{"$f":"IF('Převáděné služby'!K71 = \"N\",\"vyberte FS (N)\", \"zadejte FS: (M)\")","v":"zadejte FS: (M)"},null,null,null,"Grenada"]
[null,null,null,null,"MFyzicka osoba podnikatel","Mobilní internet 1,5GB bez závazku","T 160 HIT","Není k dispozici",null,null,null,null,null,null,null,null,null,null,null,null,null,null,null,null,null,null,null,null,null,null,null,null,null,null,null,null,null,null,null,null,{"$f":"IF('Převáděné služby'!K72 = \"N\",\"vyberte FS (N)\", \"zadejte FS: (M)\")","v":"zadejte FS: (M)"},null,null,null,"Gruzie"]
[null,null,null,null,"MFyzicka osoba podnikatel","Mobilní internet 1,5GB se závazkem na 12 měsíců","T 30","Není k dispozici",null,null,null,null,null,null,null,null,null,null,null,null,null,null,null,null,null,null,null,null,null,null,null,null,null,null,null,null,null,null,null,null,{"$f":"IF('Převáděné služby'!K73 = \"N\",\"vyberte FS (N)\", \"zadejte FS: (M)\")","v":"zadejte FS: (M)"},null,null,null,"Grónsko"]
[null,null,null,null,"MFyzicka osoba podnikatel","Mobilní internet 10GB","T 30 HIT","Není k dispozici",null,null,null,null,null,null,null,null,null,null,null,null,null,null,null,null,null,null,null,null,null,null,null,null,null,null,null,null,null,null,null,null,{"$f":"IF('Převáděné služby'!K74 = \"N\",\"vyberte FS (N)\", \"zadejte FS: (M)\")","v":"zadejte FS: (M)"},null,null,null,"Guadeloupe"]
[null,null,null,null,"MFyzicka osoba podnikatel","Mobilní internet 10GB bez závazku","T 300","Není k dispozici",null,null,null,null,null,null,null,null,null,null,null,null,null,null,null,null,null,null,null,null,null,null,null,null,null,null,null,null,null,null,null,null,{"$f":"IF('Převáděné služby'!K75 = \"N\",\"vyberte FS (N)\", \"zadejte FS: (M)\")","v":"zadejte FS: (M)"},null,null,null,"Guam"]
[null,null,null,null,"MFyzicka osoba podnikatel","Mobilní internet 30GB","T 300 HIT","Není k dispozici",null,null,null,null,null,null,null,null,null,null,null,null,null,null,null,null,null,null,null,null,null,null,null,null,null,null,null,null,null,null,null,null,{"$f":"IF('Převáděné služby'!K76 = \"N\",\"vyberte FS (N)\", \"zadejte FS: (M)\")","v":"zadejte FS: (M)"},null,null,null,"Guatemala"]
[null,null,null,null,"MFyzicka osoba podnikatel","Mobilní internet 30GB bez závazku","T 600","Není k dispozici",null,null,null,null,null,null,null,null,null,null,null,null,null,null,null,null,null,null,null,null,null,null,null,null,null,null,null,null,null,null,null,null,{"$f":"IF('Převáděné služby'!K77 = \"N\",\"vyberte FS (N)\", \"zadejte FS: (M)\")","v":"zadejte FS: (M)"},null,null,null,"Guinea"]
[null,null,null,null,"MFyzicka osoba podnikatel","Mobilní internet 3GB","T 600 HIT","Není k dispozici",null,null,null,null,null,null,null,null,null,null,null,null,null,null,null,null,null,null,null,null,null,null,null,null,null,null,null,null,null,null,null,null,{"$f":"IF('Převáděné služby'!K78 = \"N\",\"vyberte FS (N)\", \"zadejte FS: (M)\")","v":"zadejte FS: (M)"},null,null,null,"Guinea-Bissau"]
[null,null,null,null,"MFyzicka osoba podnikatel","Mobilní internet 3GB bez závazku","T 80","Není k dispozici",null,null,null,null,null,null,null,null,null,null,null,null,null,null,null,null,null,null,null,null,null,null,null,null,null,null,null,null,null,null,null,null,{"$f":"IF('Převáděné služby'!K79 = \"N\",\"vyberte FS (N)\", \"zadejte FS: (M)\")","v":"zadejte FS: (M)"},null,null,null,"Guyana"]
[null,null,null,null,"MFyzicka osoba podnikatel","Mobilní Internet 1 Pro Firmu","T 80 HIT","Není k dispozici",null,null,null,null,null,null,null,null,null,null,null,null,null,null,null,null,null,null,null,null,null,null,null,null,null,null,null,null,null,null,null,null,{"$f":"IF('Převáděné služby'!K80 = \"N\",\"vyberte FS (N)\", \"zadejte FS: (M)\")","v":"zadejte FS: (M)"},null,null,null,"Haiti"]
[null,null,null,null,"MFyzicka osoba podnikatel","Mobilní Internet 1 Pro Firmu bez závazku","Tarif 1 Pro Firmu","Není k dispozici",null,null,null,null,null,null,null,null,null,null,null,null,null,null,null,null,null,null,null,null,null,null,null,null,null,null,null,null,null,null,null,null,{"$f":"IF('Převáděné služby'!K81 = \"N\",\"vyberte FS (N)\", \"zadejte FS: (M)\")","v":"zadejte FS: (M)"},null,null,null,"Heard And Mc Donald Islands"]
[null,null,null,null,"MFyzicka osoba podnikatel","Mobilní Internet 2 Pro Firmu","Tarif 1 Pro Firmu bez závazku","Není k dispozici",null,null,null,null,null,null,null,null,null,null,null,null,null,null,null,null,null,null,null,null,null,null,null,null,null,null,null,null,null,null,null,null,{"$f":"IF('Převáděné služby'!K82 = \"N\",\"vyberte FS (N)\", \"zadejte FS: (M)\")","v":"zadejte FS: (M)"},null,null,null,"Honduras"]
[null,null,null,null,"MFyzicka osoba podnikatel","Mobilní Internet 2 Pro Firmu bez závazku","Tarif 2 Pro Firmu","Není k dispozici",null,null,null,null,null,null,null,null,null,null,null,null,null,null,null,null,null,null,null,null,null,null,null,null,null,null,null,null,null,null,null,null,{"$f":"IF('Převáděné služby'!K83 = \"N\",\"vyberte FS (N)\", \"zadejte FS: (M)\")","v":"zadejte FS: (M)"},null,null,null,"Hong Kong"]
[null,null,null,null,"MFyzicka osoba podnikatel","Mobilní Internet 3 Pro Firmu","Tarif 2 Pro Firmu bez závazku","Není k dispozici",null,null,null,null,null,null,null,null,null,null,null,null,null,null,null,null,null,null,null,null,null,null,null,null,null,null,null,null,null,null,null,null,{"$f":"IF('Převáděné služby'!K84 = \"N\",\"vyberte FS (N)\", \"zadejte FS: (M)\")","v":"zadejte FS: (M)"},null,null,null,"Indie"]
[null,null,null,null,"MFyzicka osoba podnikatel","Mobilní Internet 3 Pro Firmu bez závazku","Tarif 3 Pro Firmu","Není k dispozici",null,null,null,null,null,null,null,null,null,null,null,null,null,null,null,null,null,null,null,null,null,null,null,null,null,null,null,null,null,null,null,null,{"$f":"IF('Převáděné služby'!K85 = \"N\",\"vyberte FS (N)\", \"zadejte FS: (M)\")","v":"zadejte FS: (M)"},null,null,null,"Indonésie"]
[null,null,null,null,"MFyzicka osoba podnikatel","Mobilní Internet 4 Pro Firmu","Tarif 3 Pro Firmu bez závazku","Není k dispozici",null,null,null,null,null,null,null,null,null,null,null,null,null,null,null,null,null,null,null,null,null,null,null,null,null,null,null,null,null,null,null,null,{"$f":"IF('Převáděné služby'!K86 = \"N\",\"vyberte FS (N)\", \"zadejte FS: (M)\")","v":"zadejte FS: (M)"},null,null,null,"Irsko"]
[null,null,null,null,"MFyzicka osoba podnikatel","Mobilní Internet 4 Pro Firmu bez závazku","Tarif 4 Pro Firmu","Není k dispozici",null,null,null,null,null,null,null,null,null,null,null,null,null,null,null,null,null,null,null,null,null,null,null,null,null,null,null,null,null,null,null,null,{"$f":"IF('Převáděné služby'!K87 = \"N\",\"vyberte FS (N)\", \"zadejte FS: (M)\")","v":"zadejte FS: (M)"},null,null,null,"Irák"]
[null,null,null,null,"MFyzicka osoba podnikatel","Mobilní Internet 5 Pro Firmu","Tarif 4 Pro Firmu bez závazku","Není k dispozici",null,null,null,null,null,null,null,null,null,null,null,null,null,null,null,null,null,null,null,null,null,null,null,null,null,null,null,null,null,null,null,null,{"$f":"IF('Převáděné služby'!K88 = \"N\",\"vyberte FS (N)\", \"zadejte FS: (M)\")","v":"zadejte FS: (M)"},null,null,null,"Island"]
[null,null,null,null,"MFyzicka osoba podnikatel","Mobilní Internet 5 Pro Firmu bez závazku","Tarif 5 Pro Firmu","Není k dispozici",null,null,null,null,null,null,null,null,null,null,null,null,null,null,null,null,null,null,null,null,null,null,null,null,null,null,null,null,null,null,null,null,{"$f":"IF('Převáděné služby'!K89 = \"N\",\"vyberte FS (N)\", \"zadejte FS: (M)\")","v":"zadejte FS: (M)"},null,null,null,"Itálie"]
[null,null,null,null,"MFyzicka osoba podnikatel","Mobilní Internet 6 Pro Firmu","Tarif 5 Pro Firmu bez závazku","Není k dispozici",null,null,null,null,null,null,null,null,null,null,null,null,null,null,null,null,null,null,null,null,null,null,null,null,null,null,null,null,null,null,null,null,{"$f":"IF('Převáděné služby'!K90 = \"N\",\"vyberte FS (N)\", \"zadejte FS: (M)\")","v":"zadejte FS: (M)"},null,null,null,"Izrael"]
[null,null,null,null,"MFyzicka osoba podnikatel","Mobilní Internet 6 Pro Firmu bez závazku","Tarif 6 Pro Firmu","Není k dispozici",null,null,null,null,null,null,null,null,null,null,null,null,null,null,null,null,null,null,null,null,null,null,null,null,null,null,null,null,null,null,null,null,{"$f":"IF('Převáděné služby'!K91 = \"N\",\"vyberte FS (N)\", \"zadejte FS: (M)\")","v":"zadejte FS: (M)"},null,null,null,"Jamajka"]
[null,null,null,null,"NFyzicka osoba podnikatel","Neomezeně 5G L","Tarif 6 Pro Firmu bez závazku","Není k dispozici",null,null,null,null,null,null,null,null,null,null,null,null,null,null,null,null,null,null,null,null,null,null,null,null,null,null,null,null,null,null,null,null,{"$f":"IF('Převáděné služby'!K92 = \"N\",\"vyberte FS (N)\", \"zadejte FS: (M)\")","v":"zadejte FS: (M)"},null,null,null,"Japonsko"]
[null,null,null,null,"NFyzicka osoba podnikatel","Neomezeně 5G L s výhodou","Tarif 7 Pro Firmu","Není k dispozici",null,null,null,null,null,null,null,null,null,null,null,null,null,null,null,null,null,null,null,null,null,null,null,null,null,null,null,null,null,null,null,null,{"$f":"IF('Převáděné služby'!K93 = \"N\",\"vyberte FS (N)\", \"zadejte FS: (M)\")","v":"zadejte FS: (M)"},null,null,null,"Jemen"]
[null,null,null,null,"NFyzicka osoba podnikatel","Neomezeně 5G XL","Tarif 7 Pro Firmu bez závazku","Není k dispozici",null,null,null,null,null,null,null,null,null,null,null,null,null,null,null,null,null,null,null,null,null,null,null,null,null,null,null,null,null,null,null,null,{"$f":"IF('Převáděné služby'!K94 = \"N\",\"vyberte FS (N)\", \"zadejte FS: (M)\")","v":"zadejte FS: (M)"},null,null,null,"Jersey"]
[null,null,null,null,"NFyzicka osoba podnikatel","Neomezeně 5G XL business","Tarif 8 Pro Firmu","Není k dispozici",null,null,null,null,null,null,null,null,null,null,null,null,null,null,null,null,null,null,null,null,null,null,null,null,null,null,null,null,null,null,null,null,{"$f":"IF('Převáděné služby'!K95 = \"N\",\"vyberte FS (N)\", \"zadejte FS: (M)\")","v":"zadejte FS: (M)"},null,null,null,"Jihoafrická republika"]
[null,null,null,null,"NFyzicka osoba podnikatel","Neomezeně 5G XL business s výhodou","Tarif 8 Pro Firmu bez závazku","Není k dispozici",null,null,null,null,null,null,null,null,null,null,null,null,null,null,null,null,null,null,null,null,null,null,null,null,null,null,null,null,null,null,null,null,{"$f":"IF('Převáděné služby'!K96 = \"N\",\"vyberte FS (N)\", \"zadejte FS: (M)\")","v":"zadejte FS: (M)"},null,null,null,"Jihosúdánská republika"]
[null,null,null,null,"NFyzicka osoba podnikatel","Neomezeně 5G XL s výhodou","Tarif 9 Pro Firmu","Není k dispozici",null,null,null,null,null,null,null,null,null,null,null,null,null,null,null,null,null,null,null,null,null,null,null,null,null,null,null,null,null,null,null,null,{"$f":"IF('Převáděné služby'!K97 = \"N\",\"vyberte FS (N)\", \"zadejte FS: (M)\")","v":"zadejte FS: (M)"},null,null,null,"Jižní Korea"]
[null,null,null,null,"NFyzicka osoba podnikatel","Neomezeně 5G XXL","Tarif 9 Pro Firmu bez závazku","Není k dispozici",null,null,null,null,null,null,null,null,null,null,null,null,null,null,null,null,null,null,null,null,null,null,null,null,null,null,null,null,null,null,null,null,{"$f":"IF('Převáděné služby'!K98 = \"N\",\"vyberte FS (N)\", \"zadejte FS: (M)\")","v":"zadejte FS: (M)"},null,null,null,"Jordánsko"]
[null,null,null,null,"NFyzicka osoba podnikatel","Neomezeně 5G XXL s výhodou","Tarif 10 Pro Firmu","Není k dispozici",null,null,null,null,null,null,null,null,null,null,null,null,null,null,null,null,null,null,null,null,null,null,null,null,null,null,null,null,null,null,null,null,{"$f":"IF('Převáděné služby'!K99 = \"N\",\"vyberte FS (N)\", \"zadejte FS: (M)\")","v":"zadejte FS: (M)"},null,null,null,"Jugoslávie"]
[null,null,null,null,"NFyzicka osoba podnikatel","Neomezeně XL","Tarif 10 Pro Firmu bez závazku","Není k dispozici",null,null,null,null,null,null,null,null,null,null,null,null,null,null,null,null,null,null,null,null,null,null,null,null,null,null,null,null,null,null,null,null,{"$f":"IF('Převáděné služby'!K100 = \"N\",\"vyberte FS (N)\", \"zadejte FS: (M)\")","v":"zadejte FS: (M)"},null,null,null,"Kajmanské ostrovy"]
[null,null,null,null,"NFyzicka osoba podnikatel","Neomezeně XL s výhodou","50 Síť nesíť bez závazku","Není k dispozici",null,null,null,null,null,null,null,null,null,null,null,null,null,null,null,null,null,null,null,null,null,null,null,null,null,null,null,null,null,null,null,null,{"$f":"IF('Převáděné služby'!K101 = \"N\",\"vyberte FS (N)\", \"zadejte FS: (M)\")","v":"zadejte FS: (M)"},null,null,null,"Kambodža"]
[null,null,null,null,"NFyzicka osoba podnikatel","Neomezeně XXL","50 síť nesíť plus","Není k dispozici",null,null,null,null,null,null,null,null,null,null,null,null,null,null,null,null,null,null,null,null,null,null,null,null,null,null,null,null,null,null,null,null,{"$f":"IF('Převáděné služby'!K102 = \"N\",\"vyberte FS (N)\", \"zadejte FS: (M)\")","v":"zadejte FS: (M)"},null,null,null,"Kamerun"]
[null,null,null,null,"NFyzicka osoba podnikatel","Neomezeně XXL s výhodou","Mobil DATA bez závazku se 100 min a 100 SMS navíc","Není k dispozici",null,null,null,null,null,null,null,null,null,null,null,null,null,null,null,null,null,null,null,null,null,null,null,null,null,null,null,null,null,null,null,null,{"$f":"IF('Převáděné služby'!K103 = \"N\",\"vyberte FS (N)\", \"zadejte FS: (M)\")","v":"zadejte FS: (M)"},null,null,null,"Kanada"]
[null,null,null,null,"NFyzicka osoba podnikatel","Neomezený mobilní internet","Můj tarif se závazkem na 12 měsíců","Není k dispozici",null,null,null,null,null,null,null,null,null,null,null,null,null,null,null,null,null,null,null,null,null,null,null,null,null,null,null,null,null,null,null,null,{"$f":"IF('Převáděné služby'!K104 = \"N\",\"vyberte FS (N)\", \"zadejte FS: (M)\")","v":"zadejte FS: (M)"},null,null,null,"Kapverdy"]
[null,null,null,null,"NFyzicka osoba podnikatel","Neomezený mobilní internet bez závazku","S námi bez hranic","Není k dispozici",null,null,null,null,null,null,null,null,null,null,null,null,null,null,null,null,null,null,null,null,null,null,null,null,null,null,null,null,null,null,null,null,{"$f":"IF('Převáděné služby'!K105 = \"N\",\"vyberte FS (N)\", \"zadejte FS: (M)\")","v":"zadejte FS: (M)"},null,null,null,"Kazachstán"]
[null,null,null,null,"PFyzicka osoba podnikatel","Profi 120","S námi bez hranic bez závazku","Není k dispozici",null,null,null,null,null,null,null,null,null,null,null,null,null,null,null,null,null,null,null,null,null,null,null,null,null,null,null,null,null,null,null,null,{"$f":"IF('Převáděné služby'!K106 = \"N\",\"vyberte FS (N)\", \"zadejte FS: (M)\")","v":"zadejte FS: (M)"},null,null,null,"Keňa"]
[null,null,null,null,"PFyzicka osoba podnikatel","Profi 120 HIT","S námi bez hranic+","Není k dispozici",null,null,null,null,null,null,null,null,null,null,null,null,null,null,null,null,null,null,null,null,null,null,null,null,null,null,null,null,null,null,null,null,{"$f":"IF('Převáděné služby'!K107 = \"N\",\"vyberte FS (N)\", \"zadejte FS: (M)\")","v":"zadejte FS: (M)"},null,null,null,"Kiribati"]
[null,null,null,null,"PFyzicka osoba podnikatel","Profi na míru 1","S námi bez hranic+ bez závazku","Není k dispozici",null,null,null,null,null,null,null,null,null,null,null,null,null,null,null,null,null,null,null,null,null,null,null,null,null,null,null,null,null,null,null,null,{"$f":"IF('Převáděné služby'!K108 = \"N\",\"vyberte FS (N)\", \"zadejte FS: (M)\")","v":"zadejte FS: (M)"},null,null,null,"Kolumbie"]
[null,null,null,null,"PFyzicka osoba podnikatel","Profi na míru 1 bez závazku","S námi na cestách","Není k dispozici",null,null,null,null,null,null,null,null,null,null,null,null,null,null,null,null,null,null,null,null,null,null,null,null,null,null,null,null,null,null,null,null,{"$f":"IF('Převáděné služby'!K109 = \"N\",\"vyberte FS (N)\", \"zadejte FS: (M)\")","v":"zadejte FS: (M)"},null,null,null,"Kosovo"]
[null,null,null,null,"PFyzicka osoba podnikatel","Profi na míru 2","S námi na cestách bez závazku","Není k dispozici",null,null,null,null,null,null,null,null,null,null,null,null,null,null,null,null,null,null,null,null,null,null,null,null,null,null,null,null,null,null,null,null,{"$f":"IF('Převáděné služby'!K110 = \"N\",\"vyberte FS (N)\", \"zadejte FS: (M)\")","v":"zadejte FS: (M)"},null,null,null,"Kostarika"]
[null,null,null,null,"PFyzicka osoba podnikatel","Profi na míru 2 bez závazku","S námi pro ZTP","Není k dispozici",null,null,null,null,null,null,null,null,null,null,null,null,null,null,null,null,null,null,null,null,null,null,null,null,null,null,null,null,null,null,null,null,{"$f":"IF('Převáděné služby'!K111 = \"N\",\"vyberte FS (N)\", \"zadejte FS: (M)\")","v":"zadejte FS: (M)"},null,null,null,"Kuba"]
[null,null,null,null,"PFyzicka osoba podnikatel","Profi na míru 3","S námi sdílený","Není k dispozici",null,null,null,null,null,null,null,null,null,null,null,null,null,null,null,null,null,null,null,null,null,null,null,null,null,null,null,null,null,null,null,null,null,null,null,null,"Kuvajt"]
[null,null,null,null,"PFyzicka osoba podnikatel","Profi na míru 3 bez závazku","S námi sdílený bez závazku","Není k dispozici",null,null,null,null,null,null,null,null,null,null,null,null,null,null,null,null,null,null,null,null,null,null,null,null,null,null,null,null,null,null,null,null,null,null,null,null,"Kypr"]
[null,null,null,null,"PFyzicka osoba podnikatel","Profi na míru 4","S námi síť nesíť","Není k dispozici",null,null,null,null,null,null,null,null,null,null,null,null,null,null,null,null,null,null,null,null,null,null,null,null,null,null,null,null,null,null,null,null,null,null,null,null,"Kyrgychstán"]
[null,null,null,null,"PFyzicka osoba podnikatel","Profi na míru 4 bez závazku","S námi síť nesíť bez dat","Není k dispozici",null,null,null,null,null,null,null,null,null,null,null,null,null,null,null,null,null,null,null,null,null,null,null,null,null,null,null,null,null,null,null,null,null,null,null,null,"Laos"]
[null,null,null,null,"PFyzicka osoba podnikatel","Profi na míru 5","S námi síť nesíť bez dat bez závazku","Není k dispozici",null,null,null,null,null,null,null,null,null,null,null,null,null,null,null,null,null,null,null,null,null,null,null,null,null,null,null,null,null,null,null,null,null,null,null,null,"Lesotho"]
[null,null,null,null,"PFyzicka osoba podnikatel","Profi na míru 5 bez závazku","S námi síť nesíť bez závazku","Není k dispozici",null,null,null,null,null,null,null,null,null,null,null,null,null,null,null,null,null,null,null,null,null,null,null,null,null,null,null,null,null,null,null,null,null,null,null,null,"Libanon"]
[null,null,null,null,"SFyzicka osoba podnikatel","Start","S námi v sítích","Není k dispozici",null,null,null,null,null,null,null,null,null,null,null,null,null,null,null,null,null,null,null,null,null,null,null,null,null,null,null,null,null,null,null,null,null,null,null,null,"Libye"]
[null,null,null,null,"SFyzicka osoba podnikatel","Start 150","S námi v sítích bez závazku","Není k dispozici",null,null,null,null,null,null,null,null,null,null,null,null,null,null,null,null,null,null,null,null,null,null,null,null,null,null,null,null,null,null,null,null,null,null,null,null,"Libérie"]
[null,null,null,null,"SFyzicka osoba podnikatel","Start 150 s výhodou","S námi v sítích+","Není k dispozici",null,null,null,null,null,null,null,null,null,null,null,null,null,null,null,null,null,null,null,null,null,null,null,null,null,null,null,null,null,null,null,null,null,null,null,null,"Lichtenštejnsko"]
[null,null,null,null,"SFyzicka osoba podnikatel","Start 75","S námi v sítích+ bez závazku","Není k dispozici",null,null,null,null,null,null,null,null,null,null,null,null,null,null,null,null,null,null,null,null,null,null,null,null,null,null,null,null,null,null,null,null,null,null,null,null,"Litva"]
[null,null,null,null,"SFyzicka osoba podnikatel","Start 75 s výhodou","Chytré auto","Není k dispozici",null,null,null,null,null,null,null,null,null,null,null,null,null,null,null,null,null,null,null,null,null,null,null,null,null,null,null,null,null,null,null,null,null,null,null,null,"Lotyšsko"]
[null,null,null,null,"SFyzicka osoba podnikatel","Start s výhodou","Chytré auto bez závazku","Není k dispozici",null,null,null,null,null,null,null,null,null,null,null,null,null,null,null,null,null,null,null,null,null,null,null,null,null,null,null,null,null,null,null,null,null,null,null,null,"Lucembursko"]
[null,null,null,null,"TFyzicka osoba podnikatel","T 1500","Chytré auto WiFi standard","Není k dispozici",null,null,null,null,null,null,null,null,null,null,null,null,null,null,null,null,null,null,null,null,null,null,null,null,null,null,null,null,null,null,null,null,null,null,null,null,"Macao"]
[null,null,null,null,"TFyzicka osoba podnikatel","T 1500 HIT","Chytré auto WiFi standard bez závazku","Není k dispozici",null,null,null,null,null,null,null,null,null,null,null,null,null,null,null,null,null,null,null,null,null,null,null,null,null,null,null,null,null,null,null,null,null,null,null,null,"Madagaskar"]
[null,null,null,null,"TFyzicka osoba podnikatel","T 160","Chytré auto WiFi premium","Není k dispozici",null,null,null,null,null,null,null,null,null,null,null,null,null,null,null,null,null,null,null,null,null,null,null,null,null,null,null,null,null,null,null,null,null,null,null,null,"Makedonie"]
[null,null,null,null,"TFyzicka osoba podnikatel","T 160 HIT","Chytré auto WiFi premium bez závazku","Není k dispozici",null,null,null,null,null,null,null,null,null,null,null,null,null,null,null,null,null,null,null,null,null,null,null,null,null,null,null,null,null,null,null,null,null,null,null,null,"Malajsie"]
[null,null,null,null,"TFyzicka osoba podnikatel","T 30","Můj tarif","4 GB",null,null,null,null,null,null,null,null,null,null,null,null,null,null,null,null,null,null,null,null,null,null,null,null,null,null,null,null,null,null,null,null,null,null,null,null,"Malawi"]
[null,null,null,null,"TFyzicka osoba podnikatel","T 30 HIT","Můj tarif","5 GB",null,null,null,null,null,null,null,null,null,null,null,null,null,null,null,null,null,null,null,null,null,null,null,null,null,null,null,null,null,null,null,null,null,null,null,null,"Maledivy"]
[null,null,null,null,"TFyzicka osoba podnikatel","T 300","Můj tarif","6 GB",null,null,null,null,null,null,null,null,null,null,null,null,null,null,null,null,null,null,null,null,null,null,null,null,null,null,null,null,null,null,null,null,null,null,null,null,"Mali"]
[null,null,null,null,"TFyzicka osoba podnikatel","T 300 HIT","Můj tarif","8 GB",null,null,null,null,null,null,null,null,null,null,null,null,null,null,null,null,null,null,null,null,null,null,null,null,null,null,null,null,null,null,null,null,null,null,null,null,"Malta"]
[null,null,null,null,"TFyzicka osoba podnikatel","T 600","Můj tarif","11 GB",null,null,null,null,null,null,null,null,null,null,null,null,null,null,null,null,null,null,null,null,null,null,null,null,null,null,null,null,null,null,null,null,null,null,null,null,"Man, ostrov"]
[null,null,null,null,"TFyzicka osoba podnikatel","T 600 HIT","Můj tarif","15 GB",null,null,null,null,null,null,null,null,null,null,null,null,null,null,null,null,null,null,null,null,null,null,null,null,null,null,null,null,null,null,null,null,null,null,null,null,"Maroko"]
[null,null,null,null,"TFyzicka osoba podnikatel","T 80","Můj tarif","19 GB",null,null,null,null,null,null,null,null,null,null,null,null,null,null,null,null,null,null,null,null,null,null,null,null,null,null,null,null,null,null,null,null,null,null,null,null,"Marshallovy ostrovy"]
[null,null,null,null,"TFyzicka osoba podnikatel","T 80 HIT","Můj tarif","neomezená data SD",null,null,null,null,null,null,null,null,null,null,null,null,null,null,null,null,null,null,null,null,null,null,null,null,null,null,null,null,null,null,null,null,null,null,null,null,"Martinik"]
[null,null,null,null,"TFyzicka osoba podnikatel","Tarif 1 Pro Firmu","Můj tarif","neomezená data HD",null,null,null,null,null,null,null,null,null,null,null,null,null,null,null,null,null,null,null,null,null,null,null,null,null,null,null,null,null,null,null,null,null,null,null,null,"Mauretánie"]
[null,null,null,null,"TFyzicka osoba podnikatel","Tarif 1 Pro Firmu bez závazku","Můj tarif","neomezená data MAX",null,null,null,null,null,null,null,null,null,null,null,null,null,null,null,null,null,null,null,null,null,null,null,null,null,null,null,null,null,null,null,null,null,null,null,null,"Mauritius"]
[null,null,null,null,"TFyzicka osoba podnikatel","Tarif 10 Pro Firmu","Můj tarif 50","500 MB",null,null,null,null,null,null,null,null,null,null,null,null,null,null,null,null,null,null,null,null,null,null,null,null,null,null,null,null,null,null,null,null,null,null,null,null,"Mayotte"]
[null,null,null,null,"TFyzicka osoba podnikatel","Tarif 10 Pro Firmu bez závazku","Můj tarif 50","1 GB",null,null,null,null,null,null,null,null,null,null,null,null,null,null,null,null,null,null,null,null,null,null,null,null,null,null,null,null,null,null,null,null,null,null,null,null,"Maďarsko"]
[null,null,null,null,"TFyzicka osoba podnikatel","Tarif 2 Pro Firmu","Můj tarif 50","2 GB",null,null,null,null,null,null,null,null,null,null,null,null,null,null,null,null,null,null,null,null,null,null,null,null,null,null,null,null,null,null,null,null,null,null,null,null,"Mexiko"]
[null,null,null,null,"TFyzicka osoba podnikatel","Tarif 2 Pro Firmu bez závazku","Můj tarif 50","3 GB",null,null,null,null,null,null,null,null,null,null,null,null,null,null,null,null,null,null,null,null,null,null,null,null,null,null,null,null,null,null,null,null,null,null,null,null,"Midway, ostrovy"]
[null,null,null,null,"TFyzicka osoba podnikatel","Tarif 3 Pro Firmu","Můj tarif 50","4 GB",null,null,null,null,null,null,null,null,null,null,null,null,null,null,null,null,null,null,null,null,null,null,null,null,null,null,null,null,null,null,null,null,null,null,null,null,"Mikronésie, federální státy"]
[null,null,null,null,"TFyzicka osoba podnikatel","Tarif 3 Pro Firmu bez závazku","Můj tarif 50","5 GB",null,null,null,null,null,null,null,null,null,null,null,null,null,null,null,null,null,null,null,null,null,null,null,null,null,null,null,null,null,null,null,null,null,null,null,null,"Moldavsko"]
[null,null,null,null,"TFyzicka osoba podnikatel","Tarif 4 Pro Firmu","Můj tarif 50","6 GB",null,null,null,null,null,null,null,null,null,null,null,null,null,null,null,null,null,null,null,null,null,null,null,null,null,null,null,null,null,null,null,null,null,null,null,null,"Monako"]
[null,null,null,null,"TFyzicka osoba podnikatel","Tarif 4 Pro Firmu bez závazku","Můj tarif 50","8 GB",null,null,null,null,null,null,null,null,null,null,null,null,null,null,null,null,null,null,null,null,null,null,null,null,null,null,null,null,null,null,null,null,null,null,null,null,"Mongolsko"]
[null,null,null,null,"TFyzicka osoba podnikatel","Tarif 5 Pro Firmu","Můj tarif 50","11 GB",null,null,null,null,null,null,null,null,null,null,null,null,null,null,null,null,null,null,null,null,null,null,null,null,null,null,null,null,null,null,null,null,null,null,null,null,"Montserrat"]
[null,null,null,null,"TFyzicka osoba podnikatel","Tarif 5 Pro Firmu bez závazku","Můj tarif 50","15 GB",null,null,null,null,null,null,null,null,null,null,null,null,null,null,null,null,null,null,null,null,null,null,null,null,null,null,null,null,null,null,null,null,null,null,null,null,"Mozambik"]
[null,null,null,null,"TFyzicka osoba podnikatel","Tarif 6 Pro Firmu","Můj tarif 50","19 GB",null,null,null,null,null,null,null,null,null,null,null,null,null,null,null,null,null,null,null,null,null,null,null,null,null,null,null,null,null,null,null,null,null,null,null,null,"Myanmar (Burma)"]
[null,null,null,null,"TFyzicka osoba podnikatel","Tarif 6 Pro Firmu bez závazku","Můj tarif 50","neomezená data SD",null,null,null,null,null,null,null,null,null,null,null,null,null,null,null,null,null,null,null,null,null,null,null,null,null,null,null,null,null,null,null,null,null,null,null,null,"Namibie"]
[null,null,null,null,"TFyzicka osoba podnikatel","Tarif 7 Pro Firmu","Můj tarif 50","neomezená data HD",null,null,null,null,null,null,null,null,null,null,null,null,null,null,null,null,null,null,null,null,null,null,null,null,null,null,null,null,null,null,null,null,null,null,null,null,"Nauru"]
[null,null,null,null,"TFyzicka osoba podnikatel","Tarif 7 Pro Firmu bez závazku","Můj tarif 50","neomezená data MAX",null,null,null,null,null,null,null,null,null,null,null,null,null,null,null,null,null,null,null,null,null,null,null,null,null,null,null,null,null,null,null,null,null,null,null,null,"Nepál"]
[null,null,null,null,"TFyzicka osoba podnikatel","Tarif 8 Pro Firmu","Můj tarif 50+","500 MB",null,null,null,null,null,null,null,null,null,null,null,null,null,null,null,null,null,null,null,null,null,null,null,null,null,null,null,null,null,null,null,null,null,null,null,null,"Neznámá"]
[null,null,null,null,"TFyzicka osoba podnikatel","Tarif 8 Pro Firmu bez závazku","Můj tarif 50+","1 GB",null,null,null,null,null,null,null,null,null,null,null,null,null,null,null,null,null,null,null,null,null,null,null,null,null,null,null,null,null,null,null,null,null,null,null,null,"Niger"]
[null,null,null,null,"TFyzicka osoba podnikatel","Tarif 9 Pro Firmu","Můj tarif 50+","2 GB",null,null,null,null,null,null,null,null,null,null,null,null,null,null,null,null,null,null,null,null,null,null,null,null,null,null,null,null,null,null,null,null,null,null,null,null,"Nigérie"]
[null,null,null,null,"TFyzicka osoba podnikatel","Tarif 9 Pro Firmu bez závazku","Můj tarif 50+","3 GB",null,null,null,null,null,null,null,null,null,null,null,null,null,null,null,null,null,null,null,null,null,null,null,null,null,null,null,null,null,null,null,null,null,null,null,null,"Nikaragua"]
[null,null,null,null,"TFyzicka osoba podnikatel","Tarif Data & SMS","Můj tarif 50+","4 GB",null,null,null,null,null,null,null,null,null,null,null,null,null,null,null,null,null,null,null,null,null,null,null,null,null,null,null,null,null,null,null,null,null,null,null,null,"Niue"]
[null,null,null,null,"TFyzicka osoba podnikatel","Tarif Data & SMS bez závazku","Můj tarif 50+","5 GB",null,null,null,null,null,null,null,null,null,null,null,null,null,null,null,null,null,null,null,null,null,null,null,null,null,null,null,null,null,null,null,null,null,null,null,null,"Nizozemské Antilly"]
[null,null,null,null,"Fyzicka osoba podnikatel","1 GB Plus","Můj tarif 50+","6 GB",null,null,null,null,null,null,null,null,null,null,null,null,null,null,null,null,null,null,null,null,null,null,null,null,null,null,null,null,null,null,null,null,null,null,null,null,"Nizozemí"]
[null,null,null,null,"Fyzicka osoba podnikatel","1 GB Plus s výhodou","Můj tarif 50+","8 GB",null,null,null,null,null,null,null,null,null,null,null,null,null,null,null,null,null,null,null,null,null,null,null,null,null,null,null,null,null,null,null,null,null,null,null,null,"Norfolk Island"]
[null,null,null,null,"Fyzicka osoba podnikatel","12 GB Plus","Můj tarif 50+","11 GB",null,null,null,null,null,null,null,null,null,null,null,null,null,null,null,null,null,null,null,null,null,null,null,null,null,null,null,null,null,null,null,null,null,null,null,null,"Norsko"]
[null,null,null,null,"Fyzicka osoba podnikatel","12 GB Plus s výhodou","Můj tarif 50+","15 GB",null,null,null,null,null,null,null,null,null,null,null,null,null,null,null,null,null,null,null,null,null,null,null,null,null,null,null,null,null,null,null,null,null,null,null,null,"Nová Kaledonie"]
[null,null,null,null,"Fyzicka osoba podnikatel","3 GB Plus","Můj tarif 50+","19 GB",null,null,null,null,null,null,null,null,null,null,null,null,null,null,null,null,null,null,null,null,null,null,null,null,null,null,null,null,null,null,null,null,null,null,null,null,"Nový Zéland"]
[null,null,null,null,"Fyzicka osoba podnikatel","3 GB Plus s výhodou","Můj tarif 50+","neomezená data SD",null,null,null,null,null,null,null,null,null,null,null,null,null,null,null,null,null,null,null,null,null,null,null,null,null,null,null,null,null,null,null,null,null,null,null,null,"Německo"]
[null,null,null,null,"Fyzicka osoba podnikatel","4 GB Plus","Můj tarif 50+","neomezená data HD",null,null,null,null,null,null,null,null,null,null,null,null,null,null,null,null,null,null,null,null,null,null,null,null,null,null,null,null,null,null,null,null,null,null,null,null,"Omán"]
[null,null,null,null,"Fyzicka osoba podnikatel","4 GB Plus s výhodou","Můj tarif 50+","neomezená data MAX",null,null,null,null,null,null,null,null,null,null,null,null,null,null,null,null,null,null,null,null,null,null,null,null,null,null,null,null,null,null,null,null,null,null,null,null,"Palau"]
[null,null,null,null,"Fyzicka osoba podnikatel","5 GB Plus","Můj tarif 100","500 MB",null,null,null,null,null,null,null,null,null,null,null,null,null,null,null,null,null,null,null,null,null,null,null,null,null,null,null,null,null,null,null,null,null,null,null,null,"Palestina"]
[null,null,null,null,"Fyzicka osoba podnikatel","5 GB Plus s výhodou","Můj tarif 100","1 GB",null,null,null,null,null,null,null,null,null,null,null,null,null,null,null,null,null,null,null,null,null,null,null,null,null,null,null,null,null,null,null,null,null,null,null,null,"Panama"]
[null,null,null,null,"Fyzicka osoba podnikatel","6 GB Plus","Můj tarif 100","2 GB",null,null,null,null,null,null,null,null,null,null,null,null,null,null,null,null,null,null,null,null,null,null,null,null,null,null,null,null,null,null,null,null,null,null,null,null,"Panenské ostrovy, USA"]
[null,null,null,null,"Fyzicka osoba podnikatel","6 GB Plus s výhodou","Můj tarif 100","3 GB",null,null,null,null,null,null,null,null,null,null,null,null,null,null,null,null,null,null,null,null,null,null,null,null,null,null,null,null,null,null,null,null,null,null,null,null,"Papua Nová Guinea"]
[null,null,null,null,"Fyzicka osoba podnikatel","8 GB Plus","Můj tarif 100","4 GB",null,null,null,null,null,null,null,null,null,null,null,null,null,null,null,null,null,null,null,null,null,null,null,null,null,null,null,null,null,null,null,null,null,null,null,null,"Paraguay"]
[null,null,null,null,"Fyzicka osoba podnikatel","8 GB Plus s výhodou","Můj tarif 100","5 GB",null,null,null,null,null,null,null,null,null,null,null,null,null,null,null,null,null,null,null,null,null,null,null,null,null,null,null,null,null,null,null,null,null,null,null,null,"Peru"]
[null,null,null,null,"Fyzicka osoba podnikatel","Data 10 GB Plus","Můj tarif 100","6 GB",null,null,null,null,null,null,null,null,null,null,null,null,null,null,null,null,null,null,null,null,null,null,null,null,null,null,null,null,null,null,null,null,null,null,null,null,"Pitcairn"]
[null,null,null,null,"Fyzicka osoba podnikatel","Data 10 GB Plus s výhodou","Můj tarif 100","8 GB",null,null,null,null,null,null,null,null,null,null,null,null,null,null,null,null,null,null,null,null,null,null,null,null,null,null,null,null,null,null,null,null,null,null,null,null,"Pitcairn, ostrov"]
[null,null,null,null,"Fyzicka osoba podnikatel","Data 4 GB Plus","Můj tarif 100","11 GB",null,null,null,null,null,null,null,null,null,null,null,null,null,null,null,null,null,null,null,null,null,null,null,null,null,null,null,null,null,null,null,null,null,null,null,null,"Pobřeží slonoviny"]
[null,null,null,null,"Fyzicka osoba podnikatel","Data 4 GB Plus s výhodou","Můj tarif 100","15 GB",null,null,null,null,null,null,null,null,null,null,null,null,null,null,null,null,null,null,null,null,null,null,null,null,null,null,null,null,null,null,null,null,null,null,null,null,"Polsko"]
[null,null,null,null,"Fyzicka osoba podnikatel","Data neomezeně","Můj tarif 100","19 GB",null,null,null,null,null,null,null,null,null,null,null,null,null,null,null,null,null,null,null,null,null,null,null,null,null,null,null,null,null,null,null,null,null,null,null,null,"Portoriko"]
[null,null,null,null,"Fyzicka osoba podnikatel","Data neomezeně 5G","Můj tarif 100","neomezená data SD",null,null,null,null,null,null,null,null,null,null,null,null,null,null,null,null,null,null,null,null,null,null,null,null,null,null,null,null,null,null,null,null,null,null,null,null,"Portugalsko"]
[null,null,null,null,"Fyzicka osoba podnikatel","Data neomezeně 5G s výhodou","Můj tarif 100","neomezená data HD",null,null,null,null,null,null,null,null,null,null,null,null,null,null,null,null,null,null,null,null,null,null,null,null,null,null,null,null,null,null,null,null,null,null,null,null,"Pákistán"]
[null,null,null,null,"Fyzicka osoba podnikatel","Data neomezeně s výhodou","Můj tarif 100","neomezená data MAX",null,null,null,null,null,null,null,null,null,null,null,null,null,null,null,null,null,null,null,null,null,null,null,null,null,null,null,null,null,null,null,null,null,null,null,null,"Qatar"]
[null,null,null,null,"Fyzicka osoba podnikatel","Happy Partner","Můj tarif 100+","500 MB",null,null,null,null,null,null,null,null,null,null,null,null,null,null,null,null,null,null,null,null,null,null,null,null,null,null,null,null,null,null,null,null,null,null,null,null,"Rakousko"]
[null,null,null,null,"Fyzicka osoba podnikatel","Happy Partner bez závazku","Můj tarif 100+","1 GB",null,null,null,null,null,null,null,null,null,null,null,null,null,null,null,null,null,null,null,null,null,null,null,null,null,null,null,null,null,null,null,null,null,null,null,null,"Republika Kongo"]
[null,null,null,null,"Fyzicka osoba podnikatel","Chytré auto","Můj tarif 100+","2 GB",null,null,null,null,null,null,null,null,null,null,null,null,null,null,null,null,null,null,null,null,null,null,null,null,null,null,null,null,null,null,null,null,null,null,null,null,"Reunion"]
[null,null,null,null,"Fyzicka osoba podnikatel","Chytré auto bez závazku","Můj tarif 100+","3 GB",null,null,null,null,null,null,null,null,null,null,null,null,null,null,null,null,null,null,null,null,null,null,null,null,null,null,null,null,null,null,null,null,null,null,null,null,"Rovníková Guinea"]
[null,null,null,null,"Fyzicka osoba podnikatel","Chytré auto WiFi premium","Můj tarif 100+","4 GB",null,null,null,null,null,null,null,null,null,null,null,null,null,null,null,null,null,null,null,null,null,null,null,null,null,null,null,null,null,null,null,null,null,null,null,null,"Rumunsko"]
[null,null,null,null,"Fyzicka osoba podnikatel","Chytré auto WiFi premium bez závazku","Můj tarif 100+","5 GB",null,null,null,null,null,null,null,null,null,null,null,null,null,null,null,null,null,null,null,null,null,null,null,null,null,null,null,null,null,null,null,null,null,null,null,null,"Rusko"]
[null,null,null,null,"Fyzicka osoba podnikatel","Chytré auto WiFi standard","Můj tarif 100+","6 GB",null,null,null,null,null,null,null,null,null,null,null,null,null,null,null,null,null,null,null,null,null,null,null,null,null,null,null,null,null,null,null,null,null,null,null,null,"Rwanda"]
[null,null,null,null,"Fyzicka osoba podnikatel","Chytré auto WiFi standard bez závazku","Můj tarif 100+","8 GB",null,null,null,null,null,null,null,null,null,null,null,null,null,null,null,null,null,null,null,null,null,null,null,null,null,null,null,null,null,null,null,null,null,null,null,null,"Saint Kitts & Nevis"]
[null,null,null,null,"Fyzicka osoba podnikatel","Internet 10 GB","Můj tarif 100+","11 GB",null,null,null,null,null,null,null,null,null,null,null,null,null,null,null,null,null,null,null,null,null,null,null,null,null,null,null,null,null,null,null,null,null,null,null,null,"Samoa"]
[null,null,null,null,"Fyzicka osoba podnikatel","Internet 10 GB s výhodou","Můj tarif 100+","15 GB",null,null,null,null,null,null,null,null,null,null,null,null,null,null,null,null,null,null,null,null,null,null,null,null,null,null,null,null,null,null,null,null,null,null,null,null,"San Marino"]
[null,null,null,null,"Fyzicka osoba podnikatel","Internet 4 GB","Můj tarif 100+","19 GB",null,null,null,null,null,null,null,null,null,null,null,null,null,null,null,null,null,null,null,null,null,null,null,null,null,null,null,null,null,null,null,null,null,null,null,null,"Sao Tome a Principe"]
[null,null,null,null,"Fyzicka osoba podnikatel","Internet 4 GB s výhodou","Můj tarif 100+","neomezená data SD",null,null,null,null,null,null,null,null,null,null,null,null,null,null,null,null,null,null,null,null,null,null,null,null,null,null,null,null,null,null,null,null,null,null,null,null,"Saudská Arábie"]
[null,null,null,null,"Fyzicka osoba podnikatel","Internet 6 GB ","Můj tarif 100+","neomezená data HD",null,null,null,null,null,null,null,null,null,null,null,null,null,null,null,null,null,null,null,null,null,null,null,null,null,null,null,null,null,null,null,null,null,null,null,null,"Senegal"]
[null,null,null,null,"Fyzicka osoba podnikatel","Internet 6 GB  s výhodou","Můj tarif 100+","neomezená data MAX",null,null,null,null,null,null,null,null,null,null,null,null,null,null,null,null,null,null,null,null,null,null,null,null,null,null,null,null,null,null,null,null,null,null,null,null,"Severní Korea"]
[null,null,null,null,"Fyzicka osoba podnikatel","Internet bez drátu Premium","Můj tarif 200","500 MB",null,null,null,null,null,null,null,null,null,null,null,null,null,null,null,null,null,null,null,null,null,null,null,null,null,null,null,null,null,null,null,null,null,null,null,null,"Severní Mariana, ostrovy"]
[null,null,null,null,"Fyzicka osoba podnikatel","Internet bez drátu Premium bez závazku","Můj tarif 200","1 GB",null,null,null,null,null,null,null,null,null,null,null,null,null,null,null,null,null,null,null,null,null,null,null,null,null,null,null,null,null,null,null,null,null,null,null,null,"Seychely"]
[null,null,null,null,"Fyzicka osoba podnikatel","Internet bez drátu Premium Plus","Můj tarif 200","2 GB",null,null,null,null,null,null,null,null,null,null,null,null,null,null,null,null,null,null,null,null,null,null,null,null,null,null,null,null,null,null,null,null,null,null,null,null,"Sierra Leone"]
[null,null,null,null,"Fyzicka osoba podnikatel","Internet bez drátu Premium Plus bez závazku","Můj tarif 200","3 GB",null,null,null,null,null,null,null,null,null,null,null,null,null,null,null,null,null,null,null,null,null,null,null,null,null,null,null,null,null,null,null,null,null,null,null,null,"Singapur"]
[null,null,null,null,"Fyzicka osoba podnikatel","Internet bez drátu Standard","Můj tarif 200","4 GB",null,null,null,null,null,null,null,null,null,null,null,null,null,null,null,null,null,null,null,null,null,null,null,null,null,null,null,null,null,null,null,null,null,null,null,null,"Slovensko"]
[null,null,null,null,"Fyzicka osoba podnikatel","Internet bez drátu Standard bez závazku","Můj tarif 200","5 GB",null,null,null,null,null,null,null,null,null,null,null,null,null,null,null,null,null,null,null,null,null,null,null,null,null,null,null,null,null,null,null,null,null,null,null,null,"Slovinsko"]
[null,null,null,null,"Fyzicka osoba podnikatel","Internet Komplet","Můj tarif 200","6 GB",null,null,null,null,null,null,null,null,null,null,null,null,null,null,null,null,null,null,null,null,null,null,null,null,null,null,null,null,null,null,null,null,null,null,null,null,"Solomonovy ostrovy"]
[null,null,null,null,"Fyzicka osoba podnikatel","Internet Komplet bez závazku","Můj tarif 200","8 GB",null,null,null,null,null,null,null,null,null,null,null,null,null,null,null,null,null,null,null,null,null,null,null,null,null,null,null,null,null,null,null,null,null,null,null,null,"Somálsko"]
[null,null,null,null,"Fyzicka osoba podnikatel","Internet neomezeně","Můj tarif 200","11 GB",null,null,null,null,null,null,null,null,null,null,null,null,null,null,null,null,null,null,null,null,null,null,null,null,null,null,null,null,null,null,null,null,null,null,null,null,"Sth. Georgia And The Sth. Sand"]
[null,null,null,null,"Fyzicka osoba podnikatel","Internet neomezeně 5G","Můj tarif 200","15 GB",null,null,null,null,null,null,null,null,null,null,null,null,null,null,null,null,null,null,null,null,null,null,null,null,null,null,null,null,null,null,null,null,null,null,null,null,"Spojené arabské emiráty"]
[null,null,null,null,"Fyzicka osoba podnikatel","Internet neomezeně 5G s výhodou","Můj tarif 200","19 GB",null,null,null,null,null,null,null,null,null,null,null,null,null,null,null,null,null,null,null,null,null,null,null,null,null,null,null,null,null,null,null,null,null,null,null,null,"Spojené státy americké"]
[null,null,null,null,"Fyzicka osoba podnikatel","Internet neomezeně s výhodou","Můj tarif 200","neomezená data SD",null,null,null,null,null,null,null,null,null,null,null,null,null,null,null,null,null,null,null,null,null,null,null,null,null,null,null,null,null,null,null,null,null,null,null,null,"Srbsko"]
[null,null,null,null,"Fyzicka osoba podnikatel","M2M","Můj tarif 200","neomezená data HD",null,null,null,null,null,null,null,null,null,null,null,null,null,null,null,null,null,null,null,null,null,null,null,null,null,null,null,null,null,null,null,null,null,null,null,null,"Srbsko a Montenegro"]
[null,null,null,null,"Fyzicka osoba podnikatel","M2M 1 Pro Firmu","Můj tarif 200","neomezená data MAX",null,null,null,null,null,null,null,null,null,null,null,null,null,null,null,null,null,null,null,null,null,null,null,null,null,null,null,null,null,null,null,null,null,null,null,null,"Srí Lanka"]
[null,null,null,null,"Fyzicka osoba podnikatel","M2M 1 Pro Firmu bez roamingu","Můj tarif M","500 MB",null,null,null,null,null,null,null,null,null,null,null,null,null,null,null,null,null,null,null,null,null,null,null,null,null,null,null,null,null,null,null,null,null,null,null,null,"St. Helena"]
[null,null,null,null,"Fyzicka osoba podnikatel","M2M 1 Pro Firmu bez roamingu bez závazku","Můj tarif M","1 GB",null,null,null,null,null,null,null,null,null,null,null,null,null,null,null,null,null,null,null,null,null,null,null,null,null,null,null,null,null,null,null,null,null,null,null,null,"St. Pierre And Miquelon"]
[null,null,null,null,"Fyzicka osoba podnikatel","M2M 1 Pro Firmu bez závazku","Můj tarif M","2 GB",null,null,null,null,null,null,null,null,null,null,null,null,null,null,null,null,null,null,null,null,null,null,null,null,null,null,null,null,null,null,null,null,null,null,null,null,"Středoafrická Republika"]
[null,null,null,null,"Fyzicka osoba podnikatel","M2M 2 Pro Firmu","Můj tarif M","3 GB",null,null,null,null,null,null,null,null,null,null,null,null,null,null,null,null,null,null,null,null,null,null,null,null,null,null,null,null,null,null,null,null,null,null,null,null,"Surinam"]
[null,null,null,null,"Fyzicka osoba podnikatel","M2M 2 Pro Firmu bez roamingu","Můj tarif M","4 GB",null,null,null,null,null,null,null,null,null,null,null,null,null,null,null,null,null,null,null,null,null,null,null,null,null,null,null,null,null,null,null,null,null,null,null,null,"Svalbard And Jan Mayen Islands"]
[null,null,null,null,"Fyzicka osoba podnikatel","M2M 2 Pro Firmu bez roamingu bez závazku","Můj tarif M","5 GB",null,null,null,null,null,null,null,null,null,null,null,null,null,null,null,null,null,null,null,null,null,null,null,null,null,null,null,null,null,null,null,null,null,null,null,null,"Svatá Lucie"]
[null,null,null,null,"Fyzicka osoba podnikatel","M2M 2 Pro Firmu bez závazku","Můj tarif M","6 GB",null,null,null,null,null,null,null,null,null,null,null,null,null,null,null,null,null,null,null,null,null,null,null,null,null,null,null,null,null,null,null,null,null,null,null,null,"Svatý Bartoloměj"]
[null,null,null,null,"Fyzicka osoba podnikatel","M2M 3 Pro Firmu","Můj tarif M","8 GB",null,null,null,null,null,null,null,null,null,null,null,null,null,null,null,null,null,null,null,null,null,null,null,null,null,null,null,null,null,null,null,null,null,null,null,null,"Svatý Martin"]
[null,null,null,null,"Fyzicka osoba podnikatel","M2M 3 Pro Firmu bez závazku","Můj tarif M","11 GB",null,null,null,null,null,null,null,null,null,null,null,null,null,null,null,null,null,null,null,null,null,null,null,null,null,null,null,null,null,null,null,null,null,null,null,null,"Svatý Vincent a Grenady"]
[null,null,null,null,"Fyzicka osoba podnikatel","M2M 4 Pro Firmu","Můj tarif M","15 GB",null,null,null,null,null,null,null,null,null,null,null,null,null,null,null,null,null,null,null,null,null,null,null,null,null,null,null,null,null,null,null,null,null,null,null,null,"Svazijsko"]
[null,null,null,null,"Fyzicka osoba podnikatel","M2M 4 Pro Firmu bez závazku","Můj tarif M","19 GB",null,null,null,null,null,null,null,null,null,null,null,null,null,null,null,null,null,null,null,null,null,null,null,null,null,null,null,null,null,null,null,null,null,null,null,null,"Súdán"]
[null,null,null,null,"Fyzicka osoba podnikatel","M2M bez závazku","Můj tarif M","neomezená data SD",null,null,null,null,null,null,null,null,null,null,null,null,null,null,null,null,null,null,null,null,null,null,null,null,null,null,null,null,null,null,null,null,null,null,null,null,"Sýrie"]
[null,null,null,null,"Fyzicka osoba podnikatel","M2M Mini","Můj tarif M","neomezená data HD",null,null,null,null,null,null,null,null,null,null,null,null,null,null,null,null,null,null,null,null,null,null,null,null,null,null,null,null,null,null,null,null,null,null,null,null,"Tadžikistán"]
[null,null,null,null,"Fyzicka osoba podnikatel","M2M Mini bez závazku","Můj tarif M","neomezená data MAX",null,null,null,null,null,null,null,null,null,null,null,null,null,null,null,null,null,null,null,null,null,null,null,null,null,null,null,null,null,null,null,null,null,null,null,null,"Tanzánie"]
[null,null,null,null,"Fyzicka osoba podnikatel","M2M Premium","Můj tarif L","500 MB",null,null,null,null,null,null,null,null,null,null,null,null,null,null,null,null,null,null,null,null,null,null,null,null,null,null,null,null,null,null,null,null,null,null,null,null,"Tchaj-wan"]
[null,null,null,null,"Fyzicka osoba podnikatel","M2M Premium bez závazku","Můj tarif L","1 GB",null,null,null,null,null,null,null,null,null,null,null,null,null,null,null,null,null,null,null,null,null,null,null,null,null,null,null,null,null,null,null,null,null,null,null,null,"Thajsko"]
[null,null,null,null,"Fyzicka osoba podnikatel","M2M Profi","Můj tarif L","2 GB",null,null,null,null,null,null,null,null,null,null,null,null,null,null,null,null,null,null,null,null,null,null,null,null,null,null,null,null,null,null,null,null,null,null,null,null,"Togo"]
[null,null,null,null,"Fyzicka osoba podnikatel","M2M Profi bez závazku","Můj tarif L","3 GB",null,null,null,null,null,null,null,null,null,null,null,null,null,null,null,null,null,null,null,null,null,null,null,null,null,null,null,null,null,null,null,null,null,null,null,null,"Tokelau"]
[null,null,null,null,"Fyzicka osoba podnikatel","Mobil DATA bez závazku se 100 min a 100 SMS navíc","Můj tarif L","4 GB",null,null,null,null,null,null,null,null,null,null,null,null,null,null,null,null,null,null,null,null,null,null,null,null,null,null,null,null,null,null,null,null,null,null,null,null,"Tonga"]
[null,null,null,null,"Fyzicka osoba podnikatel","Mobilní internet 1,5GB","Můj tarif L","5 GB",null,null,null,null,null,null,null,null,null,null,null,null,null,null,null,null,null,null,null,null,null,null,null,null,null,null,null,null,null,null,null,null,null,null,null,null,"Trinidad a Tobago"]
[null,null,null,null,"Fyzicka osoba podnikatel","Mobilní internet 1,5GB bez závazku","Můj tarif L","6 GB",null,null,null,null,null,null,null,null,null,null,null,null,null,null,null,null,null,null,null,null,null,null,null,null,null,null,null,null,null,null,null,null,null,null,null,null,"Tunisko"]
[null,null,null,null,"Fyzicka osoba podnikatel","Mobilní internet 1,5GB se závazkem na 12 měsíců","Můj tarif L","8 GB",null,null,null,null,null,null,null,null,null,null,null,null,null,null,null,null,null,null,null,null,null,null,null,null,null,null,null,null,null,null,null,null,null,null,null,null,"Turecko"]
[null,null,null,null,"Fyzicka osoba podnikatel","Mobilní internet 10GB","Můj tarif L","11 GB",null,null,null,null,null,null,null,null,null,null,null,null,null,null,null,null,null,null,null,null,null,null,null,null,null,null,null,null,null,null,null,null,null,null,null,null,"Turkmekistán"]
[null,null,null,null,"Fyzicka osoba podnikatel","Mobilní internet 10GB bez závazku","Můj tarif L","15 GB",null,null,null,null,null,null,null,null,null,null,null,null,null,null,null,null,null,null,null,null,null,null,null,null,null,null,null,null,null,null,null,null,null,null,null,null,"Turkovy and Caicovy ostrovy"]
[null,null,null,null,"Fyzicka osoba podnikatel","Mobilní internet 30GB","Můj tarif L","19 GB",null,null,null,null,null,null,null,null,null,null,null,null,null,null,null,null,null,null,null,null,null,null,null,null,null,null,null,null,null,null,null,null,null,null,null,null,"Tuvalu"]
[null,null,null,null,"Fyzicka osoba podnikatel","Mobilní internet 30GB bez závazku","Můj tarif L","neomezená data SD",null,null,null,null,null,null,null,null,null,null,null,null,null,null,null,null,null,null,null,null,null,null,null,null,null,null,null,null,null,null,null,null,null,null,null,null,"Uganda"]
[null,null,null,null,"Fyzicka osoba podnikatel","Mobilní internet 3GB","Můj tarif L","neomezená data HD",null,null,null,null,null,null,null,null,null,null,null,null,null,null,null,null,null,null,null,null,null,null,null,null,null,null,null,null,null,null,null,null,null,null,null,null,"Ukrajina"]
[null,null,null,null,"Fyzicka osoba podnikatel","Mobilní internet 3GB bez závazku","Můj tarif L","neomezená data MAX",null,null,null,null,null,null,null,null,null,null,null,null,null,null,null,null,null,null,null,null,null,null,null,null,null,null,null,null,null,null,null,null,null,null,null,null,"US Minor Outlying Islands"]
[null,null,null,null,"Fyzicka osoba podnikatel","Mobilní Internet 1 Pro Firmu","Můj tarif XL","500 MB",null,null,null,null,null,null,null,null,null,null,null,null,null,null,null,null,null,null,null,null,null,null,null,null,null,null,null,null,null,null,null,null,null,null,null,null,"Uruguay"]
[null,null,null,null,"Fyzicka osoba podnikatel","Mobilní Internet 1 Pro Firmu bez závazku","Můj tarif XL","1 GB",null,null,null,null,null,null,null,null,null,null,null,null,null,null,null,null,null,null,null,null,null,null,null,null,null,null,null,null,null,null,null,null,null,null,null,null,"Uzbekistán"]
[null,null,null,null,"Fyzicka osoba podnikatel","Mobilní Internet 2 Pro Firmu","Můj tarif XL","2 GB",null,null,null,null,null,null,null,null,null,null,null,null,null,null,null,null,null,null,null,null,null,null,null,null,null,null,null,null,null,null,null,null,null,null,null,null,"Vanuatu"]
[null,null,null,null,"Fyzicka osoba podnikatel","Mobilní Internet 2 Pro Firmu bez závazku","Můj tarif XL","3 GB",null,null,null,null,null,null,null,null,null,null,null,null,null,null,null,null,null,null,null,null,null,null,null,null,null,null,null,null,null,null,null,null,null,null,null,null,"Vatikán"]
[null,null,null,null,"Fyzicka osoba podnikatel","Mobilní Internet 3 Pro Firmu","Můj tarif XL","4 GB",null,null,null,null,null,null,null,null,null,null,null,null,null,null,null,null,null,null,null,null,null,null,null,null,null,null,null,null,null,null,null,null,null,null,null,null,"Velká Británie"]
[null,null,null,null,"Fyzicka osoba podnikatel","Mobilní Internet 3 Pro Firmu bez závazku","Můj tarif XL","5 GB",null,null,null,null,null,null,null,null,null,null,null,null,null,null,null,null,null,null,null,null,null,null,null,null,null,null,null,null,null,null,null,null,null,null,null,null,"Venezuela"]
[null,null,null,null,"Fyzicka osoba podnikatel","Mobilní Internet 4 Pro Firmu","Můj tarif XL","6 GB",null,null,null,null,null,null,null,null,null,null,null,null,null,null,null,null,null,null,null,null,null,null,null,null,null,null,null,null,null,null,null,null,null,null,null,null,"Vietnam"]
[null,null,null,null,"Fyzicka osoba podnikatel","Mobilní Internet 4 Pro Firmu bez závazku","Můj tarif XL","8 GB",null,null,null,null,null,null,null,null,null,null,null,null,null,null,null,null,null,null,null,null,null,null,null,null,null,null,null,null,null,null,null,null,null,null,null,null,"Wallis And Futuna Islands"]
[null,null,null,null,"Fyzicka osoba podnikatel","Mobilní Internet 5 Pro Firmu","Můj tarif XL","11 GB",null,null,null,null,null,null,null,null,null,null,null,null,null,null,null,null,null,null,null,null,null,null,null,null,null,null,null,null,null,null,null,null,null,null,null,null,"Zair"]
[null,null,null,null,"Fyzicka osoba podnikatel","Mobilní Internet 5 Pro Firmu bez závazku","Můj tarif XL","15 GB",null,null,null,null,null,null,null,null,null,null,null,null,null,null,null,null,null,null,null,null,null,null,null,null,null,null,null,null,null,null,null,null,null,null,null,null,"Zambie"]
[null,null,null,null,"Fyzicka osoba podnikatel","Mobilní Internet 6 Pro Firmu","Můj tarif XL","19 GB",null,null,null,null,null,null,null,null,null,null,null,null,null,null,null,null,null,null,null,null,null,null,null,null,null,null,null,null,null,null,null,null,null,null,null,null,"Zimbabwe"]
[null,null,null,null,"Fyzicka osoba podnikatel","Mobilní Internet 6 Pro Firmu bez závazku","Můj tarif XL","neomezená data SD",null,null,null,null,null,null,null,null,null,null,null,null,null,null,null,null,null,null,null,null,null,null,null,null,null,null,null,null,null,null,null,null,null,null,null,null,"Západní Sahara"]
[null,null,null,null,"Fyzicka osoba podnikatel","Neomezeně 5G L","Můj tarif XL","neomezená data HD",null,null,null,null,null,null,null,null,null,null,null,null,null,null,null,null,null,null,null,null,null,null,null,null,null,null,null,null,null,null,null,null,null,null,null,null,"Španělsko"]
[null,null,null,null,"Fyzicka osoba podnikatel","Neomezeně 5G L s výhodou","Můj tarif XL","neomezená data MAX",null,null,null,null,null,null,null,null,null,null,null,null,null,null,null,null,null,null,null,null,null,null,null,null,null,null,null,null,null,null,null,null,null,null,null,null,"Švédsko"]
[null,null,null,null,"Fyzicka osoba podnikatel","Neomezeně 5G XL","Můj svobodný tarif","4 GB",null,null,null,null,null,null,null,null,null,null,null,null,null,null,null,null,null,null,null,null,null,null,null,null,null,null,null,null,null,null,null,null,null,null,null,null,"Švýcarsko"]
[null,null,null,null,"Fyzicka osoba podnikatel","Neomezeně 5G XL business","Můj svobodný tarif","5 GB",null,null,null,null,null,null,null,null,null,null,null,null,null,null,null,null,null,null,null,null,null,null,null,null,null,null,null,null,null,null,null,null,null,null,null,null,"Čad"]
[null,null,null,null,"Fyzicka osoba podnikatel","Neomezeně 5G XL business s výhodou","Můj svobodný tarif","6 GB",null,null,null,null,null,null,null,null,null,null,null,null,null,null,null,null,null,null,null,null,null,null,null,null,null,null,null,null,null,null,null,null,null,null,null,null,"Černá Hora"]
[null,null,null,null,"Fyzicka osoba podnikatel","Neomezeně 5G XL s výhodou","Můj svobodný tarif","8 GB",null,null,null,null,null,null,null,null,null,null,null,null,null,null,null,null,null,null,null,null,null,null,null,null,null,null,null,null,null,null,null,null,null,null,null,null,"Čína"]
[null,null,null,null,"Fyzicka osoba podnikatel","Neomezeně 5G XXL","Můj svobodný tarif","11 GB",null,null,null,null,null,null,null,null,null,null,null,null,null,null,null,null,null,null,null,null,null,null,null,null,null,null,null,null,null,null,null,null,null,null,null,null,"Írán"]
[null,null,null,null,"Fyzicka osoba podnikatel","Neomezeně 5G XXL s výhodou","Můj svobodný tarif","15 GB",null,null,null,null,null,null,null,null,null,null,null,null,null,null,null,null,null,null,null,null,null,null,null,null,null,null,null,null,null,null,null,null,null,null,null,null,"Řecko"]
[null,null,null,null,"Fyzicka osoba podnikatel","Neomezeně XL","Můj svobodný tarif","19 GB"]
[null,null,null,null,"Fyzicka osoba podnikatel","Neomezeně XL s výhodou","Můj svobodný tarif","neomezená data SD"]
[null,null,null,null,"Fyzicka osoba podnikatel","Neomezeně XXL","Můj svobodný tarif","neomezená data HD"]
[null,null,null,null,"Fyzicka osoba podnikatel","Neomezeně XXL s výhodou","Můj svobodný tarif","neomezená data MAX"]
[null,null,null,null,"Fyzicka osoba podnikatel","Neomezený mobilní internet","Můj svobodný tarif 50","500 MB"]
[null,null,null,null,"Fyzicka osoba podnikatel","Neomezený mobilní internet bez závazku","Můj svobodný tarif 50","1 GB"]
[null,null,null,null,"Fyzicka osoba podnikatel","Profi 120","Můj svobodný tarif 50","2 GB"]
[null,null,null,null,"Fyzicka osoba podnikatel","Profi 120 HIT","Můj svobodný tarif 50","3 GB"]
[null,null,null,null,"Fyzicka osoba podnikatel","Profi na míru 1","Můj svobodný tarif 50","4 GB"]
[null,null,null,null,"Fyzicka osoba podnikatel","Profi na míru 1 bez závazku","Můj svobodný tarif 50","5 GB"]
[null,null,null,null,"Fyzicka osoba podnikatel","Profi na míru 2","Můj svobodný tarif 50","6 GB"]
[null,null,null,null,"Fyzicka osoba podnikatel","Profi na míru 2 bez závazku","Můj svobodný tarif 50","8 GB"]
[null,null,null,null,"Fyzicka osoba podnikatel","Profi na míru 3","Můj svobodný tarif 50","11 GB"]
[null,null,null,null,"Fyzicka osoba podnikatel","Profi na míru 3 bez závazku","Můj svobodný tarif 50","15 GB"]
[null,null,null,null,"Fyzicka osoba podnikatel","Profi na míru 4","Můj svobodný tarif 50","19 GB"]
[null,null,null,null,"Fyzicka osoba podnikatel","Profi na míru 4 bez závazku","Můj svobodný tarif 50","neomezená data SD"]
[null,null,null,null,"Fyzicka osoba podnikatel","Profi na míru 5","Můj svobodný tarif 50","neomezená data HD"]
[null,null,null,null,"Fyzicka osoba podnikatel","Profi na míru 5 bez závazku","Můj svobodný tarif 50","neomezená data MAX"]
[null,null,null,null,"Fyzicka osoba podnikatel","Start","Můj svobodný tarif 50+","500 MB"]
[null,null,null,null,"Fyzicka osoba podnikatel","Start 150","Můj svobodný tarif 50+","1 GB"]
[null,null,null,null,"Fyzicka osoba podnikatel","Start 150 s výhodou","Můj svobodný tarif 50+","2 GB"]
[null,null,null,null,"Fyzicka osoba podnikatel","Start 75","Můj svobodný tarif 50+","3 GB"]
[null,null,null,null,"Fyzicka osoba podnikatel","Start 75 s výhodou","Můj svobodný tarif 50+","4 GB"]
[null,null,null,null,"Fyzicka osoba podnikatel","Start s výhodou","Můj svobodný tarif 50+","5 GB"]
[null,null,null,null,"Fyzicka osoba podnikatel","T 1500","Můj svobodný tarif 50+","6 GB"]
[null,null,null,null,"Fyzicka osoba podnikatel","T 1500 HIT","Můj svobodný tarif 50+","8 GB"]
[null,null,null,null,"Fyzicka osoba podnikatel","T 160","Můj svobodný tarif 50+","11 GB"]
[null,null,null,null,"Fyzicka osoba podnikatel","T 160 HIT","Můj svobodný tarif 50+","15 GB"]
[null,null,null,null,"Fyzicka osoba podnikatel","T 30","Můj svobodný tarif 50+","19 GB"]
[null,null,null,null,"Fyzicka osoba podnikatel","T 30 HIT","Můj svobodný tarif 50+","neomezená data SD"]
[null,null,null,null,"Fyzicka osoba podnikatel","T 300","Můj svobodný tarif 50+","neomezená data HD"]
[null,null,null,null,"Fyzicka osoba podnikatel","T 300 HIT","Můj svobodný tarif 50+","neomezená data MAX"]
[null,null,null,null,"Fyzicka osoba podnikatel","T 600","Můj svobodný tarif 100","500 MB"]
[null,null,null,null,"Fyzicka osoba podnikatel","T 600 HIT","Můj svobodný tarif 100","1 GB"]
[null,null,null,null,"Fyzicka osoba podnikatel","T 80","Můj svobodný tarif 100","2 GB"]
[null,null,null,null,"Fyzicka osoba podnikatel","T 80 HIT","Můj svobodný tarif 100","3 GB"]
[null,null,null,null,"Fyzicka osoba podnikatel","Tarif 1 Pro Firmu","Můj svobodný tarif 100","4 GB"]
[null,null,null,null,"Fyzicka osoba podnikatel","Tarif 1 Pro Firmu bez závazku","Můj svobodný tarif 100","5 GB"]
[null,null,null,null,"Fyzicka osoba podnikatel","Tarif 10 Pro Firmu","Můj svobodný tarif 100","6 GB"]
[null,null,null,null,"Fyzicka osoba podnikatel","Tarif 10 Pro Firmu bez závazku","Můj svobodný tarif 100","8 GB"]
[null,null,null,null,"Fyzicka osoba podnikatel","Tarif 2 Pro Firmu","Můj svobodný tarif 100","11 GB"]
[null,null,null,null,"Fyzicka osoba podnikatel","Tarif 2 Pro Firmu bez závazku","Můj svobodný tarif 100","15 GB"]
[null,null,null,null,"Fyzicka osoba podnikatel","Tarif 3 Pro Firmu","Můj svobodný tarif 100","19 GB"]
[null,null,null,null,"Fyzicka osoba podnikatel","Tarif 3 Pro Firmu bez závazku","Můj svobodný tarif 100","neomezená data SD"]
[null,null,null,null,"Fyzicka osoba podnikatel","Tarif 4 Pro Firmu","Můj svobodný tarif 100","neomezená data HD"]
[null,null,null,null,"Fyzicka osoba podnikatel","Tarif 4 Pro Firmu bez závazku","Můj svobodný tarif 100","neomezená data MAX"]
[null,null,null,null,"Fyzicka osoba podnikatel","Tarif 5 Pro Firmu","Můj svobodný tarif 100+","500 MB"]
[null,null,null,null,"Fyzicka osoba podnikatel","Tarif 5 Pro Firmu bez závazku","Můj svobodný tarif 100+","1 GB"]
[null,null,null,null,"Fyzicka osoba podnikatel","Tarif 6 Pro Firmu","Můj svobodný tarif 100+","2 GB"]
[null,null,null,null,"Fyzicka osoba podnikatel","Tarif 6 Pro Firmu bez závazku","Můj svobodný tarif 100+","3 GB"]
[null,null,null,null,"Fyzicka osoba podnikatel","Tarif 7 Pro Firmu","Můj svobodný tarif 100+","4 GB"]
[null,null,null,null,"Fyzicka osoba podnikatel","Tarif 7 Pro Firmu bez závazku","Můj svobodný tarif 100+","5 GB"]
[null,null,null,null,"Fyzicka osoba podnikatel","Tarif 8 Pro Firmu","Můj svobodný tarif 100+","6 GB"]
[null,null,null,null,"Fyzicka osoba podnikatel","Tarif 8 Pro Firmu bez závazku","Můj svobodný tarif 100+","8 GB"]
[null,null,null,null,"Fyzicka osoba podnikatel","Tarif 9 Pro Firmu","Můj svobodný tarif 100+","11 GB"]
[null,null,null,null,"Fyzicka osoba podnikatel","Tarif 9 Pro Firmu bez závazku","Můj svobodný tarif 100+","15 GB"]
[null,null,null,null,"Fyzicka osoba podnikatel","Tarif Data & SMS","Můj svobodný tarif 100+","19 GB"]
[null,null,null,null,"Fyzicka osoba podnikatel","Tarif Data & SMS bez závazku","Můj svobodný tarif 100+","neomezená data SD"]
[null,null,null,null,"BPravnicka osoba","1 GB Plus","Můj svobodný tarif 100+","neomezená data HD"]
[null,null,null,null,"BPravnicka osoba","1 GB Plus s výhodou","Můj svobodný tarif 100+","neomezená data MAX"]
[null,null,null,null,"BPravnicka osoba","12 GB Plus","Můj svobodný tarif 200","500 MB"]
[null,null,null,null,"BPravnicka osoba","12 GB Plus s výhodou","Můj svobodný tarif 200","1 GB"]
[null,null,null,null,"BPravnicka osoba","3 GB Plus","Můj svobodný tarif 200","2 GB"]
[null,null,null,null,"BPravnicka osoba","3 GB Plus s výhodou","Můj svobodný tarif 200","3 GB"]
[null,null,null,null,"BPravnicka osoba","4 GB Plus","Můj svobodný tarif 200","4 GB"]
[null,null,null,null,"BPravnicka osoba","4 GB Plus s výhodou","Můj svobodný tarif 200","5 GB"]
[null,null,null,null,"BPravnicka osoba","5 GB Plus","Můj svobodný tarif 200","6 GB"]
[null,null,null,null,"BPravnicka osoba","5 GB Plus s výhodou","Můj svobodný tarif 200","8 GB"]
[null,null,null,null,"BPravnicka osoba","6 GB Plus","Můj svobodný tarif 200","11 GB"]
[null,null,null,null,"BPravnicka osoba","6 GB Plus s výhodou","Můj svobodný tarif 200","15 GB"]
[null,null,null,null,"BPravnicka osoba","8 GB Plus","Můj svobodný tarif 200","19 GB"]
[null,null,null,null,"BPravnicka osoba","8 GB Plus s výhodou","Můj svobodný tarif 200","neomezená data SD"]
[null,null,null,null,"CPravnicka osoba","Chytré auto","Můj svobodný tarif 200","neomezená data HD"]
[null,null,null,null,"CPravnicka osoba","Chytré auto bez závazku","Můj svobodný tarif 200","neomezená data MAX"]
[null,null,null,null,"CPravnicka osoba","Chytré auto WiFi premium","Můj svobodný tarif M","500 MB"]
[null,null,null,null,"CPravnicka osoba","Chytré auto WiFi premium bez závazku","Můj svobodný tarif M","1 GB"]
[null,null,null,null,"CPravnicka osoba","Chytré auto WiFi standard","Můj svobodný tarif M","2 GB"]
[null,null,null,null,"CPravnicka osoba","Chytré auto WiFi standard bez závazku","Můj svobodný tarif M","3 GB",null,null,6600]
[null,null,null,null,"DPravnicka osoba","Data 10 GB Plus","Můj svobodný tarif M","4 GB",null,null,4920]
[null,null,null,null,"DPravnicka osoba","Data 10 GB Plus s výhodou","Můj svobodný tarif M","5 GB",null,null,5700]
[null,null,null,null,"DPravnicka osoba","Data 4 GB Plus","Můj svobodný tarif M","6 GB"]
[null,null,null,null,"DPravnicka osoba","Data 4 GB Plus s výhodou","Můj svobodný tarif M","8 GB"]
[null,null,null,null,"DPravnicka osoba","Data neomezeně","Můj svobodný tarif M","11 GB"]
[null,null,null,null,"DPravnicka osoba","Data neomezeně 5G","Můj svobodný tarif M","15 GB"]
[null,null,null,null,"DPravnicka osoba","Data neomezeně 5G s výhodou","Můj svobodný tarif M","19 GB"]
[null,null,null,null,"DPravnicka osoba","Data neomezeně s výhodou","Můj svobodný tarif M","neomezená data SD"]
[null,null,null,null,"HPravnicka osoba","Happy Partner","Můj svobodný tarif M","neomezená data HD"]
[null,null,null,null,"HPravnicka osoba","Happy Partner bez závazku","Můj svobodný tarif M","neomezená data MAX"]
[null,null,null,null,"IPravnicka osoba","Internet 10 GB","Můj svobodný tarif L","500 MB"]
[null,null,null,null,"IPravnicka osoba","Internet 10 GB s výhodou","Můj svobodný tarif L","1 GB"]
[null,null,null,null,"IPravnicka osoba","Internet 4 GB","Můj svobodný tarif L","2 GB"]
[null,null,null,null,"IPravnicka osoba","Internet 4 GB s výhodou","Můj svobodný tarif L","3 GB"]
[null,null,null,null,"IPravnicka osoba","Internet 6 GB ","Můj svobodný tarif L","4 GB"]
[null,null,null,null,"IPravnicka osoba","Internet 6 GB  s výhodou","Můj svobodný tarif L","5 GB"]
[null,null,null,null,"IPravnicka osoba","Internet neomezeně","Můj svobodný tarif L","6 GB"]
[null,null,null,null,"IPravnicka osoba","Internet neomezeně 5G","Můj svobodný tarif L","8 GB"]
[null,null,null,null,"IPravnicka osoba","Internet neomezeně 5G s výhodou","Můj svobodný tarif L","11 GB"]
[null,null,null,null,"IPravnicka osoba","Internet neomezeně s výhodou","Můj svobodný tarif L","15 GB"]
[null,null,null,null,"IPravnicka osoba","Internet bez drátu Premium","Můj svobodný tarif L","19 GB"]
[null,null,null,null,"IPravnicka osoba","Internet bez drátu Premium bez závazku","Můj svobodný tarif L","neomezená data SD"]
[null,null,null,null,"IPravnicka osoba","Internet bez drátu Premium Plus","Můj svobodný tarif L","neomezená data HD"]
[null,null,null,null,"IPravnicka osoba","Internet bez drátu Premium Plus bez závazku","Můj svobodný tarif L","neomezená data MAX"]
[null,null,null,null,"IPravnicka osoba","Internet bez drátu Standard","Můj svobodný tarif XL","500 MB"]
[null,null,null,null,"IPravnicka osoba","Internet bez drátu Standard bez závazku","Můj svobodný tarif XL","1 GB"]
[null,null,null,null,"IPravnicka osoba","Internet Komplet","Můj svobodný tarif XL","2 GB"]
[null,null,null,null,"IPravnicka osoba","Internet Komplet bez závazku","Můj svobodný tarif XL","3 GB"]
[null,null,null,null,"MPravnicka osoba","M2M","Můj svobodný tarif XL","4 GB"]
[null,null,null,null,"MPravnicka osoba","M2M 1 Pro Firmu","Můj svobodný tarif XL","5 GB"]
[null,null,null,null,"MPravnicka osoba","M2M 1 Pro Firmu bez roamingu","Můj svobodný tarif XL","6 GB"]
[null,null,null,null,"MPravnicka osoba","M2M 1 Pro Firmu bez roamingu bez závazku","Můj svobodný tarif XL","8 GB"]
[null,null,null,null,"MPravnicka osoba","M2M 1 Pro Firmu bez závazku","Můj svobodný tarif XL","11 GB"]
[null,null,null,null,"MPravnicka osoba","M2M 2 Pro Firmu","Můj svobodný tarif XL","15 GB"]
[null,null,null,null,"MPravnicka osoba","M2M 2 Pro Firmu bez roamingu","Můj svobodný tarif XL","19 GB"]
[null,null,null,null,"MPravnicka osoba","M2M 2 Pro Firmu bez roamingu bez závazku","Můj svobodný tarif XL","neomezená data SD"]
[null,null,null,null,"MPravnicka osoba","M2M 2 Pro Firmu bez závazku","Můj svobodný tarif XL","neomezená data HD"]
[null,null,null,null,"MPravnicka osoba","M2M 3 Pro Firmu","Můj svobodný tarif XL","neomezená data MAX"]
[null,null,null,null,"MPravnicka osoba","M2M 3 Pro Firmu bez závazku","Můj Student","neomezená data SD"]
[null,null,null,null,"MPravnicka osoba","M2M 4 Pro Firmu","Můj Student 50","8 GB"]
[null,null,null,null,"MPravnicka osoba","M2M 4 Pro Firmu bez závazku","Můj Student 50","14 GB"]
[null,null,null,null,"MPravnicka osoba","M2M bez závazku","Můj Student 50","22 GB"]
[null,null,null,null,"MPravnicka osoba","M2M Mini","Můj Student 50","neomezená data SD"]
[null,null,null,null,"MPravnicka osoba","M2M Mini bez závazku","Můj Student 100","8 GB"]
[null,null,null,null,"MPravnicka osoba","M2M Premium","Můj Student 100","14 GB"]
[null,null,null,null,"MPravnicka osoba","M2M Premium bez závazku","Můj Student 100","22 GB"]
[null,null,null,null,"MPravnicka osoba","M2M Profi","Můj Student 100","neomezená data SD"]
[null,null,null,null,"MPravnicka osoba","M2M Profi bez závazku","Můj Student 100+","8 GB"]
[null,null,null,null,"MPravnicka osoba","Mobil DATA bez závazku se 100 min a 100 SMS navíc","Můj Student 100+","14 GB"]
[null,null,null,null,"MPravnicka osoba","Mobilní internet 1,5GB","Můj Student 100+","22 GB"]
[null,null,null,null,"MPravnicka osoba","Mobilní internet 1,5GB bez závazku","Můj Student 100+","neomezená data SD"]
[null,null,null,null,"MPravnicka osoba","Mobilní internet 1,5GB se závazkem na 12 měsíců","Můj Student 200","8 GB"]
[null,null,null,null,"MPravnicka osoba","Mobilní internet 10GB","Můj Student 200","14 GB"]
[null,null,null,null,"MPravnicka osoba","Mobilní internet 10GB bez závazku","Můj Student 200","22 GB"]
[null,null,null,null,"MPravnicka osoba","Mobilní internet 30GB","Můj Student 200","neomezená data SD"]
[null,null,null,null,"MPravnicka osoba","Mobilní internet 30GB bez závazku","Můj Student M","8 GB"]
[null,null,null,null,"MPravnicka osoba","Mobilní internet 3GB","Můj Student M","14 GB"]
[null,null,null,null,"MPravnicka osoba","Mobilní internet 3GB bez závazku","Můj Student M","22 GB"]
[null,null,null,null,"MPravnicka osoba","Mobilní Internet 1 Pro Firmu","Můj Student M","neomezená data SD"]
[null,null,null,null,"MPravnicka osoba","Mobilní Internet 1 Pro Firmu bez závazku","Můj Student 50+","8 GB"]
[null,null,null,null,"MPravnicka osoba","Mobilní Internet 2 Pro Firmu","Můj Student 50+","14 GB"]
[null,null,null,null,"MPravnicka osoba","Mobilní Internet 2 Pro Firmu bez závazku","Můj Student 50+","22 GB"]
[null,null,null,null,"MPravnicka osoba","Mobilní Internet 3 Pro Firmu","Můj Student 50+","neomezená data SD"]
[null,null,null,null,"MPravnicka osoba","Mobilní Internet 3 Pro Firmu bez závazku","Start 150 s výhodou","Není k dispozici"]
[null,null,null,null,"MPravnicka osoba","Mobilní Internet 4 Pro Firmu","Start s výhodou","Není k dispozici"]
[null,null,null,null,"MPravnicka osoba","Mobilní Internet 4 Pro Firmu bez závazku","1 GB Plus s výhodou","Není k dispozici"]
[null,null,null,null,"MPravnicka osoba","Mobilní Internet 5 Pro Firmu","3 GB Plus s výhodou","Není k dispozici"]
[null,null,null,null,"MPravnicka osoba","Mobilní Internet 5 Pro Firmu bez závazku","4 GB Plus s výhodou","Není k dispozici"]
[null,null,null,null,"MPravnicka osoba","Mobilní Internet 6 Pro Firmu","5 GB Plus s výhodou","Není k dispozici"]
[null,null,null,null,"MPravnicka osoba","Mobilní Internet 6 Pro Firmu bez závazku","6 GB Plus s výhodou","Není k dispozici"]
[null,null,null,null,"NPravnicka osoba","Neomezeně 5G L","8 GB Plus s výhodou","Není k dispozici"]
[null,null,null,null,"NPravnicka osoba","Neomezeně 5G L s výhodou","12 GB Plus s výhodou","Není k dispozici"]
[null,null,null,null,"NPravnicka osoba","Neomezeně 5G XL","Neomezeně XL s výhodou","Není k dispozici"]
[null,null,null,null,"NPravnicka osoba","Neomezeně 5G XL business","Neomezeně XXL s výhodou","Není k dispozici"]
[null,null,null,null,"NPravnicka osoba","Neomezeně 5G XL business s výhodou","Neomezeně 5G L s výhodou","Není k dispozici"]
[null,null,null,null,"NPravnicka osoba","Neomezeně 5G XL s výhodou","Neomezeně 5G XL s výhodou","Není k dispozici"]
[null,null,null,null,"NPravnicka osoba","Neomezeně 5G XXL","Neomezeně 5G XXL s výhodou","Není k dispozici"]
[null,null,null,null,"NPravnicka osoba","Neomezeně 5G XXL s výhodou","Data 4 GB Plus s výhodou","Není k dispozici"]
[null,null,null,null,"NPravnicka osoba","Neomezeně XL","Data 10 GB Plus s výhodou","Není k dispozici"]
[null,null,null,null,"NPravnicka osoba","Neomezeně XL s výhodou","Data neomezeně s výhodou","Není k dispozici"]
[null,null,null,null,"NPravnicka osoba","Neomezeně XXL","Data neomezeně 5G s výhodou","Není k dispozici"]
[null,null,null,null,"NPravnicka osoba","Neomezeně XXL s výhodou","Internet 4 GB s výhodou","Není k dispozici"]
[null,null,null,null,"NPravnicka osoba","Neomezený mobilní internet","Internet 10 GB s výhodou","Není k dispozici"]
[null,null,null,null,"NPravnicka osoba","Neomezený mobilní internet bez závazku","Internet neomezeně s výhodou","Není k dispozici"]
[null,null,null,null,"PPravnicka osoba","Profi 120","Internet neomezeně 5G s výhodou","Není k dispozici"]
[null,null,null,null,"PPravnicka osoba","Profi 120 HIT","Start 75 s výhodou","Není k dispozici"]
[null,null,null,null,"PPravnicka osoba","Profi na míru 1","Internet 6 GB  s výhodou","Není k dispozici"]
[null,null,null,null,"PPravnicka osoba","Profi na míru 1 bez závazku","Neomezeně 5G XL business s výhodou","Není k dispozici"]
[null,null,null,null,"PPravnicka osoba","Profi na míru 2","Start 150","Není k dispozici"]
[null,null,null,null,"PPravnicka osoba","Profi na míru 2 bez závazku","Start","Není k dispozici"]
[null,null,null,null,"PPravnicka osoba","Profi na míru 3","1 GB Plus","Není k dispozici"]
[null,null,null,null,"PPravnicka osoba","Profi na míru 3 bez závazku","3 GB Plus","Není k dispozici"]
[null,null,null,null,"PPravnicka osoba","Profi na míru 4","4 GB Plus","Není k dispozici"]
[null,null,null,null,"PPravnicka osoba","Profi na míru 4 bez závazku","5 GB Plus","Není k dispozici"]
[null,null,null,null,"PPravnicka osoba","Profi na míru 5","6 GB Plus","Není k dispozici"]
[null,null,null,null,"PPravnicka osoba","Profi na míru 5 bez závazku","8 GB Plus","Není k dispozici"]
[null,null,null,null,"SPravnicka osoba","Start","12 GB Plus","Není k dispozici"]
[null,null,null,null,"SPravnicka osoba","Start 150","Neomezeně XL","Není k dispozici"]
[null,null,null,null,"SPravnicka osoba","Start 150 s výhodou","Neomezeně XXL","Není k dispozici"]
[null,null,null,null,"SPravnicka osoba","Start 75","Neomezeně 5G L","Není k dispozici"]
[null,null,null,null,"SPravnicka osoba","Start 75 s výhodou","Neomezeně 5G XL","Není k dispozici"]
[null,null,null,null,"SPravnicka osoba","Start s výhodou","Neomezeně 5G XXL","Není k dispozici"]
[null,null,null,null,"TPravnicka osoba","T 1500","Data 4 GB Plus","Není k dispozici"]
[null,null,null,null,"TPravnicka osoba","T 1500 HIT","Data 10 GB Plus","Není k dispozici"]
[null,null,null,null,"TPravnicka osoba","T 160","Data neomezeně","Není k dispozici"]
[null,null,null,null,"TPravnicka osoba","T 160 HIT","Data neomezeně 5G","Není k dispozici"]
[null,null,null,null,"TPravnicka osoba","T 30","Internet 4 GB","Není k dispozici"]
[null,null,null,null,"TPravnicka osoba","T 30 HIT","Internet 10 GB","Není k dispozici"]
[null,null,null,null,"TPravnicka osoba","T 300","Internet neomezeně","Není k dispozici"]
[null,null,null,null,"TPravnicka osoba","T 300 HIT","Internet neomezeně 5G","Není k dispozici"]
[null,null,null,null,"TPravnicka osoba","T 600","Start 75","Není k dispozici"]
[null,null,null,null,"TPravnicka osoba","T 600 HIT","Internet 6 GB ","Není k dispozici"]
[null,null,null,null,"TPravnicka osoba","T 80","Neomezeně 5G XL business","Není k dispozici"]
[null,null,null,null,"TPravnicka osoba","T 80 HIT"]
[null,null,null,null,"TPravnicka osoba","Tarif 1 Pro Firmu"]
[null,null,null,null,"TPravnicka osoba","Tarif 1 Pro Firmu bez závazku"]
[null,null,null,null,"TPravnicka osoba","Tarif 10 Pro Firmu"]
[null,null,null,null,"TPravnicka osoba","Tarif 10 Pro Firmu bez závazku"]
[null,null,null,null,"TPravnicka osoba","Tarif 2 Pro Firmu"]
[null,null,null,null,"TPravnicka osoba","Tarif 2 Pro Firmu bez závazku"]
[null,null,null,null,"TPravnicka osoba","Tarif 3 Pro Firmu"]
[null,null,null,null,"TPravnicka osoba","Tarif 3 Pro Firmu bez závazku"]
[null,null,null,null,"TPravnicka osoba","Tarif 4 Pro Firmu"]
[null,null,null,null,"TPravnicka osoba","Tarif 4 Pro Firmu bez závazku"]
[null,null,null,null,"TPravnicka osoba","Tarif 5 Pro Firmu"]
[null,null,null,null,"TPravnicka osoba","Tarif 5 Pro Firmu bez závazku"]
[null,null,null,null,"TPravnicka osoba","Tarif 6 Pro Firmu"]
[null,null,null,null,"TPravnicka osoba","Tarif 6 Pro Firmu bez závazku"]
[null,null,null,null,"TPravnicka osoba","Tarif 7 Pro Firmu"]
[null,null,null,null,"TPravnicka osoba","Tarif 7 Pro Firmu bez závazku"]
[null,null,null,null,"TPravnicka osoba","Tarif 8 Pro Firmu"]
[null,null,null,null,"TPravnicka osoba","Tarif 8 Pro Firmu bez závazku"]
[null,null,null,null,"TPravnicka osoba","Tarif 9 Pro Firmu"]
[null,null,null,null,"TPravnicka osoba","Tarif 9 Pro Firmu bez závazku"]
[null,null,null,null,"TPravnicka osoba","Tarif Data & SMS"]
[null,null,null,null,"TPravnicka osoba","Tarif Data & SMS bez závazku"]
[null,null,null,null,"Pravnicka osoba","1 GB Plus"]
[null,null,null,null,"Pravnicka osoba","1 GB Plus s výhodou"]
[null,null,null,null,"Pravnicka osoba","12 GB Plus"]
[null,null,null,null,"Pravnicka osoba","12 GB Plus s výhodou"]
[null,null,null,null,"Pravnicka osoba","3 GB Plus"]
[null,null,null,null,"Pravnicka osoba","3 GB Plus s výhodou"]
[null,null,null,null,"Pravnicka osoba","4 GB Plus"]
[null,null,null,null,"Pravnicka osoba","4 GB Plus s výhodou"]
[null,null,null,null,"Pravnicka osoba","5 GB Plus"]
[null,null,null,null,"Pravnicka osoba","5 GB Plus s výhodou"]
[null,null,null,null,"Pravnicka osoba","6 GB Plus"]
[null,null,null,null,"Pravnicka osoba","6 GB Plus s výhodou"]
[null,null,null,null,"Pravnicka osoba","8 GB Plus"]
[null,null,null,null,"Pravnicka osoba","8 GB Plus s výhodou"]
[null,null,null,null,"Pravnicka osoba","Data 10 GB Plus"]
[null,null,null,null,"Pravnicka osoba","Data 10 GB Plus s výhodou"]
[null,null,null,null,"Pravnicka osoba","Data 4 GB Plus"]
[null,null,null,null,"Pravnicka osoba","Data 4 GB Plus s výhodou"]
[null,null,null,null,"Pravnicka osoba","Data neomezeně"]
[null,null,null,null,"Pravnicka osoba","Data neomezeně 5G"]
[null,null,null,null,"Pravnicka osoba","Data neomezeně 5G s výhodou"]
[null,null,null,null,"Pravnicka osoba","Data neomezeně s výhodou"]
[null,null,null,null,"Pravnicka osoba","Happy Partner"]
[null,null,null,null,"Pravnicka osoba","Happy Partner bez závazku"]
[null,null,null,null,"Pravnicka osoba","Chytré auto"]
[null,null,null,null,"Pravnicka osoba","Chytré auto bez závazku"]
[null,null,null,null,"Pravnicka osoba","Chytré auto WiFi premium"]
[null,null,null,null,"Pravnicka osoba","Chytré auto WiFi premium bez závazku"]
[null,null,null,null,"Pravnicka osoba","Chytré auto WiFi standard"]
[null,null,null,null,"Pravnicka osoba","Chytré auto WiFi standard bez závazku"]
[null,null,null,null,"Pravnicka osoba","Internet 10 GB"]
[null,null,null,null,"Pravnicka osoba","Internet 10 GB s výhodou"]
[null,null,null,null,"Pravnicka osoba","Internet 4 GB"]
[null,null,null,null,"Pravnicka osoba","Internet 4 GB s výhodou"]
[null,null,null,null,"Pravnicka osoba","Internet 6 GB "]
[null,null,null,null,"Pravnicka osoba","Internet 6 GB  s výhodou"]
[null,null,null,null,"Pravnicka osoba","Internet bez drátu Premium"]
[null,null,null,null,"Pravnicka osoba","Internet bez drátu Premium bez závazku"]
[null,null,null,null,"Pravnicka osoba","Internet bez drátu Premium Plus"]
[null,null,null,null,"Pravnicka osoba","Internet bez drátu Premium Plus bez závazku"]
[null,null,null,null,"Pravnicka osoba","Internet bez drátu Standard"]
[null,null,null,null,"Pravnicka osoba","Internet bez drátu Standard bez závazku"]
[null,null,null,null,"Pravnicka osoba","Internet Komplet"]
[null,null,null,null,"Pravnicka osoba","Internet Komplet bez závazku"]
[null,null,null,null,"Pravnicka osoba","Internet neomezeně"]
[null,null,null,null,"Pravnicka osoba","Internet neomezeně 5G"]
[null,null,null,null,"Pravnicka osoba","Internet neomezeně 5G s výhodou"]
[null,null,null,null,"Pravnicka osoba","Internet neomezeně s výhodou"]
[null,null,null,null,"Pravnicka osoba","M2M"]
[null,null,null,null,"Pravnicka osoba","M2M 1 Pro Firmu"]
[null,null,null,null,"Pravnicka osoba","M2M 1 Pro Firmu bez roamingu"]
[null,null,null,null,"Pravnicka osoba","M2M 1 Pro Firmu bez roamingu bez závazku"]
[null,null,null,null,"Pravnicka osoba","M2M 1 Pro Firmu bez závazku"]
[null,null,null,null,"Pravnicka osoba","M2M 2 Pro Firmu"]
[null,null,null,null,"Pravnicka osoba","M2M 2 Pro Firmu bez roamingu"]
[null,null,null,null,"Pravnicka osoba","M2M 2 Pro Firmu bez roamingu bez závazku"]
[null,null,null,null,"Pravnicka osoba","M2M 2 Pro Firmu bez závazku"]
[null,null,null,null,"Pravnicka osoba","M2M 3 Pro Firmu"]
[null,null,null,null,"Pravnicka osoba","M2M 3 Pro Firmu bez závazku"]
[null,null,null,null,"Pravnicka osoba","M2M 4 Pro Firmu"]
[null,null,null,null,"Pravnicka osoba","M2M 4 Pro Firmu bez závazku"]
[null,null,null,null,"Pravnicka osoba","M2M bez závazku"]
[null,null,null,null,"Pravnicka osoba","M2M Mini"]
[null,null,null,null,"Pravnicka osoba","M2M Mini bez závazku"]
[null,null,null,null,"Pravnicka osoba","M2M Premium"]
[null,null,null,null,"Pravnicka osoba","M2M Premium bez závazku"]
[null,null,null,null,"Pravnicka osoba","M2M Profi"]
[null,null,null,null,"Pravnicka osoba","M2M Profi bez závazku"]
[null,null,null,null,"Pravnicka osoba","Mobil DATA bez závazku se 100 min a 100 SMS navíc"]
[null,null,null,null,"Pravnicka osoba","Mobilní internet 1,5GB"]
[null,null,null,null,"Pravnicka osoba","Mobilní internet 1,5GB bez závazku"]
[null,null,null,null,"Pravnicka osoba","Mobilní internet 1,5GB se závazkem na 12 měsíců"]
[null,null,null,null,"Pravnicka osoba","Mobilní internet 10GB"]
[null,null,null,null,"Pravnicka osoba","Mobilní internet 10GB bez závazku"]
[null,null,null,null,"Pravnicka osoba","Mobilní internet 30GB"]
[null,null,null,null,"Pravnicka osoba","Mobilní internet 30GB bez závazku"]
[null,null,null,null,"Pravnicka osoba","Mobilní internet 3GB"]
[null,null,null,null,"Pravnicka osoba","Mobilní internet 3GB bez závazku"]
[null,null,null,null,"Pravnicka osoba","Mobilní Internet 1 Pro Firmu"]
[null,null,null,null,"Pravnicka osoba","Mobilní Internet 1 Pro Firmu bez závazku"]
[null,null,null,null,"Pravnicka osoba","Mobilní Internet 2 Pro Firmu"]
[null,null,null,null,"Pravnicka osoba","Mobilní Internet 2 Pro Firmu bez závazku"]
[null,null,null,null,"Pravnicka osoba","Mobilní Internet 3 Pro Firmu"]
[null,null,null,null,"Pravnicka osoba","Mobilní Internet 3 Pro Firmu bez závazku"]
[null,null,null,null,"Pravnicka osoba","Mobilní Internet 4 Pro Firmu"]
[null,null,null,null,"Pravnicka osoba","Mobilní Internet 4 Pro Firmu bez závazku"]
[null,null,null,null,"Pravnicka osoba","Mobilní Internet 5 Pro Firmu"]
[null,null,null,null,"Pravnicka osoba","Mobilní Internet 5 Pro Firmu bez závazku"]
[null,null,null,null,"Pravnicka osoba","Mobilní Internet 6 Pro Firmu"]
[null,null,null,null,"Pravnicka osoba","Mobilní Internet 6 Pro Firmu bez závazku"]
[null,null,null,null,"Pravnicka osoba","Neomezeně 5G L"]
[null,null,null,null,"Pravnicka osoba","Neomezeně 5G L s výhodou"]
[null,null,null,null,"Pravnicka osoba","Neomezeně 5G XL"]
[null,null,null,null,"Pravnicka osoba","Neomezeně 5G XL business"]
[null,null,null,null,"Pravnicka osoba","Neomezeně 5G XL business s výhodou"]
[null,null,null,null,"Pravnicka osoba","Neomezeně 5G XL s výhodou"]
[null,null,null,null,"Pravnicka osoba","Neomezeně 5G XXL"]
[null,null,null,null,"Pravnicka osoba","Neomezeně 5G XXL s výhodou"]
[null,null,null,null,"Pravnicka osoba","Neomezeně XL"]
[null,null,null,null,"Pravnicka osoba","Neomezeně XL s výhodou"]
[null,null,null,null,"Pravnicka osoba","Neomezeně XXL"]
[null,null,null,null,"Pravnicka osoba","Neomezeně XXL s výhodou"]
[null,null,null,null,"Pravnicka osoba","Neomezený mobilní internet"]
[null,null,null,null,"Pravnicka osoba","Neomezený mobilní internet bez závazku"]
[null,null,null,null,"Pravnicka osoba","Profi 120"]
[null,null,null,null,"Pravnicka osoba","Profi 120 HIT"]
[null,null,null,null,"Pravnicka osoba","Profi na míru 1"]
[null,null,null,null,"Pravnicka osoba","Profi na míru 1 bez závazku"]
[null,null,null,null,"Pravnicka osoba","Profi na míru 2"]
[null,null,null,null,"Pravnicka osoba","Profi na míru 2 bez závazku"]
[null,null,null,null,"Pravnicka osoba","Profi na míru 3"]
[null,null,null,null,"Pravnicka osoba","Profi na míru 3 bez závazku"]
[null,null,null,null,"Pravnicka osoba","Profi na míru 4"]
[null,null,null,null,"Pravnicka osoba","Profi na míru 4 bez závazku"]
[null,null,null,null,"Pravnicka osoba","Profi na míru 5"]
[null,null,null,null,"Pravnicka osoba","Profi na míru 5 bez závazku"]
[null,null,null,null,"Pravnicka osoba","Start"]
[null,null,null,null,"Pravnicka osoba","Start 150"]
[null,null,null,null,"Pravnicka osoba","Start 150 s výhodou"]
[null,null,null,null,"Pravnicka osoba","Start 75"]
[null,null,null,null,"Pravnicka osoba","Start 75 s výhodou"]
[null,null,null,null,"Pravnicka osoba","Start s výhodou"]
[null,null,null,null,"Pravnicka osoba","T 1500"]
[null,null,null,null,"Pravnicka osoba","T 1500 HIT"]
[null,null,null,null,"Pravnicka osoba","T 160"]
[null,null,null,null,"Pravnicka osoba","T 160 HIT"]
[null,null,null,null,"Pravnicka osoba","T 30"]
[null,null,null,null,"Pravnicka osoba","T 30 HIT"]
[null,null,null,null,"Pravnicka osoba","T 300"]
[null,null,null,null,"Pravnicka osoba","T 300 HIT"]
[null,null,null,null,"Pravnicka osoba","T 600"]
[null,null,null,null,"Pravnicka osoba","T 600 HIT"]
[null,null,null,null,"Pravnicka osoba","T 80"]
[null,null,null,null,"Pravnicka osoba","T 80 HIT"]
[null,null,null,null,"Pravnicka osoba","Tarif 1 Pro Firmu"]
[null,null,null,null,"Pravnicka osoba","Tarif 1 Pro Firmu bez závazku"]
[null,null,null,null,"Pravnicka osoba","Tarif 10 Pro Firmu"]
[null,null,null,null,"Pravnicka osoba","Tarif 10 Pro Firmu bez závazku"]
[null,null,null,null,"Pravnicka osoba","Tarif 2 Pro Firmu"]
[null,null,null,null,"Pravnicka osoba","Tarif 2 Pro Firmu bez závazku"]
[null,null,null,null,"Pravnicka osoba","Tarif 3 Pro Firmu"]
[null,null,null,null,"Pravnicka osoba","Tarif 3 Pro Firmu bez závazku"]
[null,null,null,null,"Pravnicka osoba","Tarif 4 Pro Firmu"]
[null,null,null,null,"Pravnicka osoba","Tarif 4 Pro Firmu bez závazku"]
[null,null,null,null,"Pravnicka osoba","Tarif 5 Pro Firmu"]
[null,null,null,null,"Pravnicka osoba","Tarif 5 Pro Firmu bez závazku"]
[null,null,null,null,"Pravnicka osoba","Tarif 6 Pro Firmu"]
[null,null,null,null,"Pravnicka osoba","Tarif 6 Pro Firmu bez závazku"]
[null,null,null,null,"Pravnicka osoba","Tarif 7 Pro Firmu"]
[null,null,null,null,"Pravnicka osoba","Tarif 7 Pro Firmu bez závazku"]
[null,null,null,null,"Pravnicka osoba","Tarif 8 Pro Firmu"]
[null,null,null,null,"Pravnicka osoba","Tarif 8 Pro Firmu bez závazku"]
[null,null,null,null,"Pravnicka osoba","Tarif 9 Pro Firmu"]
[null,null,null,null,"Pravnicka osoba","Tarif 9 Pro Firmu bez závazku"]
[null,null,null,null,"Pravnicka osoba","Tarif Data & SMS"]
[null,null,null,null,"Pravnicka osoba","Tarif Data & SMS bez závazku"]
[null,null,null,null,"BFyzicka osoba","1 GB Plus"]
[null,null,null,null,"BFyzicka osoba","1 GB Plus s výhodou"]
[null,null,null,null,"BFyzicka osoba","12 GB Plus"]
[null,null,null,null,"BFyzicka osoba","12 GB Plus s výhodou"]
[null,null,null,null,"BFyzicka osoba","3 GB Plus"]
[null,null,null,null,"BFyzicka osoba","3 GB Plus s výhodou"]
[null,null,null,null,"BFyzicka osoba","4 GB Plus"]
[null,null,null,null,"BFyzicka osoba","4 GB Plus s výhodou"]
[null,null,null,null,"BFyzicka osoba","5 GB Plus"]
[null,null,null,null,"BFyzicka osoba","5 GB Plus s výhodou"]
[null,null,null,null,"BFyzicka osoba","6 GB Plus"]
[null,null,null,null,"BFyzicka osoba","6 GB Plus s výhodou"]
[null,null,null,null,"BFyzicka osoba","8 GB Plus"]
[null,null,null,null,"BFyzicka osoba","8 GB Plus s výhodou"]
[null,null,null,null,"CFyzicka osoba","Chytré auto"]
[null,null,null,null,"CFyzicka osoba","Chytré auto bez závazku"]
[null,null,null,null,"CFyzicka osoba","Chytré auto WiFi premium"]
[null,null,null,null,"CFyzicka osoba","Chytré auto WiFi premium bez závazku"]
[null,null,null,null,"CFyzicka osoba","Chytré auto WiFi standard"]
[null,null,null,null,"CFyzicka osoba","Chytré auto WiFi standard bez závazku"]
[null,null,null,null,"DFyzicka osoba","Data 10 GB Plus"]
[null,null,null,null,"DFyzicka osoba","Data 10 GB Plus s výhodou"]
[null,null,null,null,"DFyzicka osoba","Data 4 GB Plus"]
[null,null,null,null,"DFyzicka osoba","Data 4 GB Plus s výhodou"]
[null,null,null,null,"DFyzicka osoba","Data neomezeně"]
[null,null,null,null,"DFyzicka osoba","Data neomezeně 5G"]
[null,null,null,null,"DFyzicka osoba","Data neomezeně 5G s výhodou"]
[null,null,null,null,"DFyzicka osoba","Data neomezeně s výhodou"]
[null,null,null,null,"HFyzicka osoba","Happy Partner bez závazku"]
[null,null,null,null,"IFyzicka osoba","Internet 10 GB"]
[null,null,null,null,"IFyzicka osoba","Internet 10 GB s výhodou"]
[null,null,null,null,"IFyzicka osoba","Internet 4 GB"]
[null,null,null,null,"IFyzicka osoba","Internet 4 GB s výhodou"]
[null,null,null,null,"IFyzicka osoba","Internet 6 GB "]
[null,null,null,null,"IFyzicka osoba","Internet 6 GB  s výhodou"]
[null,null,null,null,"IFyzicka osoba","Internet neomezeně"]
[null,null,null,null,"IFyzicka osoba","Internet neomezeně 5G"]
[null,null,null,null,"IFyzicka osoba","Internet neomezeně 5G s výhodou"]
[null,null,null,null,"IFyzicka osoba","Internet neomezeně s výhodou"]
[null,null,null,null,"MFyzicka osoba","Mobil DATA bez závazku se 100 min a 100 SMS navíc"]
[null,null,null,null,"NFyzicka osoba","Neomezeně 5G L"]
[null,null,null,null,"NFyzicka osoba","Neomezeně 5G L s výhodou"]
[null,null,null,null,"NFyzicka osoba","Neomezeně 5G XL"]
[null,null,null,null,"NFyzicka osoba","Neomezeně 5G XL business"]
[null,null,null,null,"NFyzicka osoba","Neomezeně 5G XL business s výhodou"]
[null,null,null,null,"NFyzicka osoba","Neomezeně 5G XL s výhodou"]
[null,null,null,null,"NFyzicka osoba","Neomezeně 5G XXL"]
[null,null,null,null,"NFyzicka osoba","Neomezeně 5G XXL s výhodou"]
[null,null,null,null,"NFyzicka osoba","Neomezeně XL"]
[null,null,null,null,"NFyzicka osoba","Neomezeně XL s výhodou"]
[null,null,null,null,"NFyzicka osoba","Neomezeně XXL"]
[null,null,null,null,"NFyzicka osoba","Neomezeně XXL s výhodou"]
[null,null,null,null,"SFyzicka osoba","Start"]
[null,null,null,null,"SFyzicka osoba","Start 150"]
[null,null,null,null,"SFyzicka osoba","Start 150 s výhodou"]
[null,null,null,null,"SFyzicka osoba","Start 75"]
[null,null,null,null,"SFyzicka osoba","Start 75 s výhodou"]
[null,null,null,null,"SFyzicka osoba","Start s výhodou"]
[null,null,null,null,"SFyzicka osoba","Student Plus"]
[null,null,null,null,"SFyzicka osoba","Student neomezeně"]
[null,null,null,null,"TFyzicka osoba","T 1500"]
[null,null,null,null,"TFyzicka osoba","T 1500 HIT"]
[null,null,null,null,"TFyzicka osoba","T 160"]
[null,null,null,null,"TFyzicka osoba","T 160 HIT"]
[null,null,null,null,"TFyzicka osoba","T 30"]
[null,null,null,null,"TFyzicka osoba","T 30 HIT"]
[null,null,null,null,"TFyzicka osoba","T 300"]
[null,null,null,null,"TFyzicka osoba","T 300 HIT"]
[null,null,null,null,"TFyzicka osoba","T 600"]
[null,null,null,null,"TFyzicka osoba","T 600 HIT"]
[null,null,null,null,"TFyzicka osoba","T 80"]
[null,null,null,null,"TFyzicka osoba","T 80 HIT"]
[null,null,null,null,"Fyzicka osoba","1 GB Plus"]
[null,null,null,null,"Fyzicka osoba","1 GB Plus s výhodou"]
[null,null,null,null,"Fyzicka osoba","12 GB Plus"]
[null,null,null,null,"Fyzicka osoba","12 GB Plus s výhodou"]
[null,null,null,null,"Fyzicka osoba","3 GB Plus"]
[null,null,null,null,"Fyzicka osoba","3 GB Plus s výhodou"]
[null,null,null,null,"Fyzicka osoba","4 GB Plus"]
[null,null,null,null,"Fyzicka osoba","4 GB Plus s výhodou"]
[null,null,null,null,"Fyzicka osoba","5 GB Plus"]
[null,null,null,null,"Fyzicka osoba","5 GB Plus s výhodou"]
[null,null,null,null,"Fyzicka osoba","6 GB Plus"]
[null,null,null,null,"Fyzicka osoba","6 GB Plus s výhodou"]
[null,null,null,null,"Fyzicka osoba","8 GB Plus"]
[null,null,null,null,"Fyzicka osoba","8 GB Plus s výhodou"]
[null,null,null,null,"Fyzicka osoba","Data 10 GB Plus"]
[null,null,null,null,"Fyzicka osoba","Data 10 GB Plus s výhodou"]
[null,null,null,null,"Fyzicka osoba","Data 4 GB Plus"]
[null,null,null,null,"Fyzicka osoba","Data 4 GB Plus s výhodou"]
[null,null,null,null,"Fyzicka osoba","Data neomezeně"]
[null,null,null,null,"Fyzicka osoba","Data neomezeně 5G"]
[null,null,null,null,"Fyzicka osoba","Data neomezeně 5G s výhodou"]
[null,null,null,null,"Fyzicka osoba","Data neomezeně s výhodou"]
[null,null,null,null,"Fyzicka osoba","Happy Partner bez závazku"]
[null,null,null,null,"Fyzicka osoba","Chytré auto"]
[null,null,null,null,"Fyzicka osoba","Chytré auto bez závazku"]
[null,null,null,null,"Fyzicka osoba","Chytré auto WiFi premium"]
[null,null,null,null,"Fyzicka osoba","Chytré auto WiFi premium bez závazku"]
[null,null,null,null,"Fyzicka osoba","Chytré auto WiFi standard"]
[null,null,null,null,"Fyzicka osoba","Chytré auto WiFi standard bez závazku"]
[null,null,null,null,"Fyzicka osoba","Internet 10 GB"]
[null,null,null,null,"Fyzicka osoba","Internet 10 GB s výhodou"]
[null,null,null,null,"Fyzicka osoba","Internet 4 GB"]
[null,null,null,null,"Fyzicka osoba","Internet 4 GB s výhodou"]
[null,null,null,null,"Fyzicka osoba","Internet 6 GB "]
[null,null,null,null,"Fyzicka osoba","Internet 6 GB  s výhodou"]
[null,null,null,null,"Fyzicka osoba","Internet neomezeně"]
[null,null,null,null,"Fyzicka osoba","Internet neomezeně 5G"]
[null,null,null,null,"Fyzicka osoba","Internet neomezeně 5G s výhodou"]
[null,null,null,null,"Fyzicka osoba","Internet neomezeně s výhodou"]
[null,null,null,null,"Fyzicka osoba","Mobil DATA bez závazku se 100 min a 100 SMS navíc"]
[null,null,null,null,"Fyzicka osoba","Neomezeně 5G L"]
[null,null,null,null,"Fyzicka osoba","Neomezeně 5G L s výhodou"]
[null,null,null,null,"Fyzicka osoba","Neomezeně 5G XL"]
[null,null,null,null,"Fyzicka osoba","Neomezeně 5G XL business"]
[null,null,null,null,"Fyzicka osoba","Neomezeně 5G XL business s výhodou"]
[null,null,null,null,"Fyzicka osoba","Neomezeně 5G XL s výhodou"]
[null,null,null,null,"Fyzicka osoba","Neomezeně 5G XXL"]
[null,null,null,null,"Fyzicka osoba","Neomezeně 5G XXL s výhodou"]
[null,null,null,null,"Fyzicka osoba","Neomezeně XL"]
[null,null,null,null,"Fyzicka osoba","Neomezeně XL s výhodou"]
[null,null,null,null,"Fyzicka osoba","Neomezeně XXL"]
[null,null,null,null,"Fyzicka osoba","Neomezeně XXL s výhodou"]
[null,null,null,null,"Fyzicka osoba","Student Plus"]
[null,null,null,null,"Fyzicka osoba","Student neomezeně"]
[null,null,null,null,"Fyzicka osoba","Start"]
[null,null,null,null,"Fyzicka osoba","Start 150"]
[null,null,null,null,"Fyzicka osoba","Start 150 s výhodou"]
[null,null,null,null,"Fyzicka osoba","Start 75"]
[null,null,null,null,"Fyzicka osoba","Start 75 s výhodou"]
[null,null,null,null,"Fyzicka osoba","Start s výhodou"]
[null,null,null,null,"Fyzicka osoba","T 1500"]
[null,null,null,null,"Fyzicka osoba","T 1500 HIT"]
[null,null,null,null,"Fyzicka osoba","T 160"]
[null,null,null,null,"Fyzicka osoba","T 160 HIT"]
[null,null,null,null,"Fyzicka osoba","T 30"]
[null,null,null,null,"Fyzicka osoba","T 30 HIT"]
[null,null,null,null,"Fyzicka osoba","T 300"]
[null,null,null,null,"Fyzicka osoba","T 300 HIT"]
[null,null,null,null,"Fyzicka osoba","T 600"]
[null,null,null,null,"Fyzicka osoba","T 600 HIT"]
[null,null,null,null,"Fyzicka osoba","T 80"]
[null,null,null,null,"Fyzicka osoba","T 80 HIT"]
[null,null,null,null,"BRS","1 GB Plus"]
[null,null,null,null,"BRS","1 GB Plus s výhodou"]
[null,null,null,null,"BRS","12 GB Plus"]
[null,null,null,null,"BRS","12 GB Plus s výhodou"]
[null,null,null,null,"BRS","3 GB Plus"]
[null,null,null,null,"BRS","3 GB Plus s výhodou"]
[null,null,null,null,"BRS","4 GB Plus"]
[null,null,null,null,"BRS","4 GB Plus s výhodou"]
[null,null,null,null,"BRS","5 GB Plus"]
[null,null,null,null,"BRS","5 GB Plus s výhodou"]
[null,null,null,null,"BRS","6 GB Plus"]
[null,null,null,null,"BRS","6 GB Plus s výhodou"]
[null,null,null,null,"BRS","8 GB Plus"]
[null,null,null,null,"BRS","8 GB Plus s výhodou"]
[null,null,null,null,"CRS","Chytré auto"]
[null,null,null,null,"CRS","Chytré auto bez závazku"]
[null,null,null,null,"CRS","Chytré auto WiFi premium"]
[null,null,null,null,"CRS","Chytré auto WiFi premium bez závazku"]
[null,null,null,null,"CRS","Chytré auto WiFi standard"]
[null,null,null,null,"CRS","Chytré auto WiFi standard bez závazku"]
[null,null,null,null,"DRS","Data 10 GB Plus"]
[null,null,null,null,"DRS","Data 10 GB Plus s výhodou"]
[null,null,null,null,"DRS","Data 4 GB Plus"]
[null,null,null,null,"DRS","Data 4 GB Plus s výhodou"]
[null,null,null,null,"DRS","Data neomezeně"]
[null,null,null,null,"DRS","Data neomezeně 5G"]
[null,null,null,null,"DRS","Data neomezeně 5G s výhodou"]
[null,null,null,null,"DRS","Data neomezeně s výhodou"]
[null,null,null,null,"HRS","Happy Partner"]
[null,null,null,null,"HRS","Happy Partner bez závazku"]
[null,null,null,null,"IRS","Internet 10 GB"]
[null,null,null,null,"IRS","Internet 10 GB s výhodou"]
[null,null,null,null,"IRS","Internet 4 GB"]
[null,null,null,null,"IRS","Internet 4 GB s výhodou"]
[null,null,null,null,"IRS","Internet 6 GB "]
[null,null,null,null,"IRS","Internet 6 GB  s výhodou"]
[null,null,null,null,"IRS","Internet neomezeně"]
[null,null,null,null,"IRS","Internet neomezeně 5G"]
[null,null,null,null,"IRS","Internet neomezeně 5G s výhodou"]
[null,null,null,null,"IRS","Internet neomezeně s výhodou"]
[null,null,null,null,"IRS","Internet bez drátu Premium"]
[null,null,null,null,"IRS","Internet bez drátu Premium bez závazku"]
[null,null,null,null,"IRS","Internet bez drátu Premium Plus"]
[null,null,null,null,"IRS","Internet bez drátu Premium Plus bez závazku"]
[null,null,null,null,"IRS","Internet bez drátu Standard"]
[null,null,null,null,"IRS","Internet bez drátu Standard bez závazku"]
[null,null,null,null,"IRS","Internet Komplet"]
[null,null,null,null,"IRS","Internet Komplet bez závazku"]
[null,null,null,null,"MRS","M2M"]
[null,null,null,null,"MRS","M2M 1 Pro Firmu"]
[null,null,null,null,"MRS","M2M 1 Pro Firmu bez roamingu"]
[null,null,null,null,"MRS","M2M 1 Pro Firmu bez roamingu bez závazku"]
[null,null,null,null,"MRS","M2M 1 Pro Firmu bez závazku"]
[null,null,null,null,"MRS","M2M 2 Pro Firmu"]
[null,null,null,null,"MRS","M2M 2 Pro Firmu bez roamingu"]
[null,null,null,null,"MRS","M2M 2 Pro Firmu bez roamingu bez závazku"]
[null,null,null,null,"MRS","M2M 2 Pro Firmu bez závazku"]
[null,null,null,null,"MRS","M2M 3 Pro Firmu"]
[null,null,null,null,"MRS","M2M 3 Pro Firmu bez závazku"]
[null,null,null,null,"MRS","M2M 4 Pro Firmu"]
[null,null,null,null,"MRS","M2M 4 Pro Firmu bez závazku"]
[null,null,null,null,"MRS","M2M bez závazku"]
[null,null,null,null,"MRS","M2M Mini"]
[null,null,null,null,"MRS","M2M Mini bez závazku"]
[null,null,null,null,"MRS","M2M Premium"]
[null,null,null,null,"MRS","M2M Premium bez závazku"]
[null,null,null,null,"MRS","M2M Profi"]
[null,null,null,null,"MRS","M2M Profi bez závazku"]
[null,null,null,null,"MRS","Mobil DATA bez závazku se 100 min a 100 SMS navíc"]
[null,null,null,null,"MRS","Mobilní internet 1,5GB"]
[null,null,null,null,"MRS","Mobilní internet 1,5GB bez závazku"]
[null,null,null,null,"MRS","Mobilní internet 1,5GB se závazkem na 12 měsíců"]
[null,null,null,null,"MRS","Mobilní internet 10GB"]
[null,null,null,null,"MRS","Mobilní internet 10GB bez závazku"]
[null,null,null,null,"MRS","Mobilní internet 30GB"]
[null,null,null,null,"MRS","Mobilní internet 30GB bez závazku"]
[null,null,null,null,"MRS","Mobilní internet 3GB"]
[null,null,null,null,"MRS","Mobilní internet 3GB bez závazku"]
[null,null,null,null,"MRS","Mobilní Internet 1 Pro Firmu"]
[null,null,null,null,"MRS","Mobilní Internet 1 Pro Firmu bez závazku"]
[null,null,null,null,"MRS","Mobilní Internet 2 Pro Firmu"]
[null,null,null,null,"MRS","Mobilní Internet 2 Pro Firmu bez závazku"]
[null,null,null,null,"MRS","Mobilní Internet 3 Pro Firmu"]
[null,null,null,null,"MRS","Mobilní Internet 3 Pro Firmu bez závazku"]
[null,null,null,null,"MRS","Mobilní Internet 4 Pro Firmu"]
[null,null,null,null,"MRS","Mobilní Internet 4 Pro Firmu bez závazku"]
[null,null,null,null,"MRS","Mobilní Internet 5 Pro Firmu"]
[null,null,null,null,"MRS","Mobilní Internet 5 Pro Firmu bez závazku"]
[null,null,null,null,"MRS","Mobilní Internet 6 Pro Firmu"]
[null,null,null,null,"MRS","Mobilní Internet 6 Pro Firmu bez závazku"]
[null,null,null,null,"NRS","Neomezeně 5G L"]
[null,null,null,null,"NRS","Neomezeně 5G L s výhodou"]
[null,null,null,null,"NRS","Neomezeně 5G XL"]
[null,null,null,null,"NRS","Neomezeně 5G XL business"]
[null,null,null,null,"NRS","Neomezeně 5G XL business s výhodou"]
[null,null,null,null,"NRS","Neomezeně 5G XL s výhodou"]
[null,null,null,null,"NRS","Neomezeně 5G XXL"]
[null,null,null,null,"NRS","Neomezeně 5G XXL s výhodou"]
[null,null,null,null,"NRS","Neomezeně XL"]
[null,null,null,null,"NRS","Neomezeně XL s výhodou"]
[null,null,null,null,"NRS","Neomezeně XXL"]
[null,null,null,null,"NRS","Neomezeně XXL s výhodou"]
[null,null,null,null,"PRS","Profi 120"]
[null,null,null,null,"PRS","Profi 120 HIT"]
[null,null,null,null,"PRS","Profi na míru 1"]
[null,null,null,null,"PRS","Profi na míru 1 bez závazku"]
[null,null,null,null,"PRS","Profi na míru 2"]
[null,null,null,null,"PRS","Profi na míru 2 bez závazku"]
[null,null,null,null,"PRS","Profi na míru 3"]
[null,null,null,null,"PRS","Profi na míru 3 bez závazku"]
[null,null,null,null,"PRS","Profi na míru 4"]
[null,null,null,null,"PRS","Profi na míru 4 bez závazku"]
[null,null,null,null,"PRS","Profi na míru 5"]
[null,null,null,null,"PRS","Profi na míru 5 bez závazku"]
[null,null,null,null,"SRS","Start"]
[null,null,null,null,"SRS","Start 150"]
[null,null,null,null,"SRS","Start 150 s výhodou"]
[null,null,null,null,"SRS","Start 75"]
[null,null,null,null,"SRS","Start 75 s výhodou"]
[null,null,null,null,"SRS","Start s výhodou"]
[null,null,null,null,"SRS","Neomezený mobilní internet"]
[null,null,null,null,"SRS","Neomezený mobilní internet bez závazku"]
[]
[]
[]
[]
[]
[]
[]
[]
[]
[]
[]
[]
[]
[]
[]
[]
[]
[]
[]
[]
[]
[]
[]
[]
[]
[]
[]
[]
[]
[]
[]
[]
[]
[]
[]
[]
[]
[]
[]
[]
[]
[]
[]
[]
[]
[]
[]
[]
[]
[]
[]
[]
[]
[]
[]
[]
[null,null,null,null,"TRS","T 1500"]
[null,null,null,null,"TRS","T 1500 HIT"]
[null,null,null,null,"TRS","T 160"]
[null,null,null,null,"TRS","T 160 HIT"]
[null,null,null,null,"TRS","T 30"]
[null,null,null,null,"TRS","T 30 HIT"]
[null,null,null,null,"TRS","T 300"]
[null,null,null,null,"TRS","T 300 HIT"]
[null,null,null,null,"TRS","T 600"]
[null,null,null,null,"TRS","T 600 HIT"]
[null,null,null,null,"TRS","T 80"]
[null,null,null,null,"TRS","T 80 HIT"]
[null,null,null,null,"TRS","Tarif 1 Pro Firmu"]
[null,null,null,null,"TRS","Tarif 1 Pro Firmu bez závazku"]
[null,null,null,null,"TRS","Tarif 10 Pro Firmu"]
[null,null,null,null,"TRS","Tarif 10 Pro Firmu bez závazku"]
[null,null,null,null,"TRS","Tarif 2 Pro Firmu"]
[null,null,null,null,"TRS","Tarif 2 Pro Firmu bez závazku"]
[null,null,null,null,"TRS","Tarif 3 Pro Firmu"]
[null,null,null,null,"TRS","Tarif 3 Pro Firmu bez závazku"]
[null,null,null,null,"TRS","Tarif 4 Pro Firmu"]
[null,null,null,null,"TRS","Tarif 4 Pro Firmu bez závazku"]
[null,null,null,null,"TRS","Tarif 5 Pro Firmu"]
[null,null,null,null,"TRS","Tarif 5 Pro Firmu bez závazku"]
[null,null,null,null,"TRS","Tarif 6 Pro Firmu"]
[null,null,null,null,"TRS","Tarif 6 Pro Firmu bez závazku"]
[null,null,null,null,"TRS","Tarif 7 Pro Firmu"]
[null,null,null,null,"TRS","Tarif 7 Pro Firmu bez závazku"]
[null,null,null,null,"TRS","Tarif 8 Pro Firmu"]
[null,null,null,null,"TRS","Tarif 8 Pro Firmu bez závazku"]
[null,null,null,null,"TRS","Tarif 9 Pro Firmu"]
[null,null,null,null,"TRS","Tarif 9 Pro Firmu bez závazku"]
[null,null,null,null,"TRS","Tarif Data & SMS"]
[null,null,null,null,"TRS","Tarif Data & SMS bez závazku"]
[null,null,null,null,"RS","1 GB Plus"]
[null,null,null,null,"RS","1 GB Plus s výhodou"]
[null,null,null,null,"RS","12 GB Plus"]
[null,null,null,null,"RS","12 GB Plus s výhodou"]
[null,null,null,null,"RS","3 GB Plus"]
[null,null,null,null,"RS","3 GB Plus s výhodou"]
[null,null,null,null,"RS","4 GB Plus"]
[null,null,null,null,"RS","4 GB Plus s výhodou"]
[null,null,null,null,"RS","5 GB Plus"]
[null,null,null,null,"RS","5 GB Plus s výhodou"]
[]
[null,null,null,null,"RS","6 GB Plus"]
[null,null,null,null,"RS","6 GB Plus s výhodou"]
[null,null,null,null,"RS","8 GB Plus"]
[null,null,null,null,"RS","8 GB Plus s výhodou"]
[null,null,null,null,"RS","Data 10 GB Plus"]
[null,null,null,null,"RS","Data 10 GB Plus s výhodou"]
[null,null,null,null,"RS","Data 4 GB Plus"]
[null,null,null,null,"RS","Data 4 GB Plus s výhodou"]
[null,null,null,null,"RS","Data neomezeně"]
[null,null,null,null,"RS","Data neomezeně 5G"]
[null,null,null,null,"RS","Data neomezeně 5G s výhodou"]
[null,null,null,null,"RS","Data neomezeně s výhodou"]
[null,null,null,null,"RS","Happy Partner"]
[null,null,null,null,"RS","Happy Partner bez závazku"]
[null,null,null,null,"RS","Chytré auto"]
[null,null,null,null,"RS","Chytré auto bez závazku"]
[null,null,null,null,"RS","Chytré auto WiFi premium"]
[null,null,null,null,"RS","Chytré auto WiFi premium bez závazku"]
[null,null,null,null,"RS","Chytré auto WiFi standard"]
[null,null,null,null,"RS","Chytré auto WiFi standard bez závazku"]
[null,null,null,null,"RS","Internet 10 GB"]
[null,null,null,null,"RS","Internet 10 GB s výhodou"]
[null,null,null,null,"RS","Internet 4 GB"]
[null,null,null,null,"RS","Internet 4 GB s výhodou"]
[null,null,null,null,"RS","Internet 6 GB "]
[null,null,null,null,"RS","Internet 6 GB  s výhodou"]
[null,null,null,null,"RS","Internet bez drátu Premium"]
[null,null,null,null,"RS","Internet bez drátu Premium bez závazku"]
[null,null,null,null,"RS","Internet bez drátu Premium Plus"]
[null,null,null,null,"RS","Internet bez drátu Premium Plus bez závazku"]
[null,null,null,null,"RS","Internet bez drátu Standard"]
[null,null,null,null,"RS","Internet bez drátu Standard bez závazku"]
[null,null,null,null,"RS","Internet Komplet"]
[null,null,null,null,"RS","Internet Komplet bez závazku"]
[null,null,null,null,"RS","Internet neomezeně"]
[null,null,null,null,"RS","Internet neomezeně 5G"]
[null,null,null,null,"RS","Internet neomezeně 5G s výhodou"]
[null,null,null,null,"RS","Internet neomezeně s výhodou"]
[null,null,null,null,"RS","M2M"]
[null,null,null,null,"RS","M2M 1 Pro Firmu"]
[null,null,null,null,"RS","M2M 1 Pro Firmu bez roamingu"]
[null,null,null,null,"RS","M2M 1 Pro Firmu bez roamingu bez závazku"]
[null,null,null,null,"RS","M2M 1 Pro Firmu bez závazku"]
[null,null,null,null,"RS","M2M 2 Pro Firmu"]
[null,null,null,null,"RS","M2M 2 Pro Firmu bez roamingu"]
[null,null,null,null,"RS","M2M 2 Pro Firmu bez roamingu bez závazku"]
[null,null,null,null,"RS","M2M 2 Pro Firmu bez závazku"]
[null,null,null,null,"RS","M2M 3 Pro Firmu"]
[null,null,null,null,"RS","M2M 3 Pro Firmu bez závazku"]
[null,null,null,null,"RS","M2M 4 Pro Firmu"]
[null,null,null,null,"RS","M2M 4 Pro Firmu bez závazku"]
[null,null,null,null,"RS","M2M bez závazku"]
[null,null,null,null,"RS","M2M Mini"]
[null,null,null,null,"RS","M2M Mini bez závazku"]
[null,null,null,null,"RS","M2M Premium"]
[null,null,null,null,"RS","M2M Premium bez závazku"]
[null,null,null,null,"RS","M2M Profi"]
[null,null,null,null,"RS","M2M Profi bez závazku"]
[null,null,null,null,"RS","Mobil DATA bez závazku se 100 min a 100 SMS navíc"]
[null,null,null,null,"RS","Mobilní internet 1,5GB"]
[null,null,null,null,"RS","Mobilní internet 1,5GB bez závazku"]
[null,null,null,null,"RS","Mobilní internet 1,5GB se závazkem na 12 měsíců"]
[null,null,null,null,"RS","Mobilní internet 10GB"]
[null,null,null,null,"RS","Mobilní internet 10GB bez závazku"]
[null,null,null,null,"RS","Mobilní internet 30GB"]
[null,null,null,null,"RS","Mobilní internet 30GB bez závazku"]
[null,null,null,null,"RS","Mobilní internet 3GB"]
[null,null,null,null,"RS","Mobilní internet 3GB bez závazku"]
[null,null,null,null,"RS","Mobilní Internet 1 Pro Firmu"]
[null,null,null,null,"RS","Mobilní Internet 1 Pro Firmu bez závazku"]
[null,null,null,null,"RS","Mobilní Internet 2 Pro Firmu"]
[null,null,null,null,"RS","Mobilní Internet 2 Pro Firmu bez závazku"]
[null,null,null,null,"RS","Mobilní Internet 3 Pro Firmu"]
[null,null,null,null,"RS","Mobilní Internet 3 Pro Firmu bez závazku"]
[null,null,null,null,"RS","Mobilní Internet 4 Pro Firmu"]
[null,null,null,null,"RS","Mobilní Internet 4 Pro Firmu bez závazku"]
[null,null,null,null,"RS","Mobilní Internet 5 Pro Firmu"]
[null,null,null,null,"RS","Mobilní Internet 5 Pro Firmu bez závazku"]
[null,null,null,null,"RS","Mobilní Internet 6 Pro Firmu"]
[null,null,null,null,"RS","Mobilní Internet 6 Pro Firmu bez závazku"]
[null,null,null,null,"RS","Neomezeně 5G L"]
[null,null,null,null,"RS","Neomezeně 5G L s výhodou"]
[null,null,null,null,"RS","Neomezeně 5G XL"]
[null,null,null,null,"RS","Neomezeně 5G XL business"]
[null,null,null,null,"RS","Neomezeně 5G XL business s výhodou"]
[null,null,null,null,"RS","Neomezeně 5G XL s výhodou"]
[null,null,null,null,"RS","Neomezeně 5G XXL"]
[null,null,null,null,"RS","Neomezeně 5G XXL s výhodou"]
[null,null,null,null,"RS","Neomezeně XL"]
[null,null,null,null,"RS","Neomezeně XL s výhodou"]
[null,null,null,null,"RS","Neomezeně XXL"]
[null,null,null,null,"RS","Neomezeně XXL s výhodou"]
[null,null,null,null,"RS","Neomezený mobilní internet"]
[null,null,null,null,"RS","Neomezený mobilní internet bez závazku"]
[null,null,null,null,"RS","Profi 120"]
[null,null,null,null,"RS","Profi 120 HIT"]
[null,null,null,null,"RS","Profi na míru 1"]
[null,null,null,null,"RS","Profi na míru 1 bez závazku"]
[null,null,null,null,"RS","Profi na míru 2"]
[null,null,null,null,"RS","Profi na míru 2 bez závazku"]
[null,null,null,null,"RS","Profi na míru 3"]
[null,null,null,null,"RS","Profi na míru 3 bez závazku"]
[null,null,null,null,"RS","Profi na míru 4"]
[null,null,null,null,"RS","Profi na míru 4 bez závazku"]
[null,null,null,null,"RS","Profi na míru 5"]
[null,null,null,null,"RS","Profi na míru 5 bez závazku"]
[]
[]
[]
[]
[]
[]
[]
[]
[]
[]
[]
[]
[]
[]
[]
[]
[]
[null,null,null,null,"RS","Start"]
[null,null,null,null,"RS","Start 150"]
[null,null,null,null,"RS","Start 150 s výhodou"]
[null,null,null,null,"RS","Start 75"]
[null,null,null,null,"RS","Start 75 s výhodou"]
[null,null,null,null,"RS","Start s výhodou"]
[null,null,null,null,"RS","T 1500"]
[null,null,null,null,"RS","T 1500 HIT"]
[null,null,null,null,"RS","T 160"]
[null,null,null,null,"RS","T 160 HIT"]
[null,null,null,null,"RS","T 30"]
[null,null,null,null,"RS","T 30 HIT"]
[null,null,null,null,"RS","T 300"]
[null,null,null,null,"RS","T 300 HIT"]
[null,null,null,null,"RS","T 600"]
[null,null,null,null,"RS","T 600 HIT"]
[null,null,null,null,"RS","T 80"]
[null,null,null,null,"RS","T 80 HIT"]
[null,null,null,null,"RS","Tarif 1 Pro Firmu"]
[null,null,null,null,"RS","Tarif 1 Pro Firmu bez závazku"]
[null,null,null,null,"RS","Tarif 10 Pro Firmu"]
[null,null,null,null,"RS","Tarif 10 Pro Firmu bez závazku"]
[null,null,null,null,"RS","Tarif 2 Pro Firmu"]
[null,null,null,null,"RS","Tarif 2 Pro Firmu bez závazku"]
[null,null,null,null,"RS","Tarif 3 Pro Firmu"]
[null,null,null,null,"RS","Tarif 3 Pro Firmu bez závazku"]
[null,null,null,null,"RS","Tarif 4 Pro Firmu"]
[null,null,null,null,"RS","Tarif 4 Pro Firmu bez závazku"]
[null,null,null,null,"RS","Tarif 5 Pro Firmu"]
[null,null,null,null,"RS","Tarif 5 Pro Firmu bez závazku"]
[null,null,null,null,"RS","Tarif 6 Pro Firmu"]
[null,null,null,null,"RS","Tarif 6 Pro Firmu bez závazku"]
[null,null,null,null,"RS","Tarif 7 Pro Firmu"]
[null,null,null,null,"RS","Tarif 7 Pro Firmu bez závazku"]
[null,null,null,null,"RS","Tarif 8 Pro Firmu"]
[null,null,null,null,"RS","Tarif 8 Pro Firmu bez závazku"]
[null,null,null,null,"RS","Tarif 9 Pro Firmu"]
[null,null,null,null,"RS","Tarif 9 Pro Firmu bez závazku"]
[null,null,null,null,"RS","Tarif Data & SMS"]
[null,null,null,null,"RS","Tarif Data & SMS bez závazku"]